Workbook

Sheet GARDE
F23: Audit Conseil
F25: Check List Cash and Carry
F27: EVALUATION DE LA
F28: MAITRISE
F29: DES POINTS CRITIQUES
F31: selon le Référentiel Qualité
F32: Cash and Carry
F34: 2017
E37: ="Nom du magasin : "&masque!E14 -> Nom du magasin : Cash and Carry Sousse
E38: ="Adresse du magasin :"& MID(masque!E14,15,30) -> Adresse du magasin : Sousse
E39: ="Date de la visite : "&TEXT(masque!E12,"jj/mm/aaaa") -> Date de la visite : 14/06/2017
E40: ="Heure de début de visite : "&masque!E13 -> Heure de début de visite : 08h
E41: Heure de fin de visite : | G41: 13h
E42: Laboratoire conseil : Quali-Consult
E43: ="Nom de l'intervenant : "&masque!E15 -> Nom de l'intervenant : Mme Meriam CHOUCHENE
E52: Service Qualité UHD

Sheet SOMMAIRE
A2: SOMMAIRE
B4: Récapitulatif des notes
B5: Récapitulatif des objectifs
B6: Evolution de la note globale hygiène et du % de réalisation plans d'action
B7: Evolution des notes par Pôle
B8: Réception
B9: Zone Commune
B10: Retrait / Alerte
B11: Epicerie
B12: Poisson
B13: Fruits et légumes/Epices, Olives
B14: P.L.S./ BOUCHERIE
B15: Service technique
B16: Points directeurs

Sheet recap
H7: Visites | I7: V1 | J7: V2 | K7: V3 | L7: V4 | M7: V5
I8: Note | J8: Note | K8: Note | L8: Note | M8: Note
H9: Date de la visite | I9: =IFERROR(masque!AU21,"") -> 2017-02-17 | J9: =IFERROR(masque!CD21,"") -> 2017-06-14 | K9: =IFERROR(masque!CE21,"") -> 00:00:00 | L9: =IFERROR(masque!CF21,"") -> 00:00:00 | M9: =IFERROR(masque!CG21,"") -> 00:00:00
G10: RECEPTION | H10: Note sur 100 | I10: =IF(masque!AU22="","",masque!AU22) -> 0.2857 | J10: =IF(masque!AT22="","",masque!AT22) -> 0.5357142857 | K10: =IF(masque!AS22="","",masque!AS22) ->  | L10: =IF(masque!AR22="","",masque!AR22) ->  | M10: =IF(masque!AQ22="","",masque!AQ22) -> 
H11: Note tech | I11: =IF(masque!AU23="","",masque!AU23) -> 1 | J11: =IF(masque!AT23="","",masque!AT23) -> -1.5 | K11: =IF(masque!AS23="","",masque!AS23) ->  | L11: =IF(masque!AR23="","",masque!AR23) ->  | M11: =IF(masque!AQ23="","",masque!AQ23) -> 
H12: Note F | I12: =IF(masque!AU24="","",masque!AU24) -> 0.36 | J12: =IF(masque!AT24="","",masque!AT24) -> 0.6923076923 | K12: =IF(masque!AS24="","",masque!AS24) ->  | L12: =IF(masque!AR24="","",masque!AR24) ->  | M12: =IF(masque!AQ24="","",masque!AQ24) -> 
H13: % réalisation plans d'action | I13: =IF(masque!AU25="","",masque!AU25) -> 0.4 | J13: =IF(masque!AT25="","",masque!AT25) -> 0.625 | K13: =IF(masque!AS25="","",masque!AS25) ->  | L13: =IF(masque!AR25="","",masque!AR25) ->  | M13: =IF(masque!AQ25="","",masque!AQ25) -> 
G14: ZONE COMMUNE | H14: Note sur 100 | I14: =IF(masque!AU26="","",masque!AU26) -> 0.76 | J14: =IF(masque!AT26="","",masque!AT26) -> 0.5652173913 | K14: =IF(masque!AS26="","",masque!AS26) ->  | L14: =IF(masque!AR26="","",masque!AR26) ->  | M14: =IF(masque!AQ26="","",masque!AQ26) -> 
H15: Note tech | I15: =IF(masque!AU27="","",masque!AU27) -> 0.3077 | J15: =IF(masque!AT27="","",masque!AT27) -> 0.6666666667 | K15: =IF(masque!AS27="","",masque!AS27) ->  | L15: =IF(masque!AR27="","",masque!AR27) ->  | M15: =IF(masque!AQ27="","",masque!AQ27) -> 
H16: Note F | I16: =IF(masque!AU28="","",masque!AU28) -> 0.6857 | J16: =IF(masque!AT28="","",masque!AT28) -> 0.5 | K16: =IF(masque!AS28="","",masque!AS28) ->  | L16: =IF(masque!AR28="","",masque!AR28) ->  | M16: =IF(masque!AQ28="","",masque!AQ28) -> 
H17: % réalisation plans d'action | I17: =IF(masque!AU29="","",masque!AU29) -> 0.5 | J17: =IF(masque!AT29="","",masque!AT29) -> 0.25 | K17: =IF(masque!AS29="","",masque!AS29) ->  | L17: =IF(masque!AR29="","",masque!AR29) ->  | M17: =IF(masque!AQ29="","",masque!AQ29) -> 
G18: POISSON | H18: Note sur 100 | I18: =IF(masque!AU30="","",masque!AU30) -> 0.68 | J18: =IF(masque!AT30="","",masque!AT30) -> 0.8181818182 | K18: =IF(masque!AS30="","",masque!AS30) ->  | L18: =IF(masque!AR30="","",masque!AR30) ->  | M18: =IF(masque!AQ30="","",masque!AQ30) -> 
H19: Note tech | I19: =IF(masque!AU31="","",masque!AU31) -> 0.1538 | J19: =IF(masque!AT31="","",masque!AT31) -> 0.9622641509 | K19: =IF(masque!AS31="","",masque!AS31) ->  | L19: =IF(masque!AR31="","",masque!AR31) ->  | M19: =IF(masque!AQ31="","",masque!AQ31) -> 
H20: Note F | I20: =IF(masque!AU32="","",masque!AU32) -> 0.34 | J20: =IF(masque!AT32="","",masque!AT32) -> 0.2307692308 | K20: =IF(masque!AS32="","",masque!AS32) ->  | L20: =IF(masque!AR32="","",masque!AR32) ->  | M20: =IF(masque!AQ32="","",masque!AQ32) -> 
H21: % réalisation plans d'action | I21: =IF(masque!AU33="","",masque!AU33) -> 0.6667 | J21: =IF(masque!AT33="","",masque!AT33) -> 0.4285714286 | K21: =IF(masque!AS33="","",masque!AS33) ->  | L21: =IF(masque!AR33="","",masque!AR33) ->  | M21: =IF(masque!AQ33="","",masque!AQ33) -> 
G22: FRUITS ET LEGUMES/ OLIVES EPICES | H22: Note sur 100 | I22: =IF(masque!AU34="","",masque!AU34) -> 0.8542 | J22: =IF(masque!AT34="","",masque!AT34) -> 0.7708333333 | K22: =IF(masque!AS34="","",masque!AS34) ->  | L22: =IF(masque!AR34="","",masque!AR34) ->  | M22: =IF(masque!AQ34="","",masque!AQ34) -> 
H23: Note tech | I23: =IF(masque!AU35="","",masque!AU35) -> 0.125 | J23: =IF(masque!AT35="","",masque!AT35) -> 0.375 | K23: =IF(masque!AS35="","",masque!AS35) ->  | L23: =IF(masque!AR35="","",masque!AR35) ->  | M23: =IF(masque!AQ35="","",masque!AQ35) -> 
H24: Note F | I24: =IF(masque!AU36="","",masque!AU36) -> 0.8947 | J24: =IF(masque!AT36="","",masque!AT36) -> 0.85 | K24: =IF(masque!AS36="","",masque!AS36) ->  | L24: =IF(masque!AR36="","",masque!AR36) ->  | M24: =IF(masque!AQ36="","",masque!AQ36) -> 
H25: % réalisation plans d'action | I25: =IF(masque!AU37="","",masque!AU37) -> 0.8 | J25: =IF(masque!AT37="","",masque!AT37) -> 0.6666666667 | K25: =IF(masque!AS37="","",masque!AS37) ->  | L25: =IF(masque!AR37="","",masque!AR37) ->  | M25: =IF(masque!AQ37="","",masque!AQ37) -> 
G26: SERVICE TECHNIQUE | H26: Note sur 100 | I26: =IF(masque!AU38="","",masque!AU38) -> 0.4783 | J26: =IF(masque!AT38="","",masque!AT38) -> 0.4545454545 | K26: =IF(masque!AS38="","",masque!AS38) ->  | L26: =IF(masque!AR38="","",masque!AR38) ->  | M26: =IF(masque!AQ38="","",masque!AQ38) -> 
H27: Note tech | I27: =IF(masque!AU39="","",masque!AU39) -> 0.5789 | J27: =IF(masque!AT39="","",masque!AT39) -> 0.4545454545 | K27: =IF(masque!AS39="","",masque!AS39) ->  | L27: =IF(masque!AR39="","",masque!AR39) ->  | M27: =IF(masque!AQ39="","",masque!AQ39) -> 
H28: Note F | I28: =IF(masque!AU40="","",masque!AU40) ->  | J28: =IF(masque!AT40="","",masque!AT40) ->  | K28: =IF(masque!AS40="","",masque!AS40) ->  | L28: =IF(masque!AR40="","",masque!AR40) ->  | M28: =IF(masque!AQ40="","",masque!AQ40) -> 
H29: % réalisation plans d'action | I29: =IF(masque!AU41="","",masque!AU41) -> 0.2857 | J29: =IF(masque!AT41="","",masque!AT41) -> 0.5 | K29: =IF(masque!AS41="","",masque!AS41) ->  | L29: =IF(masque!AR41="","",masque!AR41) ->  | M29: =IF(masque!AQ41="","",masque!AQ41) -> 
G30: PLS/ BOUCHERIE | H30: Note sur 100 | I30: =IF(masque!AU42="","",masque!AU42) -> 0.8367 | J30: =IF(masque!AT42="","",masque!AT42) -> 0.7808219178 | K30: =IF(masque!AS42="","",masque!AS42) ->  | L30: =IF(masque!AR42="","",masque!AR42) ->  | M30: =IF(masque!AQ42="","",masque!AQ42) -> 
H31: Note tech | I31: =IF(masque!AU43="","",masque!AU43) -> 1 | J31: =IF(masque!AT43="","",masque!AT43) -> 0.6666666667 | K31: =IF(masque!AS43="","",masque!AS43) ->  | L31: =IF(masque!AR43="","",masque!AR43) ->  | M31: =IF(masque!AQ43="","",masque!AQ43) -> 
H32: Note F | I32: =IF(masque!AU44="","",masque!AU44) -> 0.8537 | J32: =IF(masque!AT44="","",masque!AT44) -> 0.8181818182 | K32: =IF(masque!AS44="","",masque!AS44) ->  | L32: =IF(masque!AR44="","",masque!AR44) ->  | M32: =IF(masque!AQ44="","",masque!AQ44) -> 
H33: % réalisation plans d'action | I33: =IF(masque!AU45="","",masque!AU45) -> 0.7778 | J33: =IF(masque!AT45="","",masque!AT45) -> 0.5 | K33: =IF(masque!AS45="","",masque!AS45) ->  | L33: =IF(masque!AR45="","",masque!AR45) ->  | M33: =IF(masque!AQ45="","",masque!AQ45) -> 
G34: RETRAIT ALERTE | H34: Note sur 100 | I34: =IF(masque!AU46="","",masque!AU46) -> 1 | J34: =IF(masque!AT46="","",masque!AT46) -> 1 | K34: =IF(masque!AS46="","",masque!AS46) ->  | L34: =IF(masque!AR46="","",masque!AR46) ->  | M34: =IF(masque!AQ46="","",masque!AQ46) -> 
H35: Note tech | I35: =IF(masque!AU47="","",masque!AU47) ->  | J35: =IF(masque!AT47="","",masque!AT47) ->  | K35: =IF(masque!AS47="","",masque!AS47) ->  | L35: =IF(masque!AR47="","",masque!AR47) ->  | M35: =IF(masque!AQ47="","",masque!AQ47) -> 
H36: Note F | I36: =IF(masque!AU48="","",masque!AU48) -> 1 | J36: =IF(masque!AT48="","",masque!AT48) -> 1 | K36: =IF(masque!AS48="","",masque!AS48) ->  | L36: =IF(masque!AR48="","",masque!AR48) ->  | M36: =IF(masque!AQ48="","",masque!AQ48) -> 
H37: % réalisation plans d'action | I37: =IF(masque!AU49="","",masque!AU49) -> 0 | J37: =IF(masque!AT49="","",masque!AT49) -> 0 | K37: =IF(masque!AS49="","",masque!AS49) ->  | L37: =IF(masque!AR49="","",masque!AR49) ->  | M37: =IF(masque!AQ49="","",masque!AQ49) -> 
G38: EPICERIE | H38: Note sur 100 | I38: =IF(masque!AU50="","",masque!AU50) -> -0.1333 | J38: =IF(masque!AT50="","",masque!AT50) -> 0.6551724138 | K38: =IF(masque!AS50="","",masque!AS50) ->  | L38: =IF(masque!AR50="","",masque!AR50) ->  | M38: =IF(masque!AQ50="","",masque!AQ50) -> 
H39: Note tech | I39: =IF(masque!AU51="","",masque!AU51) -> 1 | J39: =IF(masque!AT51="","",masque!AT51) -> -1 | K39: =IF(masque!AS51="","",masque!AS51) ->  | L39: =IF(masque!AR51="","",masque!AR51) ->  | M39: =IF(masque!AQ51="","",masque!AQ51) -> 
H40: Note F | I40: =IF(masque!AU52="","",masque!AU52) -> 0.5652 | J40: =IF(masque!AT52="","",masque!AT52) -> 1 | K40: =IF(masque!AS52="","",masque!AS52) ->  | L40: =IF(masque!AR52="","",masque!AR52) ->  | M40: =IF(masque!AQ52="","",masque!AQ52) -> 
H41: % réalisation plans d'action | I41: =IF(masque!AU53="","",masque!AU53) -> 0.6 | J41: =IF(masque!AT53="","",masque!AT53) -> 1 | K41: =IF(masque!AS53="","",masque!AS53) ->  | L41: =IF(masque!AR53="","",masque!AR53) ->  | M41: =IF(masque!AQ53="","",masque!AQ53) -> 
G42: POINTS DIRECEURS | H42: Note sur 101 | I42: =IF(masque!AU55="","",masque!AU55) -> 1 | J42: =IF(masque!AT55="","",masque!AT55) -> 0.8333333333 | K42: =IF(masque!AS55="","",masque!AS55) ->  | L42: =IF(masque!AR55="","",masque!AR55) ->  | M42: =IF(masque!AQ55="","",masque!AQ55) -> 
H43: Note tech | I43: =IF(masque!AU56="","",masque!AU56) ->  | J43: =IF(masque!AT56="","",masque!AT56) ->  | K43: =IF(masque!AS56="","",masque!AS56) ->  | L43: =IF(masque!AR56="","",masque!AR56) ->  | M43: =IF(masque!AQ56="","",masque!AQ56) -> 
H44: Note F | I44: =IF(masque!AU57="","",masque!AU57) -> 1 | J44: =IF(masque!AT57="","",masque!AT57) -> 0.8333333333 | K44: =IF(masque!AS57="","",masque!AS57) ->  | L44: =IF(masque!AR57="","",masque!AR57) ->  | M44: =IF(masque!AQ57="","",masque!AQ57) -> 
H45: % réalisation plans d'action | I45: =IF(masque!AU54="","",masque!AU54) -> 0 | J45: =IF(masque!AT54="","",masque!AT54) -> 0 | K45: =IF(masque!AS54="","",masque!AS54) ->  | L45: =IF(masque!AR54="","",masque!AR54) ->  | M45: =IF(masque!AQ54="","",masque!AQ54) -> 
H46: MOY Rayons | I46: =IFERROR(AVERAGE(I10,I14,I18,I22,I26,I30,I34,I38,I42),"") -> 0.6401777778 | J46: =IFERROR(AVERAGE(J10,J14,J18,J22,J26,J30,J34,J38,J42),"") -> 0.7126466609
H47: MOY technique | I47: 0.5950571429 | J47: 0.08930613412
H48: MOY foncionnel | I48: 0.7124125 | J48: 0.7405740093
H49: MOY Plans d'actions | I49: 0.4478 | J49: 0.4411375661
H54: NOTE GLOBALE MAGASIN | J54: =IFERROR(AVERAGE(I46,J46,K46,L46,M46),"") -> 0.6764122193
H55: MOYENNE DES % DE REALISATION DES PLANS D'ACTION | J55: =IFERROR(AVERAGE(I49,J49,K49,L49,M49),"") -> 0.4444687831

Sheet Graphe magasin

Sheet graphe pole (hidden)

Sheet masque
I1: Note Rayon | K1: Accompagnateur | L1: Rayons | M1: Constat | Q1: max F | R1: max T | S1: global | U1: Rapport CM El Menzah 9122013 | W1: Checklist CM Houmet Souk011900
A2: =$AP$22 -> 0.5862068966 | I2: 0.5357 | K2: Moncef SMAOUI | L2: RECEPTION | M2: NOK | P2: REC | Q2: =SUM(IF((BDRayon=$P2)*(FouS="F")*(RIGHT(Constat,2)="OK"),SiOk)) -> 27 | R2: =SUM(IF((BDRayon=$P2)*(FouS="S")*(RIGHT(Constat,2)="OK"),SiOk)) -> 2 | S2: =+Q2+R2 -> 29
I3: 1 | K3: dir magasin | L3: RETRAIT / ALERTE | P3: RET | Q3: =SUM(IF((BDRayon=$P3)*(FouS="F")*(RIGHT(Constat,2)="OK"),SiOk)) -> 8 | R3: =SUM(IF((BDRayon=$P3)*(FouS="S")*(RIGHT(Constat,2)="OK"),SiOk)) -> 0 | S3: =+Q3+R3 -> 8
I4: 0.8182 | K4: Ahmed ben Salem | L4: POISSON | P4: POI | Q4: =SUM(IF((BDRayon=$P4)*(FouS="F")*(RIGHT(Constat,2)="OK"),SiOk)) -> 37 | R4: =SUM(IF((BDRayon=$P4)*(FouS="S")*(RIGHT(Constat,2)="OK"),SiOk)) -> 13 | S4: 50
D5: Masque de saisie audit d'un magasin Carrefour Tunisie | I5: 0.7708 | K5: slama nizar | L5: FRUITS ET LEGUMES/OLIVES EPICES | P5: FRL | Q5: =SUM(IF((BDRayon=$P5)*(FouS="F")*(RIGHT(Constat,2)="OK"),SiOk)) -> 40 | R5: =SUM(IF((BDRayon=$P5)*(FouS="S")*(RIGHT(Constat,2)="OK"),SiOk)) -> 8 | S5: 48
I6: 0.6552 | K6: Hamza BRAIEK | L6: EPICERIE /LIQUIDES | P6: EPL | Q6: =SUM(IF((BDRayon=$P6)*(FouS="F")*(RIGHT(Constat,2)="OK"),SiOk)) -> 20 | R6: =SUM(IF((BDRayon=$P6)*(FouS="S")*(RIGHT(Constat,2)="OK"),SiOk)) -> 5 | S6: 25
I7: 0.7808 | K7: Brahim brongi | L7: PLS/BOUCHERIE | P7: PBO | Q7: =SUM(IF((BDRayon=$P7)*(FouS="F")*(RIGHT(Constat,2)="OK"),SiOk)) -> 45 | R7: =SUM(IF((BDRayon=$P7)*(FouS="S")*(RIGHT(Constat,2)="OK"),SiOk)) -> 14 | S7: 59
D8: Pas toucher aux zones grisées | I8: 0.8333 | K8: dir magasin | L8: POINTS DIRECTEURS | P8: PDR | Q8: =SUM(IF((BDRayon=$P8)*(FouS="F")*(RIGHT(Constat,2)="OK"),SiOk)) -> 14 | R8: =SUM(IF((BDRayon=$P8)*(FouS="S")*(RIGHT(Constat,2)="OK"),SiOk)) -> 0 | S8: 14
I9: 0.5652 | K9: aymen Salah | L9: ZONE COMMUNE | P9: ZOM | Q9: =SUM(IF((BDRayon=$P9)*(FouS="F")*(RIGHT(Constat,2)="OK"),SiOk)) -> 16 | R9: =SUM(IF((BDRayon=$P9)*(FouS="S")*(RIGHT(Constat,2)="OK"),SiOk)) -> 13 | S9: 29
I10: 0.4545 | K10: aymen Salah | L10: SERVICE TECHNIQUE | P10: TEC | Q10: =SUM(IF((BDRayon=$P10)*(FouS="F")*(RIGHT(Constat,2)="OK"),SiOk)) -> 0 | R10: =SUM(IF((BDRayon=$P10)*(FouS="S")*(RIGHT(Constat,2)="OK"),SiOk)) -> 22 | S10: 22
D11: Code visite | E11: V2
D12: Date | E12: 2017-06-14
D13: Heure début | E13: 08h
D14: Magasin | E14: Cash and Carry Sousse | F14: CAC
D15: Auditeurs | E15: Mme Meriam CHOUCHENE
AO18: Rayon
G19: Note global : | AO19: % realisation plan d'action
G20: 0.6764 | AO20: Visite : | AP20: =E11 -> V2 | AQ20: V5 | AR20: V4 | AS20: V3 | AT20: V2 | AU20: V1 | AW20: Rayons | AX20: NC levé | AY20: NC total | AZ20: % realisation | CB20: Visite | CC20: V1 | CD20: V2 | CE20: V3 | CF20: V4 | CG20: V5
AO21: Date : | AP21: =E12 -> 2017-06-14 | AT21: 2017-04-17 | AU21: 2017-02-17 | CB21: Date | CC21: =INDEX($AP$21:$AU$21,,MATCH(CC20,$AP$20:$AU$20,)) -> 2017-02-17 | CD21: =INDEX($AP$21:$AU$21,,MATCH(CD20,$AP$20:$AU$20,)) -> 2017-06-14 | CE21: =INDEX($AP$21:$AU$21,,MATCH(CE20,$AP$20:$AU$20,)) -> 00:00:00 | CF21: =INDEX($AP$21:$AU$21,,MATCH(CF20,$AP$20:$AU$20,)) -> 00:00:00 | CG21: =INDEX($AP$21:$AU$21,,MATCH(CG20,$AP$20:$AU$20,)) -> 00:00:00
AO22: RECEPTION | AP22: =RECEPTION!F35 -> 0.5862068966 | AT22: 0.5357142857 | AU22: 0.2857 | AW22: Réception | AX22: 5 | AY22: 8 | AZ22: =IFERROR(IF(AY22=0,0,AX22/AY22),"") -> 0.625 | CC22: =IF(INDEX($AP22:$AU22,,MATCH($CC$20,$AP$20:$AU$20,))=0," ",INDEX($AP22:$AU22,,MATCH($CC$20,$AP$20:$AU$20,))) -> 0.2857 | CD22: =INDEX($AP22:$AU22,,MATCH($CD$20,$AP$20:$AU$20,)) -> 0.5862068966 | CE22: =INDEX($AP22:$AU22,,MATCH($CE$20,$AP$20:$AU$20,)) -> 0 | CF22: =INDEX($AP22:$AU22,,MATCH($CF$20,$AP$20:$AU$20,)) -> 0 | CG22: =INDEX($AP22:$AU22,,MATCH($CG$20,$AP$20:$AU$20,)) -> 0
AO23: TECH | AP23: =RECEPTION!G34 -> -1.5 | AT23: -1.5 | AU23: 1 | CC23: 1 | CD23: -1.5 | CE23: 0 | CF23: 0 | CG23: 0
AO24: EXP | AP24: =RECEPTION!F34 -> 0.7407407407 | AT24: 0.6923076923 | AU24: 0.36 | CC24: 0.36 | CD24: 0.7407407407 | CE24: 0 | CF24: 0 | CG24: 0
A25: ordre | B25: CodVisite | C25: BdDate | D25: Heure | E25: Magasin | F25: Auditeur | G25: BDRayon | H25: Rayon | I25: Srayon | J25: Code | K25: FouS | L25: Texte | M25: Penalite | N25: SiOk | O25: Constat | P25: Points | Q25: NC | R25: ActCor | S25: Fixé_le | T25: Responsable | U25: Global | V25: Region | X25: Ordre | Y25: CodVisite | Z25: BdDate | AA25: Magasin | AB25: Region | AC25: Auditeur | AD25: BDRayon | AE25: Srayon | AF25: Code | AG25: FouS | AH25: Texte | AI25: Penalite | AJ25: NC | AK25: ActCor | AL25: Fixé_le | AM25: Responsable | AO25: TAUX | AP25: =AZ22 -> 0.625 | AT25: 0.625 | AU25: 0.4 | AW25: ZONE COMMUNE | AX25: 1 | AY25: 4 | AZ25: =IFERROR(IF(AY25=0,0,AX25/AY25),"") -> 0.25 | CC25: 0.4 | CD25: 0.625 | CE25: 0 | CF25: 0 | CG25: 0
A26: 1 | B26: =$E$11 -> V2 | C26: =$E$12 -> 2017-06-14 | D26: =$E$13 -> 08h | E26: =$F$14 -> CAC | F26: =$E$15 -> Mme Meriam CHOUCHENE | G26: REC | H26: RECEPTION | I26: RECEPTION | J26: REC001 | K26: F | L26: Présence et bon fonctionnement du thermomètre à sonde et infrarouge | M26: -2 | N26: 2 | O26: NOK | P26: =IF((O26="Nobs")+(O26="NA"),O26,IF(O26="ok",N26,N26+M26)) -> 0 | Q26: Absence de thermomètre à infra rouge. Achat en cours.+S38Q24:S44Q24:T164 | R26: Prévoir un thermomètre infra rouge. | S26: 2013-10-23 | T26: Moncef SMAOUI | U26: =P26 -> 0 | V26: SOUSSE | AO26: ZONE COMMUNE | AP26: ='Zone commune'!F34 -> 0.724137931 | AT26: 0.5652173913 | AU26: 0.76 | AW26: POISSON | AX26: 3 | AY26: 7 | AZ26: 0.4285714286 | CC26: 0.76 | CD26: 0.724137931 | CE26: 0 | CF26: 0 | CG26: 0
A27: 2 | B27: =$E$11 -> V2 | C27: =$E$12 -> 2017-06-14 | D27: =$E$13 -> 08h | E27: =$F$14 -> CAC | F27: =$E$15 -> Mme Meriam CHOUCHENE | G27: REC | H27: RECEPTION | I27: RECEPTION | J27: REC002 | K27: F | L27: Thermomètre rangé avec son matériel de désinfection | M27: -1 | N27: 1 | O27: NOK | P27: 0 | Q27: Absence de matériel de désinfection | R27: Prévoir du matériel de désinfection | S27: 2013-10-23 | U27: =P27 -> 0 | V27: SOUSSE | AO27: TECH | AP27: ='Zone commune'!G33 -> 0.6923076923 | AT27: 0.6666666667 | AU27: 0.3077 | CC27: 0.3077 | CD27: 0.6923076923 | CE27: 0 | CF27: 0 | CG27: 0
A28: 3 | B28: V2 | C28: 2017-06-14 | D28: 08h | E28: CAC | F28: Mme Meriam CHOUCHENE | G28: REC | H28: RECEPTION | I28: RECEPTION | J28: REC003 | K28: F | L28: Réalisation de la vérification mensuelle du thermomètre | M28: -1 | N28: 1 | O28: NOK | P28: 0 | Q28: L'enregistrement de suivi est réalisé mais le protocole n'est pas maitrisé; | R28: Une sensibilisation sur cet écart a eu lieu le jour de l'audit. | S28: 2017-06-14 | U28: 0 | V28: SOUSSE | AO28: EXP | AP28: ='Zone commune'!F33 -> 0.75 | AT28: 0.5 | AU28: 0.6857 | CC28: =IF(INDEX($AP28:$AU28,,MATCH($CC$20,$AP$20:$AU$20,))=0,"",INDEX($AP28:$AU28,,MATCH($CC$20,$AP$20:$AU$20,))) -> 0.6857 | CD28: 0.75 | CE28: =INDEX($AP28:$AU28,,MATCH($CE$20,$AP$20:$AU$20,)) -> 0 | CF28: 0 | CG28: 0
A29: 4 | B29: V2 | C29: 2017-06-14 | D29: 08h | E29: CAC | F29: Mme Meriam CHOUCHENE | G29: REC | H29: RECEPTION | I29: RECEPTION | J29: REC004 | K29: F | L29: Affichage du tableau des températures réglementaires | M29: -1 | N29: 1 | O29: OK | P29: 1 | U29: 1 | V29: SOUSSE | AP29: =AZ25 -> 0.25 | AT29: 0.25 | AU29: 0.5 | AW29: FRUITS ET LEGUMES/ OLIVES EPICES | AX29: 2 | AY29: 3 | AZ29: 0.6666666667 | CC29: =IF(INDEX($AP29:$AU29,,MATCH($CC$20,$AP$20:$AU$20,))=0,"",INDEX($AP29:$AU29,,MATCH($CC$20,$AP$20:$AU$20,))) -> 0.5 | CD29: 0.25 | CE29: =INDEX($AP29:$AU29,,MATCH($CE$20,$AP$20:$AU$20,)) -> 0 | CF29: 0 | CG29: 0
A30: 5 | B30: V2 | C30: 2017-06-14 | D30: 08h | E30: CAC | F30: Mme Meriam CHOUCHENE | G30: REC | H30: RECEPTION | I30: RECEPTION | J30: REC005 | K30: F | L30: Vérification de la Présence des documents sanitaires des denrées d'origine animal frais ou congelés (documents de transport, AMM, certificat de salubrité, étiquetage conforme ,quittance d'abbaoir) | M30: -5 | N30: 2 | O30: OK | P30: 2 | U30: 2 | V30: SOUSSE | AO30: POISSON | AP30: =POISSON!E63 -> 0.86 | AT30: 0.8181818182 | AU30: 0.68 | AW30: SERVICE TECHNIQUE | AX30: 4 | AY30: 8 | AZ30: 0.5 | CC30: =IF(INDEX($AP30:$AU30,,MATCH($CC$20,$AP$20:$AU$20,))=0,"",INDEX($AP30:$AU30,,MATCH($CC$20,$AP$20:$AU$20,))) -> 0.68 | CD30: 0.86 | CE30: 0 | CF30: 0 | CG30: 0
A31: 6 | B31: V2 | C31: 2017-06-14 | D31: 08h | E31: CAC | F31: Mme Meriam CHOUCHENE | G31: REC | H31: RECEPTION | I31: RECEPTION | J31: REC006 | K31: F | L31: Contrôle complet des températures | M31: -5 | N31: 2 | O31: OK | P31: 2 | U31: 2 | V31: SOUSSE | AO31: TECH | AP31: =POISSON!E62 -> 0.9459459459 | AT31: 0.9622641509 | AU31: 0.1538 | CC31: =INDEX($AP31:$AU31,,MATCH($CC$20,$AP$20:$AU$20,)) -> 0.1538 | CD31: 0.9459459459 | CE31: 0 | CF31: 0 | CG31: 0
A32: 7 | B32: V2 | C32: 2017-06-14 | D32: 08h | E32: CAC | F32: Mme Meriam CHOUCHENE | G32: REC | H32: RECEPTION | I32: RECEPTION | J32: REC007 | K32: F | L32: Refus des marchandises hors critères d'acceptation | M32: -5 | N32: 2 | O32: OK | P32: 2 | U32: 2 | V32: SOUSSE | AO32: EXP | AP32: =POISSON!F62 -> 0.6153846154 | AT32: 0.2307692308 | AU32: 0.34 | CC32: 0.34 | CD32: 0.6153846154 | CE32: 0 | CF32: 0 | CG32: 0
A33: 8 | B33: V2 | C33: 2017-06-14 | D33: 08h | E33: CAC | F33: Mme Meriam CHOUCHENE | G33: REC | H33: RECEPTION | I33: RECEPTION | J33: REC008 | K33: F | L33: Absence d'attente en réception des marchandises | M33: -2 | N33: 2 | O33: OK | P33: 2 | U33: 2 | V33: SOUSSE | AP33: =AZ26 -> 0.4285714286 | AT33: 0.4285714286 | AU33: 0.6667 | AW33: PLS/ BOUCHERIE | AX33: 2 | AY33: 4 | AZ33: 0.5 | CC33: 0.6667 | CD33: 0.4285714286 | CE33: 0 | CF33: 0 | CG33: 0
A34: 9 | B34: V2 | C34: 2017-06-14 | D34: 08h | E34: CAC | F34: Mme Meriam CHOUCHENE | G34: REC | H34: RECEPTION | I34: RECEPTION | J34: REC009 | K34: F | L34: Retours correctement identifiés et balisés | M34: -2 | N34: 2 | O34: OK | P34: 2 | U34: 2 | V34: SOUSSE | AO34: FRUITS ET LEGUMES/ OLIVES EPICES | AP34: ='FRUIT ET LEGUMES'!E44 -> 0.9375 | AT34: 0.7708333333 | AU34: 0.8542 | AW34: RETRAIT ALERTE | AX34: 0 | AY34: 0 | AZ34: 0 | CC34: 0.8542 | CD34: 0.9375 | CE34: 0 | CF34: 0 | CG34: 0
A35: 10 | B35: V2 | C35: 2017-06-14 | D35: 08h | E35: CAC | F35: Mme Meriam CHOUCHENE | G35: REC | H35: RECEPTION | I35: EXTERIEUR ET AIRE DE RECEPTION | J35: REC010 | K35: F | L35: Absence d'accumulation de nuisances | M35: -5 | N35: 2 | O35: OK | P35: 2 | U35: 2 | V35: SOUSSE | AO35: TECH | AP35: ='FRUIT ET LEGUMES'!F43 -> 1 | AT35: 0.375 | AU35: 0.125 | CC35: 0.125 | CD35: 1 | CE35: 0 | CF35: 0 | CG35: 0
A36: 11 | B36: V2 | C36: 2017-06-14 | D36: 08h | E36: CAC | F36: Mme Meriam CHOUCHENE | G36: REC | H36: RECEPTION | I36: EXTERIEUR ET AIRE DE RECEPTION | J36: REC011 | K36: F | L36: Absence de stockage sauvage | M36: -2 | N36: 2 | O36: OK | P36: 2 | U36: 2 | V36: SOUSSE | AO36: EXP | AP36: ='FRUIT ET LEGUMES'!E43 -> 0.925 | AT36: 0.85 | AU36: 0.8947 | CC36: 0.8947 | CD36: 0.925 | CE36: 0 | CF36: 0 | CG36: 0
A37: 12 | B37: V2 | C37: 2017-06-14 | D37: 08h | E37: CAC | F37: Mme Meriam CHOUCHENE | G37: REC | H37: RECEPTION | I37: EXTERIEUR ET AIRE DE RECEPTION | J37: REC012 | K37: F | L37: Propreté correcte des alentours de la benne. | M37: -1 | N37: 1 | O37: NOK | P37: 0 | Q37: Les bennes ne sont pas correctement protégées. Elles sont entreposées à proximité de la porte d'accès au magasin. | R37: Protéger les bennes et améliorer la gestion des déchets. | S37: 2012-03-16 | T37: Moncef SMAOUI | U37: 0 | V37: SOUSSE | AP37: =AZ29 -> 0.6666666667 | AT37: 0.6666666667 | AU37: 0.8 | AW37: EPICERIE | AX37: 1 | AY37: 1 | AZ37: 1 | CC37: 0.8 | CD37: 0.6666666667 | CE37: 0 | CF37: 0 | CG37: 0
A38: 13 | B38: V2 | C38: 2017-06-14 | D38: 08h | E38: CAC | F38: Mme Meriam CHOUCHENE | G38: REC | H38: RECEPTION | I38: EXTERIEUR ET AIRE DE RECEPTION | J38: REC013 | K38: F | L38: Absence de nuisible | M38: -2 | N38: 2 | O38: NOK | P38: 0 | Q38: Présence de nid d'hirondelle au plafond du quai de réception. Présence de mouches. | R38: Renforcer la lutte contre les nuisibles à ce niveau. | S38: 2017-06-14 | T38: Moncef SMAOUI | U38: 0 | V38: SOUSSE | AO38: SERVICE TECHNIQUE | AP38: =technique!E43 -> 0.4090909091 | AT38: 0.4545454545 | AU38: 0.4783 | AW38: POINTS DIRECEURS | AX38: 0 | AY38: 1 | AZ38: 0 | CC38: 0.4783 | CD38: 0.4090909091 | CE38: 0 | CF38: 0 | CG38: 0
A39: 14 | B39: V2 | C39: 2017-06-14 | D39: 08h | E39: CAC | F39: Mme Meriam CHOUCHENE | G39: REC | H39: RECEPTION | I39: EXTERIEUR ET AIRE DE RECEPTION | J39: REC014 | K39: F | L39: Absence d'odeur nauséabonde | M39: -1 | N39: 1 | O39: OK | P39: 1 | U39: 1 | V39: SOUSSE | AO39: TECH | AP39: =technique!F42 -> 0.4090909091 | AT39: 0.4545454545 | AU39: 0.5789 | CC39: 0.5789 | CD39: 0.4090909091 | CE39: 0 | CF39: 0 | CG39: 0
B40: V2 | C40: 2017-06-14 | D40: 08h | E40: CAC | F40: Mme Meriam CHOUCHENE | G40: REC | H40: RECEPTION | I40: PROPRETE ET ENTRETIEN DES LOCAUX | J40: REC014 | K40: F | L40: Entretien et propreté du sas de réception, des sols, plinthes, murs, plafonds, portes satisfaisants, des évacuations au sol satisfaisants | M40: -5 | N40: 2 | O40: OK | P40: 2 | U40: 2 | V40: SOUSSE | AO40: EXP | AP40: =technique!E42 ->  | CC40: 0 | CE40: 0 | CF40: 0 | CG40: 0
A41: 15 | B41: V2 | C41: 2017-06-14 | D41: 08h | E41: CAC | F41: Mme Meriam CHOUCHENE | G41: REC | H41: RECEPTION | I41: PROPRETE ET ENTRETIEN DES LOCAUX | J41: REC014 | K41: S | L41: Entretien et propreté du sas de réception, des sols, plinthes, murs, plafonds, portes satisfaisants, des évacuations au sol satisfaisants | M41: -5 | N41: 2 | O41: NOK | P41: -3 | Q41: Absence de station de nettoyage pour la zone de réception; cette opération est réalisée par l'eau du RIA. Présence de crevasses dans les murs du sas. | R41: Prévoir une station de nettoyage dans la zone de réception. Colmater les trous aux murs. | S41: 2017-06-14 | U41: -3 | V41: SOUSSE | AP41: =AZ30 -> 0.5 | AT41: 0.5 | AU41: 0.2857 | CC41: 0.2857 | CD41: 0.5 | CE41: 0 | CF41: 0 | CG41: 0
A42: 18 | B42: V2 | C42: 2017-06-14 | D42: 08h | E42: CAC | F42: Mme Meriam CHOUCHENE | G42: REC | H42: RECEPTION | I42: PROPRETE ET ENTRETIEN DES LOCAUX | J42: REC018 | K42: F | L42: Les résultats d'audits externes sont affichés à la réception | M42: -1 | N42: 1 | O42: OK | P42: 1 | U42: 1 | V42: SOUSSE | AO42: PLS/ BOUCHERIE | AP42: ='PLS BOUCHERIE'!E65 -> 0.813559322 | AT42: 0.7808219178 | AU42: 0.8367 | CC42: 0.8367 | CD42: 0.813559322 | CE42: 0 | CF42: 0 | CG42: 0
A43: 19 | B43: V2 | C43: 2017-06-14 | D43: 08h | E43: CAC | F43: Mme Meriam CHOUCHENE | G43: REC | H43: RECEPTION | I43: PROPRETE ET ENTRETIEN DES LOCAUX | J43: REC019 | K43: F | L43: Mise en place de Plan d'action suite aux audits | M43: -1 | N43: 1 | O43: OK | P43: 1 | U43: 1 | V43: SOUSSE | AO43: TECH | AP43: ='PLS BOUCHERIE'!F64 -> 0.6428571429 | AT43: 0.6666666667 | AU43: 1 | CC43: 1 | CD43: 0.6428571429 | CE43: 0 | CF43: 0 | CG43: 0
A44: 20 | B44: V2 | C44: 2017-06-14 | D44: 08h | E44: CAC | F44: Mme Meriam CHOUCHENE | G44: RET | H44: RETRAIT / ALERTE | I44: RETRAIT / ALERTE | J44: REC020 | K44: F | L44: Existence d'un classeur Alertes / Retraits et de la procédure | M44: -5 | N44: 2 | O44: OK | P44: 2 | U44: 2 | V44: SOUSSE | AO44: EXP | AP44: ='PLS BOUCHERIE'!E64 -> 0.8666666667 | AT44: 0.8181818182 | AU44: 0.8537 | CC44: 0.8537 | CD44: 0.8666666667 | CE44: 0 | CF44: 0 | CG44: 0
A45: 21 | B45: V2 | C45: 2017-06-14 | D45: 08h | E45: CAC | F45: Mme Meriam CHOUCHENE | G45: RET | H45: RETRAIT / ALERTE | I45: RETRAIT / ALERTE | J45: REC021 | K45: F | L45: Connaisance et affichage de la procédure de retrait | M45: -5 | N45: 2 | O45: OK | P45: 2 | U45: 2 | V45: SOUSSE | AP45: =AZ33 -> 0.5 | AT45: 0.5 | AU45: 0.7778 | CC45: 0.7778 | CD45: 0.5 | CE45: 0 | CF45: 0 | CG45: 0
A46: 22 | B46: V2 | C46: 2017-06-14 | D46: 08h | E46: CAC | F46: Mme Meriam CHOUCHENE | G46: RET | H46: RETRAIT / ALERTE | I46: RETRAIT / ALERTE | J46: REC022 | K46: F | L46: Existence de zones de consignation | M46: -2 | N46: 2 | O46: OK | P46: 2 | U46: 2 | V46: SOUSSE | AO46: RETRAIT ALERTE | AP46: =RETRAIT!F26 -> 1 | AT46: 1 | AU46: 1 | CC46: 1 | CD46: 1 | CE46: 0 | CF46: 0 | CG46: 0
A47: 23 | B47: V2 | C47: 2017-06-14 | D47: 08h | E47: CAC | F47: Mme Meriam CHOUCHENE | G47: RET | H47: RETRAIT / ALERTE | I47: RETRAIT / ALERTE | J47: REC023 | K47: F | L47: Les produits concernés par ces alertes et retraits sont retirés de la vente | M47: -2 | N47: 2 | O47: OK | P47: 2 | U47: 2 | V47: SOUSSE | AO47: TECH | AP47: =RETRAIT!G25 ->  | CC47: 0 | CE47: 0 | CF47: 0 | CG47: 0
A48: 24 | B48: V2 | C48: 2017-06-14 | D48: 08h | E48: CAC | F48: Mme Meriam CHOUCHENE | G48: POI | H48: POISSON | I48: POLE | J48: REC024 | K48: F | L48: Equipement propre (table. Balance, Caisse) | M48: -2 | N48: 2 | O48: OK | P48: 2 | U48: 2 | V48: SOUSSE | AO48: EXP | AP48: =RETRAIT!F25 -> 1 | AT48: 1 | AU48: 1 | CC48: 1 | CD48: 1 | CE48: 0 | CF48: 0 | CG48: 0
B49: V2 | C49: 2017-06-14 | D49: 08h | E49: CAC | F49: Mme Meriam CHOUCHENE | G49: POI | H49: POISSON | I49: POLE | J49: REC025 | K49: F | L49: Entretien et propreté des sols, plinthes, murs plafonds, portes satisfaisants | M49: -5 | N49: 2 | O49: OK | P49: =IF((O49="Nobs")+(O49="NA"),O49,IF(O49="ok",N49,N49+M49)) -> 2 | U49: 2 | V49: SOUSSE | AP49: =AZ34 -> 0 | AT49: 0 | AU49: 0 | CC49: 0 | CD49: 0 | CE49: 0 | CF49: 0 | CG49: 0
A50: 25 | B50: V2 | C50: 2017-06-14 | D50: 08h | E50: CAC | F50: Mme Meriam CHOUCHENE | G50: POI | H50: POISSON | I50: POLE | J50: REC025 | K50: S | L50: Entretien et propreté des sols, plinthes, murs plafonds, portes satisfaisants | M50: -5 | N50: 2 | O50: NOK | P50: -3 | Q50: Présence de fuite d'eau au niveau de l'évier. | R50: Réparer la fuite | S50: 2017-06-14 | T50: Ahmed ben Salem | U50: -3 | V50: SOUSSE | AO50: EPICERIE | AP50: =EPICERIE!K34 -> 0.48 | AT50: 0.6551724138 | AU50: -0.1333 | CC50: -0.1333 | CD50: 0.48 | CE50: 0 | CF50: 0 | CG50: 0
A51: 26 | B51: V2 | C51: 2017-06-14 | D51: 08h | E51: CAC | F51: Mme Meriam CHOUCHENE | G51: POI | H51: POISSON | I51: POLE | J51: REC026 | K51: F | L51: Entretien et propreté des évacuations au sol satisfaisants | M51: -1 | N51: 1 | O51: OK | P51: =IF((O51="Nobs")+(O51="NA"),O51,IF(O51="ok",N51,N51+M51)) -> 1 | U51: 1 | V51: SOUSSE | AO51: TECH | AP51: =EPICERIE!L33 -> 1 | AT51: -1 | AU51: 1 | CC51: 1 | CD51: 1 | CE51: 0 | CF51: 0 | CG51: 0
A52: 26 | B52: V2 | C52: 2017-06-14 | D52: 08h | E52: CAC | F52: Mme Meriam CHOUCHENE | G52: POI | H52: POISSON | I52: POLE | J52: REC026 | K52: S | L52: Entretien et propreté des évacuations au sol satisfaisants | M52: -1 | N52: 1 | O52: OK | P52: 1 | U52: 1 | V52: SOUSSE | AO52: EXP | AP52: =EPICERIE!K33 -> 0.35 | AT52: 1 | AU52: 0.5652 | CC52: 0.5652 | CD52: 0.35 | CE52: 0 | CF52: 0 | CG52: 0
A53: 27 | B53: V2 | C53: 2017-06-14 | D53: 08h | E53: CAC | F53: Mme Meriam CHOUCHENE | G53: POI | H53: POISSON | I53: POLE | J53: REC027 | K53: S | L53: Présence et bon fonctionnement du thermomètre enregistreur | M53: -1 | N53: 1 | O53: OK | P53: 1 | U53: 1 | V53: SOUSSE | AP53: =AZ37 -> 1 | AT53: 1 | AU53: 0.6 | CC53: 0.6 | CD53: 1 | CE53: 0 | CF53: 0 | CG53: 0
A54: 28 | B54: V2 | C54: 2017-06-14 | D54: 08h | E54: CAC | F54: Mme Meriam CHOUCHENE | G54: POI | H54: POISSON | I54: POLE | J54: REC028 | K54: S | L54: Entretien et Nettoyage des évaporateurs | M54: -2 | N54: 2 | O54: OK | P54: 2 | U54: 2 | V54: SOUSSE | AP54: =AZ38 -> 0 | AT54: 0 | AU54: 0 | CC54: 0 | CD54: 0 | CE54: 0 | CF54: 0 | CG54: 0
A55: 29 | B55: V2 | C55: 2017-06-14 | D55: 08h | E55: CAC | F55: Mme Meriam CHOUCHENE | G55: POI | H55: POISSON | I55: POLE | J55: REC029 | K55: F | L55: Présence d'une poubelle conforme | M55: -1 | N55: 1 | O55: OK | P55: 1 | U55: 1 | V55: SOUSSE | AO55: POINTS DIRECEURS | AP55: ='POINTS DIRECTEURS'!E22 -> 0.9285714286 | AT55: 0.8333333333 | AU55: 1 | CC55: 1 | CD55: 0.9285714286 | CE55: 0 | CF55: 0 | CG55: 0
A56: 30 | B56: V2 | C56: 2017-06-14 | D56: 08h | E56: CAC | F56: Mme Meriam CHOUCHENE | G56: POI | H56: POISSON | I56: POLE | J56: REC030 | K56: F | L56: Respect des DLC | M56: -20 | N56: 2 | O56: OK | P56: 2 | U56: 2 | V56: SOUSSE | AO56: TECH | AP56: ='POINTS DIRECTEURS'!F21 ->  | CC56: 0 | CE56: 0 | CF56: 0 | CG56: 0
A57: 31 | B57: V2 | C57: 2017-06-14 | D57: 08h | E57: CAC | F57: Mme Meriam CHOUCHENE | G57: POI | H57: POISSON | I57: POLE | J57: REC031 | K57: F | L57: Absence de charge excessive | M57: -1 | N57: 1 | O57: NA | P57: NA | Q57: Absence de vente de poissons frais le jour de l'audit | U57: NA | V57: SOUSSE | AO57: EXP | AP57: ='POINTS DIRECTEURS'!E21 -> 0.9285714286 | AT57: 0.8333333333 | AU57: 1 | CC57: 1 | CD57: 0.9285714286 | CE57: 0 | CF57: 0 | CG57: 0
A58: 32 | B58: V2 | C58: 2017-06-14 | D58: 08h | E58: CAC | F58: Mme Meriam CHOUCHENE | G58: POI | H58: POISSON | I58: POLE | J58: REC032 | K58: F | L58: Absence de produits non identifiés | M58: -5 | N58: 2 | O58: NA | P58: NA | U58: NA | V58: SOUSSE | AO58: Moyenne | AP58: =AVERAGE(inigraphe,AP26,AP30,AP34,AP38,AP42,AP46,AP50) -> 0.7263118823 | AT58: 0.6975608268 | AU58: 0.6265 | CC58: 0.6265 | CD58: 0.7263118823 | CE58: 0 | CF58: 0 | CG58: 0
A59: 33 | B59: V2 | C59: 2017-06-14 | D59: 08h | E59: CAC | F59: Mme Meriam CHOUCHENE | G59: POI | H59: POISSON | I59: POLE | J59: REC033 | K59: F | L59: Présentation satisfaisante des produits au niveau du pole: Poissons entiers/mollusques | M59: -1 | N59: 1 | O59: NA | P59: NA | U59: NA | V59: SOUSSE
A60: 34 | B60: V2 | C60: 2017-06-14 | D60: 08h | E60: CAC | F60: Mme Meriam CHOUCHENE | G60: POI | H60: POISSON | I60: POLE | J60: REC034 | K60: F | L60: Présentation satisfaisante des produits au niveau du pole: Coquillages vivants | M60: -1 | N60: 1 | O60: NA | P60: NA | U60: NA | V60: SOUSSE
A61: 35 | B61: V2 | C61: 2017-06-14 | D61: 08h | E61: CAC | F61: Mme Meriam CHOUCHENE | G61: POI | H61: POISSON | I61: POLE | J61: REC035 | K61: F | L61: Présentation satisfaisante des produits au niveau du pole: Crustacés vivants | M61: -1 | N61: 1 | O61: NA | P61: NA | U61: NA | V61: SOUSSE
A62: 36 | B62: V2 | C62: 2017-06-14 | D62: 08h | E62: CAC | F62: Mme Meriam CHOUCHENE | G62: POI | H62: POISSON | I62: POLE | J62: REC036 | K62: F | L62: Respect des températures réglementaires | M62: -2 | N62: 2 | O62: NA | P62: NA | U62: NA | V62: SOUSSE
A63: 37 | B63: V2 | C63: 2017-06-14 | D63: 08h | E63: CAC | F63: Mme Meriam CHOUCHENE | G63: POI | H63: POISSON | I63: POLE | J63: REC037 | K63: F | L63: Absence de décoration au contact des produits | M63: -2 | N63: 2 | O63: NA | P63: NA | U63: NA | V63: SOUSSE
A64: 38 | B64: V2 | C64: 2017-06-14 | D64: 08h | E64: CAC | F64: Mme Meriam CHOUCHENE | G64: POI | H64: POISSON | I64: POLE | J64: REC038 | K64: F | L64: Produits correctement glacés ou présentés. | M64: -2 | N64: 2 | O64: NA | P64: NA | U64: NA | V64: SOUSSE
A65: 39 | B65: V2 | C65: 2017-06-14 | D65: 08h | E65: CAC | F65: Mme Meriam CHOUCHENE | G65: POI | H65: POISSON | I65: POLE | J65: REC039 | K65: F | L65: Etiquetage et balisage conformes et complets | M65: -5 | N65: 2 | O65: NA | P65: NA | U65: NA | V65: SOUSSE
A66: 40 | B66: V2 | C66: 2017-06-14 | D66: 08h | E66: CAC | F66: Mme Meriam CHOUCHENE | G66: POI | H66: POISSON | I66: POLE | J66: REC040 | K66: F | L66: Absence d’étiquettes piquées dans les produits | M66: -5 | N66: 2 | O66: NA | P66: NA | U66: NA | V66: SOUSSE
A67: 41 | B67: V2 | C67: 2017-06-14 | D67: 08h | E67: CAC | F67: Mme Meriam CHOUCHENE | G67: POI | H67: POISSON | I67: POLE | J67: REC041 | K67: F | L67: Balances tarées | M67: -5 | N67: 2 | O67: OK | P67: 2 | U67: 2 | V67: SOUSSE
A68: 42 | B68: V2 | C68: 2017-06-14 | D68: 08h | E68: CAC | F68: Mme Meriam CHOUCHENE | G68: POI | H68: POISSON | I68: LINEAIRE SURGELE | J68: REC042 | K68: F | L68: Absence d'attente hors froid | M68: -1 | N68: 1 | O68: OK | P68: 1 | U68: 1 | V68: SOUSSE
A69: 43 | B69: V2 | C69: 2017-06-14 | D69: 08h | E69: CAC | F69: Mme Meriam CHOUCHENE | G69: POI | H69: POISSON | I69: LINEAIRE SURGELE | J69: REC043 | K69: F | L69: Propreté des meubles satisfaisants | M69: -5 | N69: 2 | O69: OK | P69: 2 | U69: 2 | V69: SOUSSE
A70: 44 | B70: V2 | C70: 2017-06-14 | D70: 08h | E70: CAC | F70: Mme Meriam CHOUCHENE | G70: POI | H70: POISSON | I70: LINEAIRE SURGELE | J70: REC044 | K70: S | L70: entretien des meubles satisfaisants | M70: -5 | N70: 2 | O70: OK | P70: 2 | U70: 2 | V70: SOUSSE
A71: 45 | B71: V2 | C71: 2017-06-14 | D71: 08h | E71: CAC | F71: Mme Meriam CHOUCHENE | G71: POI | H71: POISSON | I71: LINEAIRE SURGELE | J71: REC045 | K71: F | L71: Absence de charge excessive | M71: -1 | N71: 1 | O71: OK | P71: 1 | U71: 1 | V71: SOUSSE
A72: 46 | B72: V2 | C72: 2017-06-14 | D72: 08h | E72: CAC | F72: Mme Meriam CHOUCHENE | G72: POI | H72: POISSON | I72: LINEAIRE SURGELE | J72: REC046 | K72: F | L72: Respect des DLC | M72: -10 | N72: 2 | O72: OK | P72: 2 | U72: 2 | V72: SOUSSE
A73: 47 | B73: V2 | C73: 2017-06-14 | D73: 08h | E73: CAC | F73: Mme Meriam CHOUCHENE | G73: POI | H73: POISSON | I73: LINEAIRE SURGELE | J73: REC047 | K73: S | L73: Température adaptée (-18°C) | M73: -2 | N73: 2 | O73: OK | P73: 2 | U73: 2 | V73: SOUSSE
A74: 48 | B74: V2 | C74: 2017-06-14 | D74: 08h | E74: CAC | F74: Mme Meriam CHOUCHENE | G74: POI | H74: POISSON | I74: LINEAIRE SURGELE | J74: REC048 | K74: F | L74: Aspect satisfaisant des produits | M74: -1 | N74: 1 | O74: OK | P74: 1 | U74: 1 | V74: SOUSSE
A75: 49 | B75: V2 | C75: 2017-06-14 | D75: 08h | E75: CAC | F75: Mme Meriam CHOUCHENE | G75: POI | H75: POISSON | I75: METHODES DE TRAVAIL | J75: REC049 | K75: F | L75: Glaçage hygiénique des caisses | M75: -1 | N75: 1 | O75: OK | P75: 1 | U75: 1 | V75: SOUSSE
A76: 50 | B76: V2 | C76: 2017-06-14 | D76: 08h | E76: CAC | F76: Mme Meriam CHOUCHENE | G76: POI | H76: POISSON | I76: METHODES DE TRAVAIL | J76: REC050 | K76: F | L76: Manipulations rigoureuses. | M76: -2 | N76: 2 | O76: OK | P76: 2 | U76: 2 | V76: SOUSSE
A77: 51 | B77: V2 | C77: 2017-06-14 | D77: 08h | E77: CAC | F77: Mme Meriam CHOUCHENE | G77: POI | H77: POISSON | I77: METHODES DE TRAVAIL | J77: REC051 | K77: F | L77: présence d'une pelle à glace pas à meme le sol. | M77: -1 | N77: 1 | O77: NOK | P77: 0 | Q77: La pelle à glace est abimée | R77: Remplacer la pelle. | T77: Ahmed ben Salem | U77: 0 | V77: SOUSSE
A78: 53 | B78: V2 | C78: 2017-06-14 | D78: 08h | E78: CAC | F78: Mme Meriam CHOUCHENE | G78: POI | H78: POISSON | I78: METHODES DE TRAVAIL | J78: REC053 | K78: F | L78: Entretien, propreté et stockage satisfaisants des pics prix | M78: -1 | N78: 1 | O78: Nobs | P78: Nobs | U78: Nobs | V78: SOUSSE
A79: 54 | B79: V2 | C79: 2017-06-14 | D79: 08h | E79: CAC | F79: Mme Meriam CHOUCHENE | G79: POI | H79: POISSON | I79: HYGIENE | J79: REC054 | K79: F | L79: Produits d’entretien conformes et correctement utilisés et rangés | M79: -1 | N79: 1 | O79: OK | P79: 1 | U79: 1 | V79: SOUSSE
A80: 56 | B80: V2 | C80: 2017-06-14 | D80: 08h | E80: CAC | F80: Mme Meriam CHOUCHENE | G80: POI | H80: POISSON | I80: HYGIENE | J80: REC056 | K80: F | L80: Présence du planning de nettoyage | M80: -1 | N80: 1 | O80: NA | P80: NA | U80: NA | V80: SOUSSE
B81: V4 | C81: 2015-12-01 | D81: 10h00 | E81: CAC | F81: Dr Hend KAMOUN | G81: POI | H81: POISSON | I81: HYGIENE | J81: REC057 | K81: F | L81: Propreté et entretien des évacuations au sol satisfaisants | M81: -1 | N81: 1 | O81: OK | P81: 1 | U81: 1 | V81: SOUSSE
A82: 57 | B82: V2 | C82: 2017-06-14 | D82: 08h | E82: CAC | F82: Mme Meriam CHOUCHENE | G82: POI | H82: POISSON | I82: HYGIENE | J82: REC057 | K82: S | L82: Propreté et entretien des évacuations au sol satisfaisants | M82: -1 | N82: 1 | O82: OK | P82: 1 | U82: 1 | V82: SOUSSE
A83: 58 | B83: V2 | C83: 2017-06-14 | D83: 08h | E83: CAC | F83: Mme Meriam CHOUCHENE | G83: POI | H83: POISSON | I83: HYGIENE | J83: REC058 | K83: F | L83: Entretien et propreté des bacs à glace satisfaisants | M83: -1 | N83: 1 | O83: Nobs | P83: Nobs | U83: Nobs | V83: SOUSSE
A84: 59 | B84: V2 | C84: 2017-06-14 | D84: 08h | E84: CAC | F84: Mme Meriam CHOUCHENE | G84: POI | H84: POISSON | I84: HYGIENE | J84: REC059 | K84: F | L84: Poubelles propres | M84: -1 | N84: 1 | O84: OK | P84: 1 | U84: 1 | V84: SOUSSE
A85: 60 | B85: V2 | C85: 2017-06-14 | D85: 08h | E85: CAC | F85: Mme Meriam CHOUCHENE | G85: POI | H85: POISSON | I85: HYGIENE | J85: REC060 | K85: F | L85: Mains propres et protection des plaies | M85: -1 | N85: 1 | O85: NOK | P85: 0 | Q85: absence de distributeur papier et distributeur savon liquide. | R85: Fixer les distributeurs. | S85: 2017-02-17 | T85: Ahmed ben Salem | U85: 0 | V85: SOUSSE
A86: 61 | B86: V2 | C86: 2017-06-14 | D86: 08h | E86: CAC | F86: Mme Meriam CHOUCHENE | G86: POI | H86: POISSON | I86: HYGIENE | J86: REC061 | K86: S | L86: Lave-mains équipés réglementairement | M86: -5 | N86: 2 | O86: OK | P86: 2 | U86: 2 | V86: SOUSSE
A87: 62 | B87: V2 | C87: 2017-06-14 | D87: 08h | E87: CAC | F87: Mme Meriam CHOUCHENE | G87: POI | H87: POISSON | I87: AUTOCONTROLES | J87: REC062 | K87: F | L87: Présence du référentiel qualité. | M87: -2 | N87: 2 | O87: OK | P87: =IF((O87="Nobs")+(O87="NA"),O87,IF(O87="ok",N87,N87+M87)) -> 2 | U87: 2 | V87: SOUSSE
A88: 63 | B88: V2 | C88: 2017-06-14 | D88: 08h | E88: CAC | F88: Mme Meriam CHOUCHENE | G88: POI | H88: POISSON | I88: AUTOCONTROLES | J88: REC063 | K88: F | L88: Suivi des autocontrôles de nettoyage | M88: -2 | N88: 2 | O88: OK | P88: 2 | U88: 2 | V88: SOUSSE
A89: 64 | B89: V2 | C89: 2017-06-14 | D89: 08h | E89: CAC | F89: Mme Meriam CHOUCHENE | G89: POI | H89: POISSON | I89: AUTOCONTROLES | J89: REC064 | K89: F | L89: Autocontrôle des températures | M89: -5 | N89: 5 | O89: OK | P89: 5 | U89: 5 | V89: SOUSSE
A90: 65 | B90: V2 | C90: 2017-06-14 | D90: 08h | E90: CAC | F90: Mme Meriam CHOUCHENE | G90: POI | H90: POISSON | I90: AUTOCONTROLES | J90: REC065 | K90: F | L90: Les résultats d'audits externes sont affichés au pole | M90: -1 | N90: 1 | O90: OK | P90: 1 | U90: 1 | V90: SOUSSE
A91: 66 | B91: =$E$11 -> V2 | C91: =$E$12 -> 2017-06-14 | D91: =$E$13 -> 08h | E91: =$F$14 -> CAC | F91: =$E$15 -> Mme Meriam CHOUCHENE | G91: POI | H91: POISSON | I91: AUTOCONTROLES | J91: REC066 | K91: F | L91: Mise en place de Plan d'action suite aux audits | M91: -1 | N91: 1 | O91: Nobs | P91: Nobs | U91: =P91 -> Nobs | V91: SOUSSE
A92: 67 | B92: V2 | C92: 2017-06-14 | D92: 08h | E92: CAC | F92: Mme Meriam CHOUCHENE | G92: POI | H92: POISSON | I92: AUTOCONTROLES | J92: REC067 | K92: F | L92: Mise en place d'actions correctives suite aux analyses non conformes (surgelés) | M92: -2 | N92: 2 | O92: OK | P92: 2 | U92: 2 | V92: SOUSSE
A93: 68 | B93: V2 | C93: 2017-06-14 | D93: 08h | E93: CAC | F93: Mme Meriam CHOUCHENE | G93: FRL | H93: FRUITS ET LEGUMES/OLIVES EPICES | I93: POLE | J93: REC068 | K93: F | L93: Linéaires propres. | M93: -5 | N93: 2 | O93: OK | P93: 2 | U93: 2 | V93: SOUSSE
B94: V2 | C94: 2017-06-14 | D94: 08h | E94: CAC | F94: Mme Meriam CHOUCHENE | G94: FRL | H94: FRUITS ET LEGUMES/OLIVES EPICES | I94: POLE | J94: REC069 | K94: F | L94: Entretien et propreté des sols, plinthes, murs plafonds, portes satisfaisants | M94: -5 | N94: 2 | O94: OK | P94: =IF((O94="Nobs")+(O94="NA"),O94,IF(O94="ok",N94,N94+M94)) -> 2 | U94: 2 | V94: SOUSSE
A95: 69 | B95: V2 | C95: 2017-06-14 | D95: 08h | E95: CAC | F95: Mme Meriam CHOUCHENE | G95: FRL | H95: FRUITS ET LEGUMES/OLIVES EPICES | I95: POLE | J95: REC069 | K95: S | L95: Entretien et propreté des sols, plinthes, murs plafonds, portes satisfaisants | M95: -5 | N95: 2 | O95: OK | P95: 2 | U95: 2 | V95: SOUSSE
B96: V2 | C96: 2017-06-14 | D96: 08h | E96: CAC | F96: Mme Meriam CHOUCHENE | G96: FRL | H96: FRUITS ET LEGUMES/OLIVES EPICES | I96: POLE | J96: REC070 | K96: F | L96: Suivi des autocontrôles de nettoyage | M96: -1 | N96: 1 | O96: NOK | P96: =IF((O96="Nobs")+(O96="NA"),O96,IF(O96="ok",N96,N96+M96)) -> 0 | Q96: Absence de séparation dans le temps pour la sortie des produits casse à partir de la CF FLEG. | R96: Fixer les horaires de sortie des produits casse (passant par les chambres froides.) | U96: 0 | V96: SOUSSE
B97: V2 | C97: 2017-06-14 | D97: 08h | E97: CAC | F97: Mme Meriam CHOUCHENE | G97: FRL | H97: FRUITS ET LEGUMES/OLIVES EPICES | I97: POLE | J97: REC070 | K97: F | L97: Entretien et propreté des évacuations au sol satisfaisants | M97: -1 | N97: 1 | O97: OK | P97: =IF((O97="Nobs")+(O97="NA"),O97,IF(O97="ok",N97,N97+M97)) -> 1 | U97: 1 | V97: SOUSSE
A98: 70 | B98: V2 | C98: 2017-06-14 | D98: 08h | E98: CAC | F98: Mme Meriam CHOUCHENE | G98: FRL | H98: FRUITS ET LEGUMES/OLIVES EPICES | I98: POLE | J98: REC070 | K98: S | L98: Entretien et propreté des évacuations au sol satisfaisants | M98: -1 | N98: 1 | O98: OK | P98: 1 | U98: 1 | V98: SOUSSE
A99: 71 | B99: V2 | C99: 2017-06-14 | D99: 08h | E99: CAC | F99: Mme Meriam CHOUCHENE | G99: FRL | H99: FRUITS ET LEGUMES/OLIVES EPICES | I99: POLE | J99: REC071 | K99: S | L99: Entretien et Nettoyage des évaporateurs | M99: -2 | N99: 2 | O99: OK | P99: 2 | U99: 2 | V99: SOUSSE
A100: 72 | B100: V2 | C100: 2017-06-14 | D100: 08h | E100: CAC | F100: Mme Meriam CHOUCHENE | G100: FRL | H100: FRUITS ET LEGUMES/OLIVES EPICES | I100: POLE | J100: REC072 | K100: F | L100: Absence de produits non identifiés | M100: -5 | N100: 2 | O100: OK | P100: 2 | U100: 2 | V100: SOUSSE
A101: 73 | B101: V2 | C101: 2017-06-14 | D101: 08h | E101: CAC | F101: Mme Meriam CHOUCHENE | G101: FRL | H101: FRUITS ET LEGUMES/OLIVES EPICES | I101: POLE | J101: REC073 | K101: S | L101: Présence et bon fonctionnement du thermomètre enregistreur | M101: -1 | N101: 1 | O101: OK | P101: 1 | U101: 1 | V101: SOUSSE
A102: 74 | B102: V2 | C102: 2017-06-14 | D102: 08h | E102: CAC | F102: Mme Meriam CHOUCHENE | G102: FRL | H102: FRUITS ET LEGUMES/OLIVES EPICES | I102: POLE | J102: REC074 | K102: F | L102: Respect des DLC /DLUO (olives) | M102: -10 | N102: 2 | O102: OK | P102: 2 | U102: 2 | V102: SOUSSE
A103: 75 | B103: V2 | C103: 2017-06-14 | D103: 08h | E103: CAC | F103: Mme Meriam CHOUCHENE | G103: FRL | H103: FRUITS ET LEGUMES/OLIVES EPICES | I103: POLE | J103: REC075 | K103: F | L103: Respect des DLC /DLUO (fruits et légumes emballés) | M103: -10 | N103: 2 | O103: OK | P103: 2 | U103: 2 | V103: SOUSSE
A104: 76 | B104: V2 | C104: 2017-06-14 | D104: 08h | E104: CAC | F104: Mme Meriam CHOUCHENE | G104: FRL | H104: FRUITS ET LEGUMES/OLIVES EPICES | I104: POLE | J104: REC076 | K104: F | L104: Respect des DLC /DLUO (fruits secs, épices) | M104: -10 | N104: 2 | O104: OK | P104: 2 | U104: 2 | V104: SOUSSE
A105: 77 | B105: V2 | C105: 2017-06-14 | D105: 08h | E105: CAC | F105: Mme Meriam CHOUCHENE | G105: FRL | H105: FRUITS ET LEGUMES/OLIVES EPICES | I105: POLE | J105: REC077 | K105: S | L105: Respect des températures réglementaires | M105: -2 | N105: 2 | O105: OK | P105: 2 | U105: 2 | V105: SOUSSE
A106: 78 | B106: V2 | C106: 2017-06-14 | D106: 08h | E106: CAC | F106: Mme Meriam CHOUCHENE | G106: FRL | H106: FRUITS ET LEGUMES/OLIVES EPICES | I106: POLE | J106: REC078 | K106: F | L106: Lisibilité de l'étiquetage et balisage complet | M106: -1 | N106: 1 | O106: OK | P106: 1 | U106: 1 | V106: SOUSSE
A107: 79 | B107: V2 | C107: 2017-06-14 | D107: 08h | E107: CAC | F107: Mme Meriam CHOUCHENE | G107: FRL | H107: FRUITS ET LEGUMES/OLIVES EPICES | I107: POLE | J107: REC079 | K107: F | L107: Affichage du prix | M107: -1 | N107: 1 | O107: NOK | P107: 0 | Q107: présence de traces de rouille sur les étagères | R107: Procéder à un traitement anti rouille et peinture pour les étagères. | S107: 2017-02-17 | U107: 0 | V107: SOUSSE
A108: 81 | B108: V2 | C108: 2017-06-14 | D108: 08h | E108: CAC | F108: Mme Meriam CHOUCHENE | G108: FRL | H108: FRUITS ET LEGUMES/OLIVES EPICES | I108: POLE | J108: REC081 | K108: F | L108: Matériel propre (caisse, table, balance,etagere) | M108: -1 | N108: 1 | O108: OK | P108: 1 | U108: 1 | V108: SOUSSE
A109: 82 | B109: V2 | C109: 2017-06-14 | D109: 08h | E109: CAC | F109: Mme Meriam CHOUCHENE | G109: FRL | H109: FRUITS ET LEGUMES/OLIVES EPICES | I109: POLE | J109: REC082 | K109: F | L109: Tri des produits effectué. | M109: -10 | N109: 2 | O109: OK | P109: 2 | U109: 2 | V109: SOUSSE
A110: 83 | B110: V2 | C110: 2017-06-14 | D110: 08h | E110: CAC | F110: Mme Meriam CHOUCHENE | G110: FRL | H110: FRUITS ET LEGUMES/OLIVES EPICES | I110: POLE | J110: REC083 | K110: F | L110: Rotation des produits effectuée. | M110: -2 | N110: 2 | O110: OK | P110: 2 | U110: 2 | V110: SOUSSE
A111: 84 | B111: V2 | C111: 2017-06-14 | D111: 08h | E111: CAC | F111: Mme Meriam CHOUCHENE | G111: FRL | H111: FRUITS ET LEGUMES/OLIVES EPICES | I111: POLE | J111: REC084 | K111: F | L111: Absence de stockage au sol | M111: -1 | N111: 1 | O111: OK | P111: 1 | U111: 1 | V111: SOUSSE
A112: 85 | B112: V2 | C112: 2017-06-14 | D112: 08h | E112: CAC | F112: Mme Meriam CHOUCHENE | G112: FRL | H112: FRUITS ET LEGUMES/OLIVES EPICES | I112: POLE | J112: REC085 | K112: F | L112: Absence de mélange de produits différents. | M112: -2 | N112: 2 | O112: OK | P112: 2 | U112: 2 | V112: SOUSSE
A113: 86 | B113: V2 | C113: 2017-06-14 | D113: 08h | E113: CAC | F113: Mme Meriam CHOUCHENE | G113: FRL | H113: FRUITS ET LEGUMES/OLIVES EPICES | I113: POLE | J113: REC086 | K113: F | L113: Balances tarées | M113: -5 | N113: 2 | O113: OK | P113: 2 | U113: 2 | V113: SOUSSE
A114: 88 | B114: V2 | C114: 2017-06-14 | D114: 08h | E114: CAC | F114: Mme Meriam CHOUCHENE | G114: FRL | H114: FRUITS ET LEGUMES/OLIVES EPICES | I114: HYGIENE | J114: REC088 | K114: F | L114: Produits d’entretien conformes et correctement utilisés et rangés | M114: -5 | N114: 2 | O114: OK | P114: 2 | U114: 2 | V114: SOUSSE
A115: 89 | B115: V2 | C115: 2017-06-14 | D115: 08h | E115: CAC | F115: Mme Meriam CHOUCHENE | G115: FRL | H115: FRUITS ET LEGUMES/OLIVES EPICES | I115: HYGIENE | J115: REC089 | K115: F | L115: Présence du planning de nettoyage | M115: -1 | N115: 1 | O115: OK | P115: 1 | U115: 1 | V115: SOUSSE
A116: 90 | B116: V2 | C116: 2017-06-14 | D116: 08h | E116: CAC | F116: Mme Meriam CHOUCHENE | G116: FRL | H116: FRUITS ET LEGUMES/OLIVES EPICES | I116: AUTOCONTROLES | J116: REC090 | K116: F | L116: Présence du référentiel qualité | M116: -2 | N116: 2 | O116: OK | P116: 2 | U116: 2 | V116: SOUSSE
A117: 91 | B117: V2 | C117: 2017-06-14 | D117: 08h | E117: CAC | F117: Mme Meriam CHOUCHENE | G117: FRL | H117: FRUITS ET LEGUMES/OLIVES EPICES | I117: AUTOCONTROLES | J117: REC091 | K117: F | L117: Autocontrôle des températures | M117: -5 | N117: 5 | O117: OK | P117: 5 | U117: 5 | V117: SOUSSE
A118: 92 | B118: V2 | C118: 2017-06-14 | D118: 08h | E118: CAC | F118: Mme Meriam CHOUCHENE | G118: FRL | H118: FRUITS ET LEGUMES/OLIVES EPICES | I118: AUTOCONTROLES | J118: REC092 | K118: F | L118: Mise en place des auto-controles du nettoyage | M118: -2 | N118: 2 | O118: OK | P118: 2 | U118: 2 | V118: SOUSSE
A119: 93 | B119: V2 | C119: 2017-06-14 | D119: 08h | E119: CAC | F119: Mme Meriam CHOUCHENE | G119: FRL | H119: FRUITS ET LEGUMES/OLIVES EPICES | I119: AUTOCONTROLES | J119: REC093 | K119: F | L119: Les résultats d'audits externes sont affichés au pole | M119: -1 | N119: 1 | O119: OK | P119: 1 | U119: 1 | V119: SOUSSE
A120: 94 | B120: V2 | C120: 2017-06-14 | D120: 08h | E120: CAC | F120: Mme Meriam CHOUCHENE | G120: FRL | H120: FRUITS ET LEGUMES/OLIVES EPICES | I120: AUTOCONTROLES | J120: REC094 | K120: F | L120: Mise en place de Plan d'action suite aux audits | M120: -1 | N120: 1 | O120: NOK | P120: 0 | Q120: Bien que la quantité de ferraille et les restes d'emballage a diminué, une partie demeure au niveau de la réserve. Présence des fientes d'oiseaux aux murs de la réserve. | R120: Eliminer la totalité de la ferraille. Nettoyer les murs. | S120: 14/06/2017 17/02/2017 | T120: Hamza BRAIEK | U120: 0 | V120: SOUSSE
A121: 95 | B121: V2 | C121: 2017-06-14 | D121: 08h | E121: CAC | F121: Mme Meriam CHOUCHENE | G121: EPL | H121: EPICERIE /LIQUIDES | I121: RESERVE | J121: REC095 | K121: F | L121: Réserve propre et rangée. | M121: -5 | N121: 2 | O121: OK | P121: 2 | U121: 2 | V121: SOUSSE
A122: 96 | B122: V2 | C122: 2017-06-14 | D122: 08h | E122: CAC | F122: Mme Meriam CHOUCHENE | G122: EPL | H122: EPICERIE /LIQUIDES | I122: RESERVE | J122: REC096 | K122: F | L122: Zone de retour produit balisée | M122: -2 | N122: 2 | O122: NOK | P122: 0 | Q122: Entreposage des sacs de farine sur des palettes en bois abimées | R122: Utiliser des palettes en bois en bon état. | T122: Hamza BRAIEK | U122: 0 | V122: SOUSSE
A123: 97 | B123: V2 | C123: 2017-06-14 | D123: 08h | E123: CAC | F123: Mme Meriam CHOUCHENE | G123: EPL | H123: EPICERIE /LIQUIDES | I123: RESERVE | J123: REC097 | K123: F | L123: Absence de stockage au sol | M123: -1 | N123: 1 | O123: NOK | P123: 0 | Q123: Stockage du lait dans le couloir destiné à l'entreposage des produits casse (couloir derrière les chambres froides). | R123: Stocker le lait dans la zone de stockage des liquides. | S123: 2017-06-14 | T123: Hamza BRAIEK | U123: 0 | V123: SOUSSE
A124: 98 | B124: V2 | C124: 2017-06-14 | D124: 08h | E124: CAC | F124: Mme Meriam CHOUCHENE | G124: EPL | H124: EPICERIE /LIQUIDES | I124: RESERVE | J124: REC098 | K124: F | L124: Produits consignés isolés et balisés | M124: -2 | N124: 2 | O124: OK | P124: 2 | U124: 2 | V124: SOUSSE
A125: 99 | B125: V2 | C125: 2017-06-14 | D125: 08h | E125: CAC | F125: Mme Meriam CHOUCHENE | G125: EPL | H125: EPICERIE /LIQUIDES | I125: RESERVE | J125: REC099 | K125: F | L125: Respect des DLUO | M125: -20 | N125: 2 | O125: NA | P125: NA | U125: NA | V125: SOUSSE
A126: 100 | B126: V2 | C126: 2017-06-14 | D126: 08h | E126: CAC | F126: Mme Meriam CHOUCHENE | G126: EPL | H126: EPICERIE /LIQUIDES | I126: HYGIENE | J126: REC100 | K126: F | L126: Présence du planning de nettoyage | M126: -1 | N126: 1 | O126: OK | P126: 1 | U126: 1 | V126: SOUSSE
B127: V2 | C127: 2017-06-14 | D127: 08h | E127: CAC | F127: Mme Meriam CHOUCHENE | G127: EPL | H127: EPICERIE /LIQUIDES | I127: LINEAIRE | J127: REC101 | K127: S | L127: Entretien des linéaires | M127: -10 | N127: 5 | O127: OK | P127: =IF((O127="Nobs")+(O127="NA"),O127,IF(O127="ok",N127,N127+M127)) -> 5 | U127: 5 | V127: SOUSSE
A128: 101 | B128: V2 | C128: 2017-06-14 | D128: 08h | E128: CAC | F128: Mme Meriam CHOUCHENE | G128: EPL | H128: EPICERIE /LIQUIDES | I128: LINEAIRE | J128: REC101 | K128: F | L128: Linéaires propres et rangés | M128: -10 | N128: 5 | O128: NOK | P128: -5 | Q128: Présence de rouille sur les boites de tomate pelée (DLUO 15/07/2019). Présence des éclaboussures de confiture sur l'étagère suite à un éclatement de la boite. | R128: Eliminer les boites de conserve rouillées. | S128: 2017-06-14 | T128: Hamza BRAIEK | U128: -5 | V128: SOUSSE
A129: 102 | B129: V2 | C129: 2017-06-14 | D129: 08h | E129: CAC | F129: Mme Meriam CHOUCHENE | G129: EPL | H129: EPICERIE /LIQUIDES | I129: LINEAIRE | J129: REC102 | K129: F | L129: Aspect satisfaisant des produits. | M129: -1 | N129: 1 | O129: OK | P129: 1 | U129: 1 | V129: SOUSSE
A130: 103 | B130: V2 | C130: 2017-06-14 | D130: 08h | E130: CAC | F130: Mme Meriam CHOUCHENE | G130: EPL | H130: EPICERIE /LIQUIDES | I130: LINEAIRE | J130: REC103 | K130: F | L130: Absence de produits non identifiés | M130: -1 | N130: 1 | O130: OK | P130: 1 | U130: 1 | V130: SOUSSE
A131: 104 | B131: V2 | C131: 2017-06-14 | D131: 08h | E131: CAC | F131: Mme Meriam CHOUCHENE | G131: EPL | H131: EPICERIE /LIQUIDES | I131: LINEAIRE | J131: REC104 | K131: F | L131: RESPECT DES DLUO | M131: -20 | N131: 2 | O131: OK | P131: 2 | U131: 2 | V131: SOUSSE
A132: 105 | B132: V2 | C132: 2017-06-14 | D132: 08h | E132: CAC | F132: Mme Meriam CHOUCHENE | G132: EPL | H132: EPICERIE /LIQUIDES | I132: AUTOCONTROLES | J132: REC105 | K132: F | L132: Présence du référentiel Qualité | M132: -2 | N132: 2 | O132: Nobs | P132: Nobs | U132: Nobs | V132: SOUSSE
A133: 106 | B133: V2 | C133: 2017-06-14 | D133: 08h | E133: CAC | F133: Mme Meriam CHOUCHENE | G133: EPL | H133: EPICERIE /LIQUIDES | I133: AUTOCONTROLES | J133: REC106 | K133: F | L133: Suivi des autocontrôles de nettoyage | M133: -2 | N133: 2 | O133: OK | P133: 2 | U133: 2 | V133: SOUSSE
A134: 107 | B134: V2 | C134: 2017-06-14 | D134: 08h | E134: CAC | F134: Mme Meriam CHOUCHENE | G134: EPL | H134: EPICERIE /LIQUIDES | I134: AUTOCONTROLES | J134: REC107 | K134: F | L134: Les résultats d'audits externes sont affichés au pole | M134: -1 | N134: 1 | O134: OK | P134: 1 | U134: 1 | V134: SOUSSE
A135: 108 | B135: V2 | C135: 2017-06-14 | D135: 08h | E135: CAC | F135: Mme Meriam CHOUCHENE | G135: EPL | H135: EPICERIE /LIQUIDES | I135: AUTOCONTROLES | J135: REC108 | K135: F | L135: Mise en place de Plan d'action suite aux audits | M135: -1 | N135: 1 | O135: NA | P135: NA | U135: NA | V135: SOUSSE
A136: 109 | B136: V2 | C136: 2017-06-14 | D136: 08h | E136: CAC | F136: Mme Meriam CHOUCHENE | G136: PBO | H136: PLS/BOUCHERIE | I136: CHAMBRE FROIDE PLS | J136: REC109 | K136: S | L136: Température adaptée (+4°C) | M136: -1 | N136: 1 | O136: NA | P136: NA | U136: NA | V136: SOUSSE
B137: V2 | C137: 2017-06-14 | D137: 08h | E137: CAC | F137: Mme Meriam CHOUCHENE | G137: PBO | H137: PLS/BOUCHERIE | I137: CHAMBRE FROIDE PLS | J137: REC110 | K137: F | L137: Propreté et entretien de la chambre froide satisfaisant Sols, évacuations, Murs, plafonds, portes, Etagères | M137: -5 | N137: 2 | O137: NA | P137: =IF((O137="Nobs")+(O137="NA"),O137,IF(O137="ok",N137,N137+M137)) -> NA | U137: NA | V137: SOUSSE
A138: 110 | B138: V2 | C138: 2017-06-14 | D138: 08h | E138: CAC | F138: Mme Meriam CHOUCHENE | G138: PBO | H138: PLS/BOUCHERIE | I138: CHAMBRE FROIDE PLS | J138: REC110 | K138: S | L138: Propreté et entretien de la chambre froide satisfaisant Sols, évacuations, Murs, plafonds, portes, Etagères | M138: -5 | N138: 2 | O138: NA | P138: NA | U138: NA | V138: SOUSSE
A139: 113 | B139: V2 | C139: 2017-06-14 | D139: 08h | E139: CAC | F139: Mme Meriam CHOUCHENE | G139: PBO | H139: PLS/BOUCHERIE | I139: CHAMBRE FROIDE PLS | J139: REC113 | K139: F | L139: Rangement satisfaisant | M139: -1 | N139: 1 | O139: NA | P139: NA | U139: NA | V139: SOUSSE
A140: 114 | B140: V2 | C140: 2017-06-14 | D140: 08h | E140: CAC | F140: Mme Meriam CHOUCHENE | G140: PBO | H140: PLS/BOUCHERIE | I140: CHAMBRE FROIDE PLS | J140: REC114 | K140: F | L140: Absence de stockage au sol | M140: -1 | N140: 1 | O140: NA | P140: NA | U140: NA | V140: SOUSSE
A141: 115 | B141: V2 | C141: 2017-06-14 | D141: 08h | E141: CAC | F141: Mme Meriam CHOUCHENE | G141: PBO | H141: PLS/BOUCHERIE | I141: CHAMBRE FROIDE PLS | J141: REC115 | K141: F | L141: Absence de déchets non isolés/ non identifiés | M141: -10 | N141: 2 | O141: NA | P141: NA | U141: NA | V141: SOUSSE
A142: 116 | B142: V2 | C142: 2017-06-14 | D142: 08h | E142: CAC | F142: Mme Meriam CHOUCHENE | G142: PBO | H142: PLS/BOUCHERIE | I142: CHAMBRE FROIDE PLS | J142: REC116 | K142: F | L142: Respect des DLC/DLUO | M142: -10 | N142: 2 | O142: NA | P142: NA | U142: NA | V142: SOUSSE
A143: 117 | B143: V2 | C143: 2017-06-14 | D143: 08h | E143: CAC | F143: Mme Meriam CHOUCHENE | G143: PBO | H143: PLS/BOUCHERIE | I143: CHAMBRE FROIDE PLS | J143: REC117 | K143: F | L143: Absence de palette en bois, de carton | M143: -1 | N143: 1 | O143: NA | P143: NA | U143: NA | V143: SOUSSE
A144: 118 | B144: V2 | C144: 2017-06-14 | D144: 08h | E144: CAC | F144: Mme Meriam CHOUCHENE | G144: PBO | H144: PLS/BOUCHERIE | I144: CHAMBRE FROIDE PLS | J144: REC118 | K144: F | L144: Absence de produit non identifié en chambre froide | M144: -2 | N144: 2 | O144: NA | P144: NA | U144: NA | V144: SOUSSE
A145: 119 | B145: V2 | C145: 2017-06-14 | D145: 08h | E145: CAC | F145: Mme Meriam CHOUCHENE | G145: PBO | H145: PLS/BOUCHERIE | I145: CHAMBRE FROIDE PLS | J145: REC119 | K145: S | L145: Présence et bon fonctionnement du thermomètre enregistreur | M145: -1 | N145: 1 | O145: NA | P145: NA | U145: NA | V145: SOUSSE
A146: 120 | B146: V2 | C146: 2017-06-14 | D146: 08h | E146: CAC | F146: Mme Meriam CHOUCHENE | G146: PBO | H146: PLS/BOUCHERIE | I146: CHAMBRE FROIDE PLS | J146: REC120 | K146: F | L146: Porte fermée | M146: -1 | N146: 1 | O146: OK | P146: 1 | U146: 1 | V146: SOUSSE
A147: 121 | B147: V2 | C147: 2017-06-14 | D147: 08h | E147: CAC | F147: Mme Meriam CHOUCHENE | G147: PBO | H147: PLS/BOUCHERIE | I147: HYGIENE | J147: REC121 | K147: F | L147: Produits d’entretien conformes et correctement utilisés et rangés | M147: -1 | N147: 1 | O147: OK | P147: 1 | U147: 1 | V147: SOUSSE
A148: 123 | B148: V2 | C148: 2017-06-14 | D148: 08h | E148: CAC | F148: Mme Meriam CHOUCHENE | G148: PBO | H148: PLS/BOUCHERIE | I148: HYGIENE | J148: REC123 | K148: F | L148: Présence du planning de nettoyage | M148: -1 | N148: 1 | O148: NOK | P148: 0 | Q148: Linéaires rouillées | R148: Repeindre les étagères. | T148: Brahim brongi | U148: 0 | V148: SOUSSE
B149: V2 | C149: 2017-06-14 | D149: 08h | E149: CAC | F149: Mme Meriam CHOUCHENE | G149: PBO | H149: PLS/BOUCHERIE | I149: POLE | J149: REC124 | K149: S | L149: Entretien des linéaires | M149: -5 | N149: 2 | O149: OK | P149: =IF((O149="Nobs")+(O149="NA"),O149,IF(O149="ok",N149,N149+M149)) -> 2 | U149: 2 | V149: SOUSSE
A150: 124 | B150: V2 | C150: 2017-06-14 | D150: 08h | E150: CAC | F150: Mme Meriam CHOUCHENE | G150: PBO | H150: PLS/BOUCHERIE | I150: POLE | J150: REC124 | K150: F | L150: Linéaires propres. | M150: -5 | N150: 2 | O150: NOK | P150: -3 | Q150: Résine écaillée la vitre de la porte est brisée. | R150: Fixer le revêtement du sol. Remplacer la vitre brisée. | T150: Brahim brongi | U150: -3 | V150: SOUSSE
B151: V2 | C151: 2017-06-14 | D151: 08h | E151: CAC | F151: Mme Meriam CHOUCHENE | G151: PBO | H151: PLS/BOUCHERIE | I151: POLE | J151: REC125 | K151: S | L151: Entretien et propreté des sols, plinthes, murs plafonds, portes satisfaisants | M151: -5 | N151: 2 | O151: NOK | P151: =IF((O151="Nobs")+(O151="NA"),O151,IF(O151="ok",N151,N151+M151)) -> -3 | Q151: Présence de piqûres de moisissures sur la porte. | R151: Renforcer le nettoyage à ce niveau. | T151: Brahim brongi | U151: -3 | V151: SOUSSE
A152: 125 | B152: V2 | C152: 2017-06-14 | D152: 08h | E152: CAC | F152: Mme Meriam CHOUCHENE | G152: PBO | H152: PLS/BOUCHERIE | I152: POLE | J152: REC125 | K152: F | L152: Entretien et propreté des sols, plinthes, murs plafonds, portes satisfaisants | M152: -5 | N152: 2 | O152: OK | P152: 2 | U152: 2 | V152: SOUSSE
B153: V2 | C153: 2017-06-14 | D153: 08h | E153: CAC | F153: Mme Meriam CHOUCHENE | G153: PBO | H153: PLS/BOUCHERIE | I153: POLE | J153: REC126 | K153: F | L153: Entretien et propreté des évacuations au sol satisfaisants | M153: -1 | N153: 1 | O153: OK | P153: =IF((O153="Nobs")+(O153="NA"),O153,IF(O153="ok",N153,N153+M153)) -> 1 | U153: 1 | V153: SOUSSE
A154: 126 | B154: V2 | C154: 2017-06-14 | D154: 08h | E154: CAC | F154: Mme Meriam CHOUCHENE | G154: PBO | H154: PLS/BOUCHERIE | I154: POLE | J154: REC126 | K154: S | L154: Entretien et propreté des évacuations au sol satisfaisants | M154: -1 | N154: 1 | O154: OK | P154: =IF((O154="Nobs")+(O154="NA"),O154,IF(O154="ok",N154,N154+M154)) -> 1 | U154: 1 | V154: SOUSSE
A155: 127 | B155: V2 | C155: 2017-06-14 | D155: 08h | E155: CAC | F155: Mme Meriam CHOUCHENE | G155: PBO | H155: PLS/BOUCHERIE | I155: POLE | J155: REC127 | K155: S | L155: Présence et bon fonctionnement du thermomètre enregistreur | M155: -1 | N155: 1 | O155: OK | P155: 1 | U155: =P155 -> 1 | V155: SOUSSE
A156: 128 | B156: V2 | C156: 2017-06-14 | D156: 08h | E156: CAC | F156: Mme Meriam CHOUCHENE | G156: PBO | H156: PLS/BOUCHERIE | I156: POLE | J156: REC128 | K156: S | L156: Entretien et Nettoyage des évaporateurs | M156: -2 | N156: 2 | O156: OK | P156: 2 | U156: 2 | V156: SOUSSE
A157: 129 | B157: V2 | C157: 2017-06-14 | D157: 08h | E157: CAC | F157: Mme Meriam CHOUCHENE | G157: PBO | H157: PLS/BOUCHERIE | I157: POLE | J157: REC129 | K157: F | L157: Absence de produits non identifiés | M157: -5 | N157: 2 | O157: OK | P157: 2 | U157: 2 | V157: SOUSSE
A158: 130 | B158: =$E$11 -> V2 | C158: =$E$12 -> 2017-06-14 | D158: =$E$13 -> 08h | E158: =$F$14 -> CAC | F158: =$E$15 -> Mme Meriam CHOUCHENE | G158: PBO | H158: PLS/BOUCHERIE | I158: POLE | J158: REC130 | K158: F | L158: Absence de palette en bois, de carton | M158: -1 | N158: 1 | O158: OK | P158: 1 | U158: 1 | V158: SOUSSE
A159: 131 | B159: V2 | C159: 2017-06-14 | D159: 08h | E159: CAC | F159: Mme Meriam CHOUCHENE | G159: PBO | H159: PLS/BOUCHERIE | I159: POLE | J159: REC131 | K159: F | L159: Respect des DLC (crèmerie et ultra frais) | M159: -10 | N159: 2 | O159: OK | P159: 2 | U159: 2 | V159: SOUSSE
A160: 132 | B160: V2 | C160: 2017-06-14 | D160: 08h | E160: CAC | F160: Mme Meriam CHOUCHENE | G160: PBO | H160: PLS/BOUCHERIE | I160: POLE | J160: REC132 | K160: F | L160: Respect des DLC (charcuterie) | M160: -10 | N160: 2 | O160: OK | P160: 2 | U160: 2 | V160: SOUSSE
A161: 133 | B161: V2 | C161: 2017-06-14 | D161: 08h | E161: CAC | F161: Mme Meriam CHOUCHENE | G161: PBO | H161: PLS/BOUCHERIE | I161: POLE | J161: REC133 | K161: F | L161: Respect des DLC (Boucherie) | M161: -10 | N161: 2 | O161: OK | P161: 2 | U161: 2 | V161: SOUSSE
A162: 134 | B162: V2 | C162: 2017-06-14 | D162: 08h | E162: CAC | F162: Mme Meriam CHOUCHENE | G162: PBO | H162: PLS/BOUCHERIE | I162: POLE | J162: REC134 | K162: F | L162: Respect des DLC/DLUO (viennoiserie industrielle) | M162: -10 | N162: 2 | O162: OK | P162: 2 | U162: 2 | V162: SOUSSE
A163: 135 | B163: V2 | C163: 2017-06-14 | D163: 08h | E163: CAC | F163: Mme Meriam CHOUCHENE | G163: PBO | H163: PLS/BOUCHERIE | I163: POLE | J163: REC135 | K163: S | L163: Respect des températures réglementaires | M163: -2 | N163: 2 | O163: OK | P163: 2 | U163: 2 | V163: SOUSSE
A164: 136 | B164: V2 | C164: 2017-06-14 | D164: 08h | E164: CAC | F164: Mme Meriam CHOUCHENE | G164: PBO | H164: PLS/BOUCHERIE | I164: POLE | J164: REC136 | K164: F | L164: Etiquetage conforme | M164: -2 | N164: 2 | O164: OK | P164: 2 | U164: 2 | V164: SOUSSE
A165: 137 | B165: V2 | C165: 2017-06-14 | D165: 08h | E165: CAC | F165: Mme Meriam CHOUCHENE | G165: PBO | H165: PLS/BOUCHERIE | I165: POLE | J165: REC137 | K165: F | L165: Absence de charge excessive | M165: -1 | N165: 1 | O165: OK | P165: 1 | U165: 1 | V165: SOUSSE
A166: 138 | B166: V2 | C166: 2017-06-14 | D166: 08h | E166: CAC | F166: Mme Meriam CHOUCHENE | G166: PBO | H166: PLS/BOUCHERIE | I166: POLE | J166: REC138 | K166: F | L166: Absence de stockage au sol | M166: -1 | N166: 1 | O166: OK | P166: 1 | U166: 1 | V166: SOUSSE
A167: 139 | B167: V2 | C167: 2017-06-14 | D167: 08h | E167: CAC | F167: Mme Meriam CHOUCHENE | G167: PBO | H167: PLS/BOUCHERIE | I167: POLE | J167: REC139 | K167: F | L167: Aspect des produits satisfaisant. | M167: -1 | N167: 1 | O167: OK | P167: 1 | U167: 1 | V167: SOUSSE
A168: 140 | B168: V2 | C168: 2017-06-14 | D168: 08h | E168: CAC | F168: Mme Meriam CHOUCHENE | G168: PBO | H168: PLS/BOUCHERIE | I168: LINEAIRE SURGELE | J168: REC140 | K168: F | L168: Absence d'attente hors froid | M168: -1 | N168: 1 | O168: OK | P168: 1 | U168: 1 | V168: SOUSSE
A169: 141 | B169: V2 | C169: 2017-06-14 | D169: 08h | E169: CAC | F169: Mme Meriam CHOUCHENE | G169: PBO | H169: PLS/BOUCHERIE | I169: LINEAIRE SURGELE | J169: REC141 | K169: F | L169: Propreté des meubles satisfaisants | M169: -5 | N169: 2 | O169: OK | P169: 2 | U169: 2 | V169: SOUSSE
A170: 142 | B170: V2 | C170: 2017-06-14 | D170: 08h | E170: CAC | F170: Mme Meriam CHOUCHENE | G170: PBO | H170: PLS/BOUCHERIE | I170: LINEAIRE SURGELE | J170: REC142 | K170: S | L170: entretien des meubles satisfaisants | M170: -5 | N170: 2 | O170: OK | P170: 2 | U170: 2 | V170: SOUSSE
A171: 143 | B171: V2 | C171: 2017-06-14 | D171: 08h | E171: CAC | F171: Mme Meriam CHOUCHENE | G171: PBO | H171: PLS/BOUCHERIE | I171: LINEAIRE SURGELE | J171: REC143 | K171: F | L171: Absence de charge excessive | M171: -1 | N171: 1 | O171: OK | P171: 1 | U171: 1 | V171: SOUSSE
A172: 144 | B172: V2 | C172: 2017-06-14 | D172: 08h | E172: CAC | F172: Mme Meriam CHOUCHENE | G172: PBO | H172: PLS/BOUCHERIE | I172: LINEAIRE SURGELE | J172: REC144 | K172: F | L172: Respect des DLC (PLS) | M172: -10 | N172: 2 | O172: OK | P172: 2 | U172: 2 | V172: SOUSSE
A173: 145 | B173: V2 | C173: 2017-06-14 | D173: 08h | E173: CAC | F173: Mme Meriam CHOUCHENE | G173: PBO | H173: PLS/BOUCHERIE | I173: LINEAIRE SURGELE | J173: REC145 | K173: F | L173: Respect des DLC (Boucherie) | M173: -10 | N173: 2 | O173: OK | P173: 2 | U173: 2 | V173: SOUSSE
A174: 146 | B174: V2 | C174: 2017-06-14 | D174: 08h | E174: CAC | F174: Mme Meriam CHOUCHENE | G174: PBO | H174: PLS/BOUCHERIE | I174: LINEAIRE SURGELE | J174: REC146 | K174: S | L174: Température adaptée (-18°C) | M174: -2 | N174: 2 | O174: OK | P174: 2 | U174: 2 | V174: SOUSSE
A175: 147 | B175: V2 | C175: 2017-06-14 | D175: 08h | E175: CAC | F175: Mme Meriam CHOUCHENE | G175: PBO | H175: PLS/BOUCHERIE | I175: LINEAIRE SURGELE | J175: REC147 | K175: F | L175: Aspect satisfaisant des produits | M175: -1 | N175: 1 | O175: OK | P175: 1 | U175: 1 | V175: SOUSSE
A176: 148 | B176: V2 | C176: 2017-06-14 | D176: 08h | E176: CAC | F176: Mme Meriam CHOUCHENE | G176: PBO | H176: PLS/BOUCHERIE | I176: AUTOCONTROLES | J176: REC148 | K176: F | L176: Présence du référentiel qualité | M176: -2 | N176: 2 | O176: OK | P176: 2 | U176: 2 | V176: SOUSSE
A177: 149 | B177: V2 | C177: 2017-06-14 | D177: 08h | E177: CAC | F177: Mme Meriam CHOUCHENE | G177: PBO | H177: PLS/BOUCHERIE | I177: AUTOCONTROLES | J177: REC149 | K177: F | L177: Mise en place des autocontrôles des températures | M177: -5 | N177: 5 | O177: OK | P177: 5 | U177: 5 | V177: SOUSSE
A178: 150 | B178: V2 | C178: 2017-06-14 | D178: 08h | E178: CAC | F178: Mme Meriam CHOUCHENE | G178: PBO | H178: PLS/BOUCHERIE | I178: AUTOCONTROLES | J178: REC150 | K178: F | L178: Mise en place des auto-contrôles du nettoyage | M178: -2 | N178: 2 | O178: OK | P178: 2 | U178: 2 | V178: SOUSSE
A179: 151 | B179: V2 | C179: 2017-06-14 | D179: 08h | E179: CAC | F179: Mme Meriam CHOUCHENE | G179: PBO | H179: PLS/BOUCHERIE | I179: AUTOCONTROLES | J179: REC151 | K179: F | L179: Les résultats d'audits externes sont affichés au pole | M179: -1 | N179: 1 | O179: OK | P179: 1 | U179: 1 | V179: SOUSSE
A180: 152 | B180: V2 | C180: 2017-06-14 | D180: 08h | E180: CAC | F180: Mme Meriam CHOUCHENE | G180: PBO | H180: PLS/BOUCHERIE | I180: AUTOCONTROLES | J180: REC152 | K180: F | L180: Mise en place de Plan d'action suite aux audits | M180: -1 | N180: 1 | O180: NA | P180: NA | U180: NA | V180: SOUSSE
A181: 153 | B181: V2 | C181: 2017-06-14 | D181: 08h | E181: CAC | F181: Mme Meriam CHOUCHENE | G181: PBO | H181: PLS/BOUCHERIE | I181: AUTOCONTROLES | J181: REC153 | K181: F | L181: Mise en place d'actions correctives suite aux analyses non conformes (surgelés) | M181: -2 | N181: 2 | O181: OK | P181: 2 | U181: 2 | V181: SOUSSE
A182: 154 | B182: V2 | C182: 2017-06-14 | D182: 08h | E182: CAC | F182: Mme Meriam CHOUCHENE | G182: PDR | H182: POINTS DIRECTEURS | I182: POINTS DIRECTEURS | J182: REC154 | K182: F | L182: Armoire à pharmacie conforme | M182: -2 | N182: 2 | O182: OK | P182: 2 | U182: 2 | V182: SOUSSE
A183: 155 | B183: V2 | C183: 2017-06-14 | D183: 08h | E183: CAC | F183: Mme Meriam CHOUCHENE | G183: PDR | H183: POINTS DIRECTEURS | I183: POINTS DIRECTEURS | J183: REC155 | K183: F | L183: Présence de la réglementation en vigueur | M183: -2 | N183: 2 | O183: OK | P183: 2 | U183: 2 | V183: SOUSSE
A184: 156 | B184: V2 | C184: 2017-06-14 | D184: 08h | E184: CAC | F184: Mme Meriam CHOUCHENE | G184: PDR | H184: POINTS DIRECTEURS | I184: POINTS DIRECTEURS | J184: REC156 | K184: F | L184: Classement des dossiers de retrait | M184: -1 | N184: 1 | O184: OK | P184: 1 | U184: 1 | V184: SOUSSE
A185: 157 | B185: V2 | C185: 2017-06-14 | D185: 08h | E185: CAC | F185: Mme Meriam CHOUCHENE | G185: PDR | H185: POINTS DIRECTEURS | I185: POINTS DIRECTEURS | J185: REC157 | K185: F | L185: Classement des contrôles officiels | M185: -2 | N185: 2 | O185: OK | P185: 2 | U185: 2 | V185: SOUSSE
A186: 158 | B186: V2 | C186: 2017-06-14 | D186: 08h | E186: CAC | F186: Mme Meriam CHOUCHENE | G186: PDR | H186: POINTS DIRECTEURS | I186: POINTS DIRECTEURS | J186: REC158 | K186: F | L186: Classement des rapports d'audits internes et des plans d'action | M186: -1 | N186: 1 | O186: NOK | P186: 0 | Q186: Absence de plan de formation 2017. | R186: Dresser un plan de formation relatif aux BPH. | S186: 2017-06-14 | T186: dir magasin | U186: 0 | V186: SOUSSE
A187: 159 | B187: V2 | C187: 2017-06-14 | D187: 08h | E187: CAC | F187: Mme Meriam CHOUCHENE | G187: PDR | H187: POINTS DIRECTEURS | I187: POINTS DIRECTEURS | J187: REC159 | K187: F | L187: Présence du plan de formations de l'année en cours | M187: -2 | N187: 2 | O187: OK | P187: 2 | U187: 2 | V187: SOUSSE
A188: 160 | B188: V2 | C188: 2017-06-14 | D188: 08h | E188: CAC | F188: Mme Meriam CHOUCHENE | G188: PDR | H188: POINTS DIRECTEURS | I188: POINTS DIRECTEURS | J188: REC160 | K188: F | L188: Suivi de l'état de santé du personnel à jour (analyses copro, visites médicales…) | M188: -2 | N188: 2 | O188: OK | P188: 2 | U188: 2 | V188: SOUSSE
A189: 161 | B189: V2 | C189: 2017-06-14 | D189: 08h | E189: CAC | F189: Mme Meriam CHOUCHENE | G189: PDR | H189: POINTS DIRECTEURS | I189: POINTS DIRECTEURS | J189: REC161 | K189: F | L189: Etalonnage des balances effectué | M189: -15 | N189: 2 | O189: OK | P189: 2 | U189: 2 | V189: SOUSSE
A190: 162 | B190: V2 | C190: 2017-06-14 | D190: 08h | E190: CAC | F190: Mme Meriam CHOUCHENE | G190: ZOM | H190: ZONE COMMUNE | I190: INTERIEURS ET CORRIDORS | J190: REC162 | K190: F | L190: Absence d'entreposage sauvage | M190: -2 | N190: 2 | O190: NOK | P190: 0 | Q190: Présence des oiseaux au niveau de la réserve sèche et surface de vente | R190: Renforcer la lutte contre les nuisibles. | S190: 2017-02-17 | T190: aymen Salah | U190: 0 | V190: SOUSSE
A191: 163 | B191: V2 | C191: 2017-06-14 | D191: 08h | E191: CAC | F191: Mme Meriam CHOUCHENE | G191: ZOM | H191: ZONE COMMUNE | I191: INTERIEURS ET CORRIDORS | J191: REC163 | K191: F | L191: Absence de nuisible | M191: -2 | N191: 2 | O191: OK | P191: 2 | U191: 2 | V191: SOUSSE
A192: 164 | B192: V2 | C192: 2017-06-14 | D192: 08h | E192: CAC | F192: Mme Meriam CHOUCHENE | G192: ZOM | H192: ZONE COMMUNE | I192: INTERIEURS ET CORRIDORS | J192: REC164 | K192: F | L192: Propreté des intérieurs / corridors | M192: -1 | N192: 1 | O192: OK | P192: 1 | U192: 1 | V192: SOUSSE
B193: V2 | C193: 2017-06-14 | D193: 08h | E193: CAC | F193: Mme Meriam CHOUCHENE | G193: ZOM | H193: ZONE COMMUNE | I193: VESTIAIRES ET TOILETTES | J193: REC165 | K193: F | L193: Vestiaires propres et rangés | M193: -2 | N193: 2 | O193: OK | P193: =IF((O193="Nobs")+(O193="NA"),O193,IF(O193="ok",N193,N193+M193)) -> 2 | U193: 2 | V193: SOUSSE
A194: 165 | B194: V2 | C194: 2017-06-14 | D194: 08h | E194: CAC | F194: Mme Meriam CHOUCHENE | G194: ZOM | H194: ZONE COMMUNE | I194: VESTIAIRES ET TOILETTES | J194: REC165 | K194: S | L194: Casiers en bon état | M194: -2 | N194: 2 | O194: OK | P194: 2 | U194: 2 | V194: SOUSSE
A195: 166 | B195: V2 | C195: 2017-06-14 | D195: 08h | E195: CAC | F195: Mme Meriam CHOUCHENE | G195: ZOM | H195: ZONE COMMUNE | I195: VESTIAIRES ET TOILETTES | J195: REC166 | K195: F | L195: Couloirs non encombrés et propres,salle de pause propre et rangée | M195: -1 | N195: 1 | O195: OK | P195: 1 | U195: 1 | V195: SOUSSE
B196: V2 | C196: 2017-06-14 | D196: 08h | E196: CAC | F196: Mme Meriam CHOUCHENE | G196: ZOM | H196: ZONE COMMUNE | I196: VESTIAIRES ET TOILETTES | J196: REC167 | K196: S | L196: Propreté et équipement des toilettes satisfaisants | M196: -2 | N196: 2 | O196: OK | P196: =IF((O196="Nobs")+(O196="NA"),O196,IF(O196="ok",N196,N196+M196)) -> 2 | U196: 2 | V196: SOUSSE
A197: 167 | B197: V2 | C197: 2017-06-14 | D197: 08h | E197: CAC | F197: Mme Meriam CHOUCHENE | G197: ZOM | H197: ZONE COMMUNE | I197: VESTIAIRES ET TOILETTES | J197: REC167 | K197: F | L197: Propreté et équipement des toilettes satisfaisants | M197: -2 | N197: 2 | O197: NOK | P197: 0 | Q197: Absence de dispositifs de séchage des mains. | R197: Fixer le dispositif | S197: 2017-02-17 | T197: aymen Salah | U197: 0 | V197: SOUSSE
A198: 168 | B198: V2 | C198: 2017-06-14 | D198: 08h | E198: CAC | F198: Mme Meriam CHOUCHENE | G198: ZOM | H198: ZONE COMMUNE | I198: VESTIAIRES ET TOILETTES | J198: REC168 | K198: S | L198: Equipement des lave-mains reglementaire(à commande non manuelle , savon) | M198: -2 | N198: 2 | O198: NOK | P198: 0 | Q198: Absence de savon liquide aux sanitaires femmes. | R198: Prévoir du savon liquide aux sanitaires. | U198: 0 | V198: SOUSSE
B199: V2 | C199: 2017-06-14 | D199: 08h | E199: CAC | F199: Mme Meriam CHOUCHENE | G199: ZOM | H199: ZONE COMMUNE | I199: VESTIAIRES ET TOILETTES | J199: REC169 | K199: F | L199: Propreté Entretien satisfaisant des bouches d'aération des sanitaires et des vestiaires et équipement des douches satisfaisants | M199: -1 | N199: 1 | O199: NOK | P199: =IF((O199="Nobs")+(O199="NA"),O199,IF(O199="ok",N199,N199+M199)) -> 0 | Q199: Le revêtement du sol des vestiaires est détérioré. Absence de dispositif frigorifique pour le stockage des repas. présence de rouille sur les casiers | R199: Fixer le revêtement du sol. Prévoir un dispositif frigorifique pour le stockage des repas. | S199: 2016-03-17 | U199: 0 | V199: SOUSSE
A200: 169 | B200: V2 | C200: 2017-06-14 | D200: 08h | E200: CAC | F200: Mme Meriam CHOUCHENE | G200: ZOM | H200: ZONE COMMUNE | I200: VESTIAIRES ET TOILETTES | J200: REC169 | K200: S | L200: Propreté Entretien satisfaisant des bouches d'aération des sanitaires et des vestiaires et équipement des douches satisfaisants et des salles de pauses | M200: -1 | N200: 1 | O200: OK | P200: 1 | U200: 1 | V200: SOUSSE
A201: 171 | B201: V2 | C201: 2017-06-14 | D201: 08h | E201: CAC | F201: Mme Meriam CHOUCHENE | G201: ZOM | H201: ZONE COMMUNE | I201: VESTIAIRES ET TOILETTES | J201: REC171 | K201: F | L201: Présence d'une poubelle propre | M201: -1 | N201: 1 | O201: OK | P201: 1 | U201: 1 | V201: SOUSSE
A202: 172 | B202: V2 | C202: 2017-06-14 | D202: 08h | E202: CAC | F202: Mme Meriam CHOUCHENE | G202: ZOM | H202: ZONE COMMUNE | I202: PROPRETE GENERALE | J202: REC172 | K202: F | L202: Propreté des abords du magasin | M202: -2 | N202: 2 | O202: OK | P202: 2 | U202: 2 | V202: SOUSSE
... 24 more rows

Sheet POINTS DIRECTEURS
B1: ="Accompagné par : " &masque!K8 -> Accompagné par : dir magasin | D1: POINTS DIRECTEURS | I1: PDR
E2: Visite
D3: Visite | E3: =masque!$E$11 -> V2
D4: Date | E4: =masque!$E$12 -> 2017-06-14
D5: Heure
C6: Pénalités | D6: Base | G6: Non-conformité | H6: Action corrective | I6: Fixé le | J6: Responsable
A7: 011. | B7: POINTS DIRECTEURS | E7: F | F7: T
A8: 0111. | B8: =masque!L182 -> Armoire à pharmacie conforme | C8: =masque!M182 -> -2 | D8: =masque!N182 -> 2 | E8: =masque!P182 -> 2 | F8: NA | G8: =IF(masque!Q182=0,"",masque!Q182) ->  | H8: =IF(masque!R182=0,"",masque!R182) ->  | I8: =IF(masque!S182=0,"",masque!S182) ->  | J8: =IF(masque!T182=0,"",masque!T182) -> 
A9: 0112a | B9: =masque!L183 -> Présence de la réglementation en vigueur | C9: =masque!M183 -> -2 | D9: =masque!N183 -> 2 | E9: =masque!P183 -> 2 | F9: NA | G9: =IF(masque!Q183=0,"",masque!Q183) ->  | H9: =IF(masque!R183=0,"",masque!R183) ->  | I9: =IF(masque!S183=0,"",masque!S183) ->  | J9: =IF(masque!T183=0,"",masque!T183) -> 
A10: 0112b | B10: =masque!L184 -> Classement des dossiers de retrait | C10: =masque!M184 -> -1 | D10: =masque!N184 -> 1 | E10: =masque!P184 -> 1 | F10: NA | G10: =IF(masque!Q184=0,"",masque!Q184) ->  | H10: =IF(masque!R184=0,"",masque!R184) ->  | I10: =IF(masque!S184=0,"",masque!S184) ->  | J10: =IF(masque!T184=0,"",masque!T184) -> 
A11: 0112c | B11: =masque!L185 -> Classement des contrôles officiels | C11: =masque!M185 -> -2 | D11: =masque!N185 -> 2 | E11: =masque!P185 -> 2 | F11: NA | G11: =IF(masque!Q185=0,"",masque!Q185) ->  | H11: =IF(masque!R185=0,"",masque!R185) ->  | I11: =IF(masque!S185=0,"",masque!S185) ->  | J11: =IF(masque!T185=0,"",masque!T185) -> 
A12: 0114. | B12: =masque!L186 -> Classement des rapports d'audits internes et des plans d'action | C12: =masque!M186 -> -1 | D12: =masque!N186 -> 1 | E12: =masque!P186 -> 0 | F12: NA | G12: =IF(masque!Q186=0,"",masque!Q186) -> Absence de plan de formation 2017. | H12: =IF(masque!R186=0,"",masque!R186) -> Dresser un plan de formation relatif aux BPH. | I12: =IF(masque!S186=0,"",masque!S186) -> 2017-06-14 | J12: =IF(masque!T186=0,"",masque!T186) -> dir magasin
A13: 0114b. | B13: =masque!L187 -> Présence du plan de formations de l'année en cours | C13: =masque!M187 -> -2 | D13: =masque!N187 -> 2 | E13: =masque!P187 -> 2 | F13: NA | G13: =IF(masque!Q187=0,"",masque!Q187) ->  | H13: =IF(masque!R187=0,"",masque!R187) ->  | I13: =IF(masque!S187=0,"",masque!S187) ->  | J13: =IF(masque!T187=0,"",masque!T187) -> 
A14: 0115. | B14: =masque!L188 -> Suivi de l'état de santé du personnel à jour (analyses copro, visites médicales…) | C14: =masque!M188 -> -2 | D14: =masque!N188 -> 2 | E14: =masque!P188 -> 2 | F14: NA | G14: =IF(masque!Q188=0,"",masque!Q188) ->  | H14: =IF(masque!R188=0,"",masque!R188) ->  | I14: =IF(masque!S188=0,"",masque!S188) ->  | J14: =IF(masque!T188=0,"",masque!T188) -> 
A15: 0116a. | B15: Etalonnage des balances effectué | C15: =masque!M189 -> -15 | D15: =masque!N189 -> 2 | E15: =masque!P189 -> 2 | F15: NA | G15: =IF(masque!Q189=0,"",masque!Q189) ->  | H15: =IF(masque!R189=0,"",masque!R189) ->  | I15: =IF(masque!S189=0,"",masque!S189) ->  | J15: =IF(masque!T189=0,"",masque!T189) -> 
B16: Sous Total : | D16: =SUM(D8:D15) -> 14 | E16: =SUM(E8:E15) -> 13 | F16: =SUM(F8:F15) -> 0
C17: Max | D17: =E17+F17 -> 14 | E17: =masque!Q8 -> 14 | F17: =masque!R8 -> 0
E19: Note F | F19: Note T
B20: TOTAL : | E20: =E16 -> 13 | F20: =F16 -> 0
B21: NOTE : | D21: /100 | E21: =IF(E17=0,"",E20/E17) -> 0.9285714286 | F21: =IF(F17=0,"",F20/F17) -> 
E22: =IF(D17=0,"",(E20+F20)/D17) -> 0.9285714286

Sheet RECEPTION
A1: ="Accompagné par : " &masque!K2 -> Accompagné par : Moncef SMAOUI | D1: RECEPTION | H1: REC
C2: 2011-05-13 | G2: Visite
E3: Visite | F3: =masque!$E$11 -> V2
E4: Date | F4: =masque!$E$12 -> 2017-06-14
E5: Heure
D6: Pénalités | E6: Base | H6: Non-conformité | I6: Action corrective | J6: Fixé le | K6: Responsable
A7: 01. | B7: RECEPTION | F7: F | G7: T
A8: 011 | B8: =masque!L26 -> Présence et bon fonctionnement du thermomètre à sonde et infrarouge | C8: =masque!M26 -> -2 | D8: =masque!M26 -> -2 | E8: =masque!N26 -> 2 | F8: =masque!P26 -> 0 | G8: NA | H8: =IF(masque!Q26=0,"",masque!Q26) -> Absence de thermomètre à infra rouge. Achat en cours.+S38Q24:S44Q24:T164 | I8: =IF(masque!R26=0,"",masque!R26) -> Prévoir un thermomètre infra rouge. | J8: =IF(masque!S26=0,"",masque!S26) -> 2013-10-23 | K8: =IF(masque!T26=0,"",masque!T26) -> Moncef SMAOUI
A9: 012 | B9: =masque!L27 -> Thermomètre rangé avec son matériel de désinfection | D9: =masque!M27 -> -1 | E9: =masque!N27 -> 1 | F9: =masque!P27 -> 0 | G9: NA | H9: =IF(masque!Q27=0,"",masque!Q27) -> Absence de matériel de désinfection | I9: =IF(masque!R27=0,"",masque!R27) -> Prévoir du matériel de désinfection | J9: =IF(masque!S27=0,"",masque!S27) -> 2013-10-23 | K9: =IF(masque!T27=0,"",masque!T27) -> 
A10: 013 | B10: =masque!L28 -> Réalisation de la vérification mensuelle du thermomètre | D10: =masque!M28 -> -1 | E10: =masque!N28 -> 1 | F10: =masque!P28 -> 0 | G10: NA | H10: =IF(masque!Q28=0,"",masque!Q28) -> L'enregistrement de suivi est réalisé mais le protocole n'est pas maitrisé; | I10: =IF(masque!R28=0,"",masque!R28) -> Une sensibilisation sur cet écart a eu lieu le jour de l'audit. | J10: =IF(masque!S28=0,"",masque!S28) -> 2017-06-14 | K10: =IF(masque!T28=0,"",masque!T28) -> 
A11: 014 | B11: =masque!L29 -> Affichage du tableau des températures réglementaires | D11: =masque!M29 -> -1 | E11: =masque!N29 -> 1 | F11: =masque!P29 -> 1 | G11: NA | H11: =IF(masque!Q29=0,"",masque!Q29) ->  | I11: =IF(masque!R29=0,"",masque!R29) ->  | J11: =IF(masque!S29=0,"",masque!S29) ->  | K11: =IF(masque!T29=0,"",masque!T29) -> 
A12: 142 | B12: =masque!L30 -> Vérification de la Présence des documents sanitaires des denrées d'origine animal frais ou congelés (documents de transport, AMM, certificat de salubrité, étiquetage conforme ,quittance d'abbaoir) | D12: =masque!M30 -> -5 | E12: =masque!N30 -> 2 | F12: =masque!P30 -> 2 | G12: NA | H12: =IF(masque!Q30=0,"",masque!Q30) ->  | I12: =IF(masque!R30=0,"",masque!R30) ->  | J12: =IF(masque!S30=0,"",masque!S30) ->  | K12: =IF(masque!T30=0,"",masque!T30) -> 
A13: 015 | B13: =masque!L31 -> Contrôle complet des températures | D13: =masque!M31 -> -5 | E13: =masque!N31 -> 2 | F13: =masque!P31 -> 2 | G13: NA | H13: =IF(masque!Q31=0,"",masque!Q31) ->  | I13: =IF(masque!R31=0,"",masque!R31) ->  | J13: =IF(masque!S31=0,"",masque!S31) ->  | K13: =IF(masque!T31=0,"",masque!T31) -> 
A14: 016 | B14: =masque!L32 -> Refus des marchandises hors critères d'acceptation | D14: =masque!M32 -> -5 | E14: =masque!N32 -> 2 | F14: =masque!P32 -> 2 | G14: NA | H14: =IF(masque!Q32=0,"",masque!Q32) ->  | I14: =IF(masque!R32=0,"",masque!R32) ->  | J14: =IF(masque!S32=0,"",masque!S32) ->  | K14: =IF(masque!T32=0,"",masque!T32) -> 
A15: 017 | B15: =masque!L33 -> Absence d'attente en réception des marchandises | D15: =masque!M33 -> -2 | E15: =masque!N33 -> 2 | F15: =masque!P33 -> 2 | G15: NA | H15: =IF(masque!Q33=0,"",masque!Q33) ->  | I15: =IF(masque!R33=0,"",masque!R33) ->  | J15: =IF(masque!S33=0,"",masque!S33) ->  | K15: =IF(masque!T33=0,"",masque!T33) -> 
A16: 018 | B16: =masque!L34 -> Retours correctement identifiés et balisés | D16: =masque!M34 -> -2 | E16: =masque!N34 -> 2 | F16: =masque!P34 -> 2 | G16: NA | H16: =IF(masque!Q34=0,"",masque!Q34) ->  | I16: =IF(masque!R34=0,"",masque!R34) ->  | J16: =IF(masque!S34=0,"",masque!S34) ->  | K16: =IF(masque!T34=0,"",masque!T34) -> 
B17: Sous Total : | E17: =SUM(E8:E16) -> 15 | F17: =SUM(F8:F16) -> 11 | G17: =SUM(G8:G16) -> 0
A18: 02 | B18: EXTERIEUR ET AIRE DE RECEPTION
A19: 020 | B19: =masque!L35 -> Absence d'accumulation de nuisances | C19: =masque!M35 -> -5 | D19: =masque!M35 -> -5 | E19: =masque!N35 -> 2 | F19: =masque!P35 -> 2 | G19: NA | H19: =IF(masque!Q35=0,"",masque!Q35) ->  | I19: =IF(masque!R35=0,"",masque!R35) ->  | J19: =IF(masque!S35=0,"",masque!S35) ->  | K19: =IF(masque!T35=0,"",masque!T35) -> 
A20: 021 | B20: =masque!L36 -> Absence de stockage sauvage | D20: =masque!M36 -> -2 | E20: =masque!N36 -> 2 | F20: =masque!P36 -> 2 | G20: NA | H20: =IF(masque!Q36=0,"",masque!Q36) ->  | I20: =IF(masque!R36=0,"",masque!R36) ->  | J20: =IF(masque!S36=0,"",masque!S36) ->  | K20: =IF(masque!T36=0,"",masque!T36) -> 
A21: 022 | B21: =masque!L37 -> Propreté correcte des alentours de la benne. | D21: =masque!M37 -> -1 | E21: =masque!N37 -> 1 | F21: =masque!P37 -> 0 | G21: NA | H21: =IF(masque!Q37=0,"",masque!Q37) -> Les bennes ne sont pas correctement protégées. Elles sont entreposées à proximité de la porte d'accès au magasin. | I21: =IF(masque!R37=0,"",masque!R37) -> Protéger les bennes et améliorer la gestion des déchets. | J21: =IF(masque!S37=0,"",masque!S37) -> 2012-03-16 | K21: =IF(masque!T37=0,"",masque!T37) -> Moncef SMAOUI
A22: 023 | B22: =masque!L38 -> Absence de nuisible | D22: =masque!M38 -> -2 | E22: =masque!N38 -> 2 | F22: =masque!P38 -> 0 | G22: NA | H22: =IF(masque!Q38=0,"",masque!Q38) -> Présence de nid d'hirondelle au plafond du quai de réception. Présence de mouches. | I22: =IF(masque!R38=0,"",masque!R38) -> Renforcer la lutte contre les nuisibles à ce niveau. | J22: =IF(masque!S38=0,"",masque!S38) -> 2017-06-14 | K22: =IF(masque!T38=0,"",masque!T38) -> Moncef SMAOUI
A23: 024 | B23: =masque!L39 -> Absence d'odeur nauséabonde | D23: =masque!M39 -> -1 | E23: =masque!N39 -> 1 | F23: =masque!P39 -> 1 | G23: NA | H23: =IF(masque!Q39=0,"",masque!Q39) ->  | I23: =IF(masque!R39=0,"",masque!R39) ->  | J23: =IF(masque!S39=0,"",masque!S39) ->  | K23: =IF(masque!T39=0,"",masque!T39) -> 
B24: Sous Total : | E24: =SUM(E19:E23) -> 8 | F24: =SUM(F19:F23) -> 5 | G24: =SUM(G19:G23) -> 0
A25: 03 | B25: PROPRETE ET ENTRETIEN DES LOCAUX
A26: 030 | B26: =masque!L40 -> Entretien et propreté du sas de réception, des sols, plinthes, murs, plafonds, portes satisfaisants, des évacuations au sol satisfaisants | D26: =masque!M40 -> -5 | E26: =masque!N40 -> 2 | F26: =masque!P40 -> 2 | G26: =masque!P41 -> -3 | H26: =IF(masque!Q40=0,IF(masque!Q41=0,""," S : "&masque!Q41),IF(masque!Q41=0,"F: "&masque!Q40,"F: "&masque!Q40&"// S : "&masque!Q41)) -> S : Absence de station de nettoyage pour la zone de réception; cette opération est réalisée par l'eau du RIA. Présence de crevasses dans les murs du sas. | I26: =IF(masque!R40=0,IF(masque!R41=0,""," S : "&masque!R41),IF(masque!R41=0,"F: "&masque!R40,"F: "&masque!R40&"// S : "&masque!R41)) -> S : Prévoir une station de nettoyage dans la zone de réception. Colmater les trous aux murs. | J26: =IF(masque!S40=0,IF(masque!S41=0,""," S : "&masque!S41),IF(masque!S41=0,"F: "&masque!S40,"F: "&masque!S40&"// S : "&masque!S41)) -> S : 42900 | K26: =IF(masque!T40=0,IF(masque!T41=0,""," S : "&masque!T41),IF(masque!T41=0,"F: "&masque!T40,"F: "&masque!T40&"// S : "&masque!T41)) -> F:
A27: 033 | B27: =masque!L42 -> Les résultats d'audits externes sont affichés à la réception | D27: =masque!M42 -> -1 | E27: =masque!N42 -> 1 | F27: =masque!P42 -> 1 | G27: NA | H27: =IF(masque!Q42=0,"",masque!Q42) ->  | I27: =IF(masque!R42=0,"",masque!R42) ->  | J27: =IF(masque!S42=0,"",masque!S42) ->  | K27: =IF(masque!T42=0,"",masque!T42) -> 
A28: 034 | B28: =masque!L43 -> Mise en place de Plan d'action suite aux audits | D28: =masque!M43 -> -1 | E28: =masque!N43 -> 1 | F28: =masque!P43 -> 1 | G28: NA | H28: =IF(masque!Q43=0,"",masque!Q43) ->  | I28: =IF(masque!R43=0,"",masque!R43) ->  | J28: =IF(masque!S43=0,"",masque!S43) ->  | K28: =IF(masque!T43=0,"",masque!T43) -> 
B29: Sous Total : | E29: =SUM(E26:E28) -> 4 | F29: =SUM(F26:F28) -> 4 | G29: =SUM(G26:G28) -> -3
D30: Max | E30: =F30+G30 -> 29 | F30: =masque!Q2 -> 27 | G30: =masque!R2 -> 2
F32: Note F | G32: Note T
B33: TOTAL : | F33: =SUM(F29,F24,F17) -> 20 | G33: =SUM(G29,G24,G17) -> -3
B34: NOTE : | E34: /100 | F34: =IF(F30=0,"",F33/F30) -> 0.7407407407 | G34: =IF(G30=0,"",G33/G30) -> -1.5
B35: Note Globale : | F35: =IF(E30=0,"",(G33+F33)/E30) -> 0.5862068966

Sheet Zone commune
A1: ="Accompagné par : " &masque!K9 -> Accompagné par : aymen Salah | C1: ZONE COMMUNE
F2: Visite
E3: Visite | F3: =masque!$E$11 -> V2
E4: Date | F4: =masque!$E$12 -> 2017-06-14
E5: Heure
E6: Base | H6: Non-conformité | I6: Action corrective | J6: Fixé le | K6: Responsable
A7: 03. | B7: INTERIEURS ET CORRIDORS | F7: F | G7: T
A8: 031 | B8: =masque!L190 -> Absence d'entreposage sauvage | D8: =masque!M190 -> -2 | E8: =masque!N190 -> 2 | F8: =masque!P190 -> 0 | G8: NA | H8: =IF(masque!Q190=0,"",masque!Q190) -> Présence des oiseaux au niveau de la réserve sèche et surface de vente | I8: =IF(masque!R190=0,"",masque!R190) -> Renforcer la lutte contre les nuisibles. | J8: =IF(masque!S190=0,"",masque!S190) -> 2017-02-17 | K8: =IF(masque!T190=0,"",masque!T190) -> aymen Salah
A9: 033 | B9: =masque!L191 -> Absence de nuisible | D9: =masque!M191 -> -2 | E9: =masque!N191 -> 2 | F9: =masque!P191 -> 2 | G9: NA | H9: =IF(masque!Q191=0,"",masque!Q191) ->  | I9: =IF(masque!#REF!=0,"",masque!#REF!) ->  | J9: =IF(masque!S191=0,"",masque!S191) ->  | K9: =IF(masque!T191=0,"",masque!T191) -> 
A10: 034 | B10: =masque!L192 -> Propreté des intérieurs / corridors | D10: =masque!M192 -> -1 | E10: =masque!N192 -> 1 | F10: =masque!P192 -> 1 | G10: NA | H10: =IF(masque!Q192=0,"",masque!Q192) ->  | I10: =IF(masque!R192=0,"",masque!R192) ->  | J10: =IF(masque!S192=0,"",masque!S192) ->  | K10: =IF(masque!T192=0,"",masque!T192) -> 
B11: Sous Total : | E11: =SUM(E8:E10) -> 5 | F11: =SUM(F8:F10) -> 3 | G11: =SUM(G8:G10) -> 0
A12: 04. | B12: VESTIAIRES ET TOILETTES
A13: 041 | B13: =masque!L194 -> Casiers en bon état | D13: =masque!M194 -> -2 | E13: =masque!N194 -> 2 | F13: NA | G13: =masque!P194 -> 2 | H13: =IF(masque!Q194=0,"",masque!Q194) ->  | I13: =IF(masque!R194=0,"",masque!R194) ->  | J13: =IF(masque!S194=0,"",masque!S194) ->  | K13: =IF(masque!T194=0,"",masque!T194) -> 
B14: =masque!L195 -> Couloirs non encombrés et propres,salle de pause propre et rangée | D14: =masque!M195 -> -1 | E14: =masque!N195 -> 1 | F14: =masque!P195 -> 1 | G14: NA | H14: =IF(masque!Q195=0,"",masque!Q195) ->  | I14: =IF(masque!R195=0,"",masque!R195) ->  | J14: =IF(masque!S195=0,"",masque!S195) ->  | K14: =IF(masque!T195=0,"",masque!T195) -> 
A15: 042 | B15: =masque!L197 -> Propreté et équipement des toilettes satisfaisants | D15: =masque!M197 -> -2 | E15: =masque!N197 -> 2 | F15: =masque!P197 -> 0 | G15: =masque!P196 -> 2 | H15: =IF(masque!Q197=0,IF(masque!Q196=0,""," S : "&masque!Q196),IF(masque!Q196=0,"F: "&masque!Q197,"F: "&masque!Q197&"// S : "&masque!Q197)) -> F: Absence de dispositifs de séchage des mains. | I15: =IF(masque!R197=0,IF(masque!R196=0,""," S : "&masque!R196),IF(masque!R196=0,"F: "&masque!R197,"F: "&masque!R197&"// S : "&masque!R197)) -> F: Fixer le dispositif | J15: =IF(masque!S197=0,IF(masque!S196=0,""," S : "&masque!S196),IF(masque!S196=0,"F: "&masque!S197,"F: "&masque!S197&"// S : "&masque!S197)) -> F: 42783 | K15: =IF(masque!T197=0,IF(masque!T196=0,""," S : "&masque!T196),IF(masque!T196=0,"F: "&masque!T197,"F: "&masque!T197&"// S : "&masque!T197)) -> F: aymen Salah// S : aymen Salah
A16: 043 | B16: =masque!L198 -> Equipement des lave-mains reglementaire(à commande non manuelle , savon) | D16: =masque!M198 -> -2 | E16: =masque!N198 -> 2 | F16: NA | G16: =masque!P198 -> 0 | H16: =IF(masque!Q198=0,"",masque!Q198) -> Absence de savon liquide aux sanitaires femmes. | I16: =IF(masque!R198=0,"",masque!R198) -> Prévoir du savon liquide aux sanitaires. | J16: =IF(masque!S198=0,"",masque!S198) ->  | K16: =IF(masque!T198=0,"",masque!T198) -> 
A17: 045 | B17: =masque!L200 -> Propreté Entretien satisfaisant des bouches d'aération des sanitaires et des vestiaires et équipement des douches satisfaisants et des salles de pauses | D17: =masque!M200 -> -1 | E17: =masque!N200 -> 1 | F17: =masque!P200 -> 1 | G17: =masque!P200 -> 1 | H17: =IF(masque!Q199=0,IF(masque!Q200=0,""," S : "&masque!Q200),IF(masque!Q200=0,"F: "&masque!Q199,"F: "&masque!Q199&"// S : "&masque!Q200)) -> F: Le revêtement du sol des vestiaires est détérioré. Absence de dispositif frigorifique pour le stockage des repas. présence de rouille sur les casiers | I17: =IF(masque!R199=0,IF(masque!R200=0,""," S : "&masque!R200),IF(masque!R200=0,"F: "&masque!R199,"F: "&masque!R199&"// S : "&masque!R200)) -> F: Fixer le revêtement du sol. Prévoir un dispositif frigorifique pour le stockage des repas. | J17: =IF(masque!S199=0,IF(masque!S200=0,""," S : "&masque!S200),IF(masque!S200=0,"F: "&masque!S199,"F: "&masque!S199&"// S : "&masque!S200)) -> F: 42446 | K17: =IF(masque!T199=0,IF(masque!T200=0,""," S : "&masque!T200),IF(masque!T200=0,"F: "&masque!T199,"F: "&masque!T199&"// S : "&masque!T200)) -> S :
A18: 047 | B18: =masque!L201 -> Présence d'une poubelle propre | D18: =masque!M201 -> -1 | E18: =masque!N201 -> 1 | F18: =masque!P201 -> 1 | G18: NA | H18: =IF(masque!Q201=0,"",masque!Q201) ->  | I18: =IF(masque!R201=0,"",masque!R201) ->  | J18: =IF(masque!S201=0,"",masque!S201) ->  | K18: =IF(masque!T201=0,"",masque!T201) -> 
B19: Sous Total : | E19: =SUM(E13:E18) -> 9 | F19: =SUM(F13:F18) -> 3 | G19: =SUM(G13:G18) -> 5
A20: 041. | B20: PROPRETE GENERALE
A21: 0411 | B21: =masque!L202 -> Propreté des abords du magasin | D21: =masque!M202 -> -2 | E21: =masque!N202 -> 2 | F21: =masque!P202 -> 2 | G21: NA | H21: =IF(masque!Q202=0,"",masque!Q202) ->  | I21: =IF(masque!R202=0,"",masque!R202) ->  | J21: =IF(masque!S202=0,"",masque!S202) ->  | K21: =IF(masque!T202=0,"",masque!T202) -> 
B22: =masque!L203 -> Nettoyage des évaporateurs | D22: =masque!M203 -> -2 | E22: =masque!N203 -> 2 | F22: NA | G22: =masque!P203 -> 2 | H22: =IF(masque!Q203=0,"",masque!Q203) ->  | I22: =IF(masque!R203=0,"",masque!R203) ->  | J22: =IF(masque!S203=0,"",masque!S203) ->  | K22: =IF(masque!T203=0,"",masque!T203) -> 
B23: Sous Total : | E23: =SUM(E21:E22) -> 4 | F23: =SUM(F21:F22) -> 2 | G23: =SUM(G21:G22) -> 2
B24: =masque!I204 -> Engins de Livraison
B25: =masque!L204 -> Entretien du Camion | D25: =masque!M204 -> -2 | E25: =masque!N204 -> 2 | F25: =masque!P204 -> 2 | G25: =masque!P204 -> 2 | H25: =IF(masque!Q204=0,"",masque!Q204) ->  | I25: =IF(masque!R204=0,"",masque!R204) ->  | J25: =IF(masque!S204=0,"",masque!S204) ->  | K25: =IF(masque!T204=0,"",masque!T204) -> 
B26: =masque!L205 -> Propreté du Camion | D26: =masque!M205 -> -2 | E26: =masque!N205 -> 2 | F26: =masque!P205 -> 2 | G26: NA | H26: =IF(masque!Q205=0,"",masque!Q205) ->  | I26: =IF(masque!R205=0,"",masque!R205) ->  | J26: =IF(masque!S205=0,"",masque!S205) ->  | K26: =IF(masque!T205=0,"",masque!T205) -> 
B27: =masque!L206 -> chargement conforme des produits dans le camion | D27: =masque!M206 -> -2 | E27: =masque!N206 -> 2 | F27: =masque!P206 -> NA | G27: NA | H27: =IF(masque!Q206=0,"",masque!Q206) ->  | I27: =IF(masque!R206=0,"",masque!R206) ->  | J27: =IF(masque!S206=0,"",masque!S206) ->  | K27: =IF(masque!T206=0,"",masque!T206) -> 
B28: =masque!L207 -> Etat de Fonctionnement du Thermométre Afficheur/ Conformité de la température | D28: =masque!M207 -> -5 | E28: =masque!N207 -> 2 | F28: =masque!P207 -> 2 | G28: =masque!P207 -> 2 | H28: =IF(masque!Q207=0,"",masque!Q207) ->  | I28: =IF(masque!R207=0,"",masque!R207) ->  | J28: =IF(masque!S207=0,"",masque!S207) ->  | K28: =IF(masque!T207=0,"",masque!T207) -> 
B29: Sous Total : | E29: =SUM(E25:E28) -> 8 | F29: =SUM(F25:F27) -> 4 | G29: =SUM(G25:G27) -> 2
D30: Max | E30: =F30+G30 -> 29 | F30: =masque!Q9 -> 16 | G30: =masque!R9 -> 13
F31: Note F | G31: Note T
B32: TOTAL : | F32: =SUM(F11,F19,F23,F29) -> 12 | G32: =SUM(G11,G19,G23,G29) -> 9
B33: NOTE : | E33: /100 | F33: =IF(F30=0,"",F32/F30) -> 0.75 | G33: =IF(G30=0,"",G32/G30) -> 0.6923076923
F34: =IF(E30=0,"",(F32+G32)/E30) -> 0.724137931

Sheet RETRAIT
A1: ="Accompagné par : " &masque!K3 -> Accompagné par : dir magasin | D1: RETRAIT / ALERTE | H1: RET
F2: Visite
E3: Visite | F3: =masque!$E$11 -> V2
E4: Date | F4: =masque!$E$12 -> 2017-06-14
E5: Heure
D6: Pénalités | E6: Base | H6: Non-conformité | I6: Action corrective | J6: Fixé le | K6: Responsable
A7: 030. | B7: RETRAIT / ALERTE | F7: F | G7: T
A8: 300 | B8: =masque!L44 -> Existence d'un classeur Alertes / Retraits et de la procédure | D8: =masque!M44 -> -5 | E8: =masque!N44 -> 2 | F8: =masque!P44 -> 2 | G8: NA | H8: =IF(masque!Q44=0,"",masque!Q44) ->  | I8: =IF(masque!R44=0,"",masque!R44) ->  | K8: =IF(masque!T44=0,"",masque!T44) -> 
A9: 072. | B9: =masque!L45 -> Connaisance et affichage de la procédure de retrait | D9: =masque!M45 -> -5 | E9: =masque!N45 -> 2 | F9: =masque!P45 -> 2 | G9: NA | H9: =IF(masque!Q45=0,"",masque!Q45) ->  | I9: =IF(masque!R45=0,"",masque!R45) ->  | K9: =IF(masque!T45=0,"",masque!T45) -> 
A10: 0301. | B10: =masque!L46 -> Existence de zones de consignation | D10: =masque!M46 -> -2 | E10: =masque!N46 -> 2 | F10: =masque!P46 -> 2 | G10: NA | H10: =IF(masque!Q46=0,"",masque!Q46) ->  | I10: =IF(masque!R46=0,"",masque!R46) ->  | K10: =IF(masque!T46=0,"",masque!T46) -> 
A11: 0302. | B11: =masque!L47 -> Les produits concernés par ces alertes et retraits sont retirés de la vente | D11: =masque!M47 -> -2 | E11: =masque!N47 -> 2 | F11: =masque!P47 -> 2 | G11: NA | H11: =IF(masque!Q47=0,"",masque!Q47) ->  | I11: =IF(masque!R47=0,"",masque!R47) ->  | K11: =IF(masque!T47=0,"",masque!T47) -> 
B12: Sous Total : | E12: =SUM(E8:E11) -> 8 | F12: =SUM(F8:F11) -> 8 | G12: =SUM(G8:G11) -> 0
D22: Max | E22: =F22+G22 -> 8 | F22: =masque!Q3 -> 8 | G22: =masque!R3 -> 0
F23: Note F | G23: Note T
B24: TOTAL : | F24: =F12 -> 8 | G24: =G12 -> 0
B25: NOTE : | E25: /100 | F25: =IF(F22=0,"",F24/F22) -> 1 | G25: =IF(G22=0,"",G24/G22) -> 
F26: =IF(E22=0,"",(G24+F24)/E22) -> 1

Sheet FRUIT ET LEGUMES
A1: ="Accompagné par : " &masque!K5 -> Accompagné par : slama nizar | D1: FRUITS ET LEGUMES/OLIVES EPICES | H1: FRL
E2: Visite
D3: Visite | E3: =masque!$E$11 -> V2
D4: Date | E4: =masque!$E$12 -> 2017-06-14
D5: Heure
C6: Pénalités | D6: Base | G6: Non-conformité | H6: Action corrective | I6: Fixé le | J6: Responsable
A7: 18. | B7: POLE | E7: F | F7: T
A8: 181 | B8: =masque!L93 -> Linéaires propres. | C8: =masque!M93 -> -5 | D8: =masque!N93 -> 2 | E8: =masque!P93 -> 2 | F8: NA | G8: =IF(masque!Q93=0,"",masque!Q93) ->  | H8: =IF(masque!R93=0,"",masque!R93) ->  | I8: =IF(masque!S93=0,"",masque!S93) ->  | J8: =IF(masque!T93=0,"",masque!T93) -> 
A9: 182 | B9: =masque!L95 -> Entretien et propreté des sols, plinthes, murs plafonds, portes satisfaisants | C9: =masque!M94 -> -5 | D9: =masque!N94 -> 2 | E9: =masque!P94 -> 2 | F9: =masque!P95 -> 2 | G9: =IF(masque!Q94=0,IF(masque!Q95=0,""," S : "&masque!Q95),IF(masque!Q95=0,"F: "&masque!Q94,"F: "&masque!Q94&"// S : "&masque!Q95)) ->  | H9: =IF(masque!R94=0,IF(masque!R95=0,""," S : "&masque!R95),IF(masque!R95=0,"F: "&masque!R94,"F: "&masque!R94&"// S : "&masque!R95)) ->  | I9: =IF(masque!S94=0,IF(masque!S95=0,""," S : "&masque!S95),IF(masque!S95=0,"F: "&masque!S94,"F: "&masque!S94&"// S : "&masque!S95)) ->  | J9: =IF(masque!T94=0,IF(masque!T95=0,""," S : "&masque!T95),IF(masque!T95=0,"F: "&masque!T94,"F: "&masque!T94&"// S : "&masque!T95)) -> S :
B10: Suivi des autocontrôles de nettoyage | C10: =masque!M96 -> -1 | D10: =masque!N96 -> 1 | E10: =masque!P96 -> 0 | F10: NA | G10: =IF(masque!Q96=0,"",masque!Q96) -> Absence de séparation dans le temps pour la sortie des produits casse à partir de la CF FLEG. | H10: =IF(masque!R96=0,"",masque!R96) -> Fixer les horaires de sortie des produits casse (passant par les chambres froides.) | I10: =IF(masque!S96=0,"",masque!S96) ->  | J10: =IF(masque!T96=0,"",masque!T96) -> 
B11: =masque!L98 -> Entretien et propreté des évacuations au sol satisfaisants | C11: =masque!M97 -> -1 | D11: =masque!N97 -> 1 | E11: =masque!P97 -> 1 | F11: =masque!P98 -> 1 | G11: =IF(masque!Q97=0,IF(masque!Q98=0,""," S : "&masque!Q98),IF(masque!Q98=0,"F: "&masque!Q97,"F: "&masque!Q97&"// S : "&masque!Q98)) ->  | H11: =IF(masque!R97=0,IF(masque!R98=0,""," S : "&masque!R98),IF(masque!R98=0,"F: "&masque!R97,"F: "&masque!R97&"// S : "&masque!R98)) ->  | I11: =IF(masque!S97=0,IF(masque!S98=0,""," S : "&masque!S98),IF(masque!S98=0,"F: "&masque!S97,"F: "&masque!S97&"// S : "&masque!S98)) ->  | J11: =IF(masque!T97=0,IF(masque!T98=0,""," S : "&masque!T98),IF(masque!T98=0,"F: "&masque!T97,"F: "&masque!T97&"// S : "&masque!T98)) -> F: // S :
B12: =masque!L99 -> Entretien et Nettoyage des évaporateurs | C12: =masque!M99 -> -2 | D12: =masque!N99 -> 2 | E12: NA | F12: =masque!P99 -> 2 | G12: =IF(masque!Q99=0,"",masque!Q99) ->  | H12: =IF(masque!R99=0,"",masque!R99) ->  | I12: =IF(masque!S99=0,"",masque!S99) ->  | J12: =IF(masque!T99=0,"",masque!T99) -> 
A13: 183a | B13: =masque!L100 -> Absence de produits non identifiés | C13: =masque!M100 -> -5 | D13: =masque!N100 -> 2 | E13: =masque!P100 -> 2 | F13: NA | G13: =IF(masque!Q100=0,"",masque!Q100) ->  | H13: =IF(masque!R100=0,"",masque!R100) ->  | I13: =IF(masque!S100=0,"",masque!S100) ->  | J13: =IF(masque!T100=0,"",masque!T100) -> 
B14: =masque!L101 -> Présence et bon fonctionnement du thermomètre enregistreur | C14: =masque!M101 -> -1 | D14: =masque!N101 -> 1 | E14: NA | F14: =masque!P101 -> 1 | G14: =IF(masque!Q101=0,"",masque!Q101) ->  | H14: =IF(masque!R101=0,"",masque!R101) ->  | I14: =IF(masque!S101=0,"",masque!S101) ->  | J14: =IF(masque!T101=0,"",masque!T101) -> 
B15: =masque!L102 -> Respect des DLC /DLUO (olives) | C15: =masque!M102 -> -10 | D15: =masque!N102 -> 2 | E15: =masque!P102 -> 2 | F15: NA | G15: =IF(masque!Q102=0,"",masque!Q102) ->  | H15: =IF(masque!R102=0,"",masque!R102) ->  | I15: =IF(masque!S102=0,"",masque!S102) ->  | J15: =IF(masque!T102=0,"",masque!T102) -> 
B16: =masque!L103 -> Respect des DLC /DLUO (fruits et légumes emballés) | C16: =masque!M103 -> -10 | D16: =masque!N103 -> 2 | E16: =masque!P103 -> 2 | F16: NA | G16: =IF(masque!Q103=0,"",masque!Q103) ->  | H16: =IF(masque!R103=0,"",masque!R103) ->  | I16: =IF(masque!S103=0,"",masque!S103) ->  | J16: =IF(masque!T103=0,"",masque!T103) -> 
A17: 185a | B17: =masque!L104 -> Respect des DLC /DLUO (fruits secs, épices) | C17: =masque!M104 -> -10 | D17: =masque!N104 -> 2 | E17: =masque!P104 -> 2 | F17: NA | G17: =IF(masque!Q104=0,"",masque!Q104) ->  | H17: =IF(masque!R104=0,"",masque!R104) ->  | I17: =IF(masque!S104=0,"",masque!S104) ->  | J17: =IF(masque!T104=0,"",masque!T104) -> 
A18: 185b | B18: =masque!L105 -> Respect des températures réglementaires | C18: =masque!M105 -> -2 | D18: =masque!N105 -> 2 | E18: NA | F18: =masque!P105 -> 2 | G18: =IF(masque!Q105=0,"",masque!Q105) ->  | H18: =IF(masque!R105=0,"",masque!R105) ->  | I18: =IF(masque!S105=0,"",masque!S105) ->  | J18: =IF(masque!T105=0,"",masque!T105) -> 
A19: 185f | B19: =masque!L106 -> Lisibilité de l'étiquetage et balisage complet | C19: =masque!M106 -> -1 | D19: =masque!N106 -> 1 | E19: =masque!P106 -> 1 | F19: NA | G19: =IF(masque!Q106=0,"",masque!Q106) ->  | H19: =IF(masque!R106=0,"",masque!R106) ->  | I19: =IF(masque!S106=0,"",masque!S106) ->  | J19: =IF(masque!T106=0,"",masque!T106) -> 
B20: =masque!L107 -> Affichage du prix | C20: =masque!M107 -> -1 | D20: =masque!N107 -> 1 | E20: =masque!P107 -> 0 | F20: NA | G20: =IF(masque!Q107=0,"",masque!Q107) -> présence de traces de rouille sur les étagères | H20: =IF(masque!R107=0,"",masque!R107) -> Procéder à un traitement anti rouille et peinture pour les étagères. | I20: =IF(masque!S107=0,"",masque!S107) -> 42783 | J20: =IF(masque!T107=0,"",masque!T107) -> 
A21: 185g | B21: =masque!L108 -> Matériel propre (caisse, table, balance,etagere) | C21: =masque!M108 -> -1 | D21: =masque!N108 -> 1 | E21: =masque!P108 -> 1 | F21: NA | G21: =IF(masque!Q108=0,"",masque!Q108) ->  | H21: =IF(masque!R108=0,"",masque!R108) ->  | I21: =IF(masque!S108=0,"",masque!S108) ->  | J21: =IF(masque!T108=0,"",masque!T108) -> 
A22: 1810 | B22: =masque!L109 -> Tri des produits effectué. | C22: =masque!M109 -> -10 | D22: =masque!N109 -> 2 | E22: =masque!P109 -> 2 | F22: NA | G22: =IF(masque!Q109=0,"",masque!Q109) ->  | H22: =IF(masque!R109=0,"",masque!R109) ->  | I22: =IF(masque!S109=0,"",masque!S109) ->  | J22: =IF(masque!T109=0,"",masque!T109) -> 
B23: =masque!L110 -> Rotation des produits effectuée. | C23: =masque!M110 -> -2 | D23: =masque!N110 -> 2 | E23: =masque!P110 -> 2 | F23: NA | G23: =IF(masque!Q110=0,"",masque!Q110) ->  | H23: =IF(masque!R110=0,"",masque!R110) ->  | I23: =IF(masque!S110=0,"",masque!S110) ->  | J23: =IF(masque!T110=0,"",masque!T110) -> 
B24: =masque!L111 -> Absence de stockage au sol | C24: =masque!M111 -> -1 | D24: =masque!N111 -> 1 | E24: =masque!P111 -> 1 | F24: NA | G24: =IF(masque!Q111=0,"",masque!Q111) ->  | H24: =IF(masque!R111=0,"",masque!R111) ->  | I24: =IF(masque!S111=0,"",masque!S111) ->  | J24: =IF(masque!T111=0,"",masque!T111) -> 
B25: =masque!L112 -> Absence de mélange de produits différents. | C25: =masque!M112 -> -2 | D25: =masque!N112 -> 2 | E25: =masque!P112 -> 2 | F25: NA | G25: =IF(masque!Q112=0,"",masque!Q112) ->  | H25: =IF(masque!R112=0,"",masque!R112) ->  | I25: =IF(masque!S112=0,"",masque!S112) ->  | J25: =IF(masque!T112=0,"",masque!T112) -> 
B26: =masque!L113 -> Balances tarées | C26: =masque!M113 -> -5 | D26: =masque!N113 -> 2 | E26: =masque!P113 -> 2 | F26: NA | G26: =IF(masque!Q113=0,"",masque!Q113) ->  | H26: =IF(masque!R113=0,"",masque!R113) ->  | I26: =IF(masque!S113=0,"",masque!S113) ->  | J26: =IF(masque!T113=0,"",masque!T113) -> 
B27: Sous Total : | D27: =SUM(D8:D26) -> 31 | E27: =SUM(E8:E26) -> 24 | F27: =SUM(F8:F26) -> 8
A28: 17. | B28: HYGIENE
A29: 472 | B29: =masque!L114 -> Produits d’entretien conformes et correctement utilisés et rangés | C29: =masque!M114 -> -5 | D29: =masque!N114 -> 2 | E29: =masque!P114 -> 2 | F29: NA | G29: =IF(masque!Q114=0,"",masque!Q114) ->  | H29: =IF(masque!R114=0,"",masque!R114) ->  | I29: =IF(masque!S114=0,"",masque!S114) ->  | J29: =IF(masque!T114=0,"",masque!T114) -> 
A30: 473 | B30: =masque!L115 -> Présence du planning de nettoyage | C30: =masque!M115 -> -1 | D30: =masque!N115 -> 1 | E30: =masque!P115 -> 1 | F30: NA | G30: =IF(masque!Q115=0,"",masque!Q115) ->  | H30: =IF(masque!R115=0,"",masque!R115) ->  | I30: =IF(masque!S115=0,"",masque!S115) ->  | J30: =IF(masque!T115=0,"",masque!T115) -> 
B31: Sous Total : | D31: =SUM(D29:D30) -> 3 | E31: =SUM(E29:E30) -> 3 | F31: =SUM(F29:F30) -> 0
A33: 22 | B33: AUTOCONTROLES
A34: 221 | B34: =masque!L116 -> Présence du référentiel qualité | C34: =masque!M116 -> -2 | D34: =masque!N116 -> 2 | E34: =masque!P116 -> 2 | F34: NA | G34: =IF(masque!Q116=0,"",masque!Q116) ->  | H34: =IF(masque!R116=0,"",masque!R116) ->  | I34: =IF(masque!S116=0,"",masque!S116) ->  | J34: =IF(masque!T116=0,"",masque!T116) -> 
A35: 222b | B35: =masque!L117 -> Autocontrôle des températures | C35: =masque!M117 -> -5 | D35: =masque!N117 -> 5 | E35: =masque!P117 -> 5 | F35: NA | G35: =IF(masque!Q117=0,"",masque!Q117) ->  | H35: =IF(masque!R117=0,"",masque!R117) ->  | I35: =IF(masque!S117=0,"",masque!S117) ->  | J35: =IF(masque!T117=0,"",masque!T117) -> 
B36: =masque!L118 -> Mise en place des auto-controles du nettoyage | C36: =masque!M118 -> -2 | D36: =masque!N118 -> 2 | E36: =masque!P118 -> 2 | F36: NA | G36: =IF(masque!Q118=0,"",masque!Q118) ->  | H36: =IF(masque!R118=0,"",masque!R118) ->  | I36: =IF(masque!S118=0,"",masque!S118) ->  | J36: =IF(masque!T118=0,"",masque!T118) -> 
B37: =masque!L119 -> Les résultats d'audits externes sont affichés au pole | C37: =masque!M119 -> -1 | D37: =masque!N119 -> 1 | E37: =masque!P119 -> 1 | F37: NA | G37: =IF(masque!Q119=0,"",masque!Q119) ->  | H37: =IF(masque!R119=0,"",masque!R119) ->  | I37: =IF(masque!S119=0,"",masque!S119) ->  | J37: =IF(masque!T119=0,"",masque!T119) -> 
A38: 224 | B38: =masque!L120 -> Mise en place de Plan d'action suite aux audits | C38: =masque!M120 -> -1 | D38: =masque!N120 -> 1 | E38: =masque!P120 -> 0 | F38: NA | G38: =IF(masque!Q120=0,"",masque!Q120) -> Bien que la quantité de ferraille et les restes d'emballage a diminué, une partie demeure au niveau de la réserve. Présence des fientes d'oiseaux aux murs de la réserve. | H38: =IF(masque!R120=0,"",masque!R120) -> Eliminer la totalité de la ferraille. Nettoyer les murs. | I38: =IF(masque!S120=0,"",masque!S120) -> 14/06/2017 17/02/2017 | J38: =IF(masque!T120=0,"",masque!T120) -> Hamza BRAIEK
B39: Sous Total : | D39: =SUM(D34:D38) -> 11 | E39: =SUM(E34:E38) -> 10 | F39: =SUM(F34:F38) -> 0
C40: Max | D40: =E40+F40 -> 48 | E40: =masque!Q5 -> 40 | F40: =masque!R5 -> 8
E41: Note F | F41: Note T
B42: TOTAL : | E42: =SUM(E39,E31,E27) -> 37 | F42: =SUM(F39,F31,F27) -> 8
B43: NOTE : | D43: /100 | E43: =IF(E40=0,"",E42/E40) -> 0.925 | F43: =IF(F40=0,"",F42/F40) -> 1
E44: =IF(D40=0,"",(E42+F42)/D40) -> 0.9375

Sheet EPICERIE
A1: ="Accompagné par : " &masque!K6 -> Accompagné par : Hamza BRAIEK | I1: EPICERIE /LIQUIDES | M1: EPI
K2: Visite
J3: Visite | K3: =masque!$E$11 -> V2
J4: Date | K4: =masque!$E$12 -> 2017-06-14
J5: Heure
I6: Pénalités | J6: Base | M6: Non-conformité | N6: Action corrective | O6: Fixé le | P6: Responsable
A7: 11. | B7: RESERVE | K7: F | L7: T
A8: 112 | B8: =masque!L121 -> Réserve propre et rangée. | C8: =masque!M121 -> -5 | D8: =masque!N121 -> 2 | E8: =masque!O121 -> OK | F8: =masque!P121 -> 2 | G8: =masque!Q121 -> 0 | H8: =masque!R128 -> Eliminer les boites de conserve rouillées. | I8: =masque!M121 -> -5 | J8: =masque!N121 -> 2 | K8: =masque!P121 -> 2 | L8: NA | M8: =IF(masque!Q121=0,"",masque!Q121) ->  | N8: =IF(masque!R128=0,"",masque!R128) -> Eliminer les boites de conserve rouillées. | O8: =IF(masque!S128=0,"",masque!S128) -> 2017-06-14 | P8: =IF(masque!T121=0,"",masque!T121) -> 
A9: 113 | B9: =masque!L122 -> Zone de retour produit balisée | I9: =masque!M122 -> -2 | J9: =masque!N122 -> 2 | K9: =masque!P122 -> 0 | L9: NA | M9: =IF(masque!Q122=0,"",masque!Q122) -> Entreposage des sacs de farine sur des palettes en bois abimées | N9: =IF(masque!R122=0,"",masque!R122) -> Utiliser des palettes en bois en bon état. | O9: =IF(masque!S122=0,"",masque!S122) ->  | P9: =IF(masque!T122=0,"",masque!T122) -> Hamza BRAIEK
A10: 114 | B10: =masque!L123 -> Absence de stockage au sol | C10: nb produit | I10: =masque!M123 -> -1 | J10: =masque!N123 -> 1 | K10: =masque!P123 -> 0 | L10: NA | M10: =IF(masque!Q123=0,"",masque!Q123) -> Stockage du lait dans le couloir destiné à l'entreposage des produits casse (couloir derrière les chambres froides). | N10: =IF(masque!R123=0,"",masque!R123) -> Stocker le lait dans la zone de stockage des liquides. | O10: =IF(masque!S123=0,"",masque!S123) -> 2017-06-14 | P10: =IF(masque!T123=0,"",masque!T123) -> Hamza BRAIEK
A11: 115 | B11: =masque!L124 -> Produits consignés isolés et balisés | I11: =masque!M124 -> -2 | J11: =masque!N124 -> 2 | K11: =masque!P124 -> 2 | L11: NA | M11: =IF(masque!Q124=0,"",masque!Q124) ->  | N11: =IF(masque!R124=0,"",masque!R124) ->  | O11: =IF(masque!S124=0,"",masque!S124) ->  | P11: =IF(masque!T124=0,"",masque!T124) -> 
A12: 116 | B12: =masque!L125 -> Respect des DLUO | I12: =masque!M125 -> -20 | J12: =masque!N125 -> 2 | K12: =masque!P125 -> NA | L12: NA | M12: =IF(masque!Q131=0,"",masque!Q131) ->  | N12: =IF(masque!R131=0,"",masque!R131) ->  | O12: =IF(masque!S125=0,"",masque!S125) ->  | P12: =IF(masque!T125=0,"",masque!T125) -> 
B13: Sous Total : | J13: =SUM(J8:J12) -> 9 | K13: =SUM(K8:K12) -> 4 | L13: =SUM(L8:L12) -> 0
B14: HYGIENE
B15: =masque!L126 -> Présence du planning de nettoyage | C15: =masque!M126 -> -1 | D15: =masque!N126 -> 1 | E15: =masque!O126 -> OK | F15: =masque!P126 -> 1 | G15: =masque!Q126 -> 0 | H15: =masque!R126 -> 0 | I15: =masque!M126 -> -1 | J15: =masque!N126 -> 1 | K15: =masque!P126 -> 1 | L15: NA | M15: =IF(masque!Q126=0,"",masque!Q126) ->  | N15: =IF(masque!R126=0,"",masque!R126) ->  | O15: =IF(masque!S126=0,"",masque!S126) ->  | P15: =IF(masque!T126=0,"",masque!T126) -> 
B16: Sous Total : | J16: =SUM(J15) -> 1 | K16: =SUM(K15) -> 1 | L16: =SUM(L15) -> 0
A17: 18. | B17: LINEAIRE
B18: =masque!L127 -> Entretien des linéaires | I18: =masque!M127 -> -10 | J18: =masque!N127 -> 5 | K18: NA | L18: =masque!P127 -> 5 | M18: =IF(masque!Q127=0,"",masque!Q127) ->  | N18: =IF(masque!R127=0,"",masque!R127) ->  | O18: =IF(masque!S127=0,"",masque!S127) ->  | P18: =IF(masque!T127=0,"",masque!T127) -> 
A19: 181 | B19: =masque!L128 -> Linéaires propres et rangés | C19: =masque!M128 -> -10 | D19: =masque!N128 -> 5 | E19: =masque!O128 -> NOK | F19: =masque!P128 -> -5 | G19: =masque!Q128 -> Présence de rouille sur les boites de tomate pelée (DLUO 15/07/2019). Présence des éclaboussures de confiture sur l'étagère suite à un éclatement de la boite. | H19: =masque!#REF! ->  | I19: =masque!M128 -> -10 | J19: =masque!N128 -> 5 | K19: =masque!P128 -> -5 | L19: NA | M19: =IF(masque!Q128=0,"",masque!Q128) -> Présence de rouille sur les boites de tomate pelée (DLUO 15/07/2019). Présence des éclaboussures de confiture sur l'étagère suite à un éclatement de la boite. | N19: =IF(masque!#REF!=0,"",masque!#REF!) ->  | O19: =IF(masque!#REF!=0,"",masque!#REF!) ->  | P19: =IF(masque!T128=0,"",masque!T128) -> Hamza BRAIEK
A20: 183 | B20: =masque!L129 -> Aspect satisfaisant des produits. | I20: =masque!M129 -> -1 | J20: =masque!N129 -> 1 | K20: =masque!P129 -> 1 | L20: NA | M20: =IF(masque!Q129=0,"",masque!Q129) ->  | N20: =IF(masque!R129=0,"",masque!R129) ->  | O20: =IF(masque!S129=0,"",masque!S129) ->  | P20: =IF(masque!T129=0,"",masque!T129) -> 
B21: =masque!L130 -> Absence de produits non identifiés | I21: =masque!M130 -> -1 | J21: =masque!N130 -> 1 | K21: =masque!P130 -> 1 | L21: NA | M21: =IF(masque!Q130=0,"",masque!Q130) ->  | N21: =IF(masque!R130=0,"",masque!R130) ->  | O21: =IF(masque!S130=0,"",masque!S130) ->  | P21: =IF(masque!T130=0,"",masque!T130) -> 
B22: =masque!L131 -> RESPECT DES DLUO | I22: =masque!M131 -> -20 | J22: =masque!N131 -> 2 | K22: =masque!P131 -> 2 | L22: NA | M22: =IF(masque!#REF!=0,"",masque!#REF!) ->  | N22: =IF(masque!#REF!=0,"",masque!#REF!) ->  | O22: =IF(masque!S131=0,"",masque!S131) ->  | P22: =IF(masque!T131=0,"",masque!T131) -> 
B23: Sous Total : | J23: =SUM(J18:J22) -> 14 | K23: =SUM(K18:K22) -> -1 | L23: =SUM(L18:L22) -> 5
A24: 56 | B24: AUTOCONTROLES
B25: =masque!L132 -> Présence du référentiel Qualité | C25: =masque!M132 -> -2 | D25: =masque!N132 -> 2 | E25: =masque!O132 -> Nobs | F25: =masque!P132 -> Nobs | G25: =masque!Q132 -> 0 | H25: =masque!R132 -> 0 | I25: =masque!M132 -> -2 | J25: =masque!N132 -> 2 | K25: =masque!P132 -> Nobs | L25: NA | M25: =IF(masque!Q132=0,"",masque!Q132) ->  | N25: =IF(masque!R132=0,"",masque!R132) ->  | O25: =IF(masque!S132=0,"",masque!S132) ->  | P25: =IF(masque!T132=0,"",masque!T132) -> 
B26: =masque!L133 -> Suivi des autocontrôles de nettoyage | I26: =masque!M133 -> -2 | J26: =masque!N133 -> 2 | K26: =masque!P133 -> 2 | L26: NA | M26: =IF(masque!Q133=0,"",masque!Q133) ->  | N26: =IF(masque!R133=0,"",masque!R133) ->  | O26: =IF(masque!S133=0,"",masque!S133) ->  | P26: =IF(masque!T133=0,"",masque!T133) -> 
B27: =masque!L134 -> Les résultats d'audits externes sont affichés au pole | C27: -1 | D27: 1 | I27: =masque!M134 -> -1 | J27: =masque!N134 -> 1 | K27: =masque!P134 -> 1 | L27: NA | M27: =IF(masque!Q134=0,"",masque!Q134) ->  | N27: =IF(masque!R134=0,"",masque!R134) ->  | O27: =IF(masque!S134=0,"",masque!S134) ->  | P27: =IF(masque!T134=0,"",masque!T134) -> 
B28: =masque!L135 -> Mise en place de Plan d'action suite aux audits | C28: -1 | D28: 1 | I28: =masque!M135 -> -1 | J28: =masque!N135 -> 1 | K28: =masque!P135 -> NA | L28: NA | M28: =IF(masque!Q135=0,"",masque!Q135) ->  | N28: =IF(masque!R135=0,"",masque!R135) ->  | O28: =IF(masque!S135=0,"",masque!S135) ->  | P28: =IF(masque!T135=0,"",masque!T135) -> 
B29: Sous Total : | J29: =SUM(J25:J28) -> 6 | K29: =SUM(K25:K28) -> 3 | L29: =SUM(L25:L28) -> 0
I30: Max | J30: =K30+L30 -> 25 | K30: =masque!Q6 -> 20 | L30: =masque!R6 -> 5
K31: Note F | L31: Note T
A32: TOTAL : | K32: =SUM(K29,K23,K16,K13) -> 7 | L32: =SUM(L29,L23,L16,L13) -> 5
A33: NOTE : | J33: /100 | K33: =IF(K30=0,"",K32/K30) -> 0.35 | L33: =IF(L30=0,"",L32/L30) -> 1
K34: =IF(J30=0,"",(K32+L32)/J30) -> 0.48

Sheet POISSON
C1: POISSON | H1: POI
E2: Visite
A3: ="Accompagné par : " &masque!K4 -> Accompagné par : Ahmed ben Salem | D3: Visite | E3: =masque!$E$11 -> V2
D4: Date | E4: =masque!$E$12 -> 2017-06-14
D5: Heure
C6: Décote | D6: Base | G6: Non-conformité | H6: Action corrective | I6: Fixé le | J6: Responsable
B7: POLE | E7: F | F7: T
B8: =masque!L48 -> Equipement propre (table. Balance, Caisse) | C8: =masque!M48 -> -2 | D8: =masque!N48 -> 2 | E8: =masque!P48 -> 2 | F8: NA | G8: =IF(masque!Q48=0,"",masque!Q48) ->  | H8: =IF(masque!R48=0,"",masque!R48) ->  | I8: =IF(masque!S48=0,"",masque!S48) ->  | J8: =IF(masque!T48=0,"",masque!T48) -> 
B9: =masque!L50 -> Entretien et propreté des sols, plinthes, murs plafonds, portes satisfaisants | C9: =masque!M49 -> -5 | D9: =masque!N49 -> 2 | E9: =masque!P49 -> 2 | F9: =masque!P50 -> -3 | G9: =IF(masque!Q49=0,IF(masque!Q50=0,""," S : "&masque!Q50),IF(masque!Q50=0,"F: "&masque!Q49,"F: "&masque!Q49&"// S : "&masque!Q50)) -> S : Présence de fuite d'eau au niveau de l'évier. | H9: =IF(masque!R49=0,IF(masque!R50=0,""," S : "&masque!R50),IF(masque!R50=0,"F: "&masque!R49,"F: "&masque!R49&"// S : "&masque!R50)) -> S : Réparer la fuite | I9: =IF(masque!S49=0,IF(masque!S50=0,""," S : "&masque!S50),IF(masque!S50=0,"F: "&masque!S49,"F: "&masque!S49&"// S : "&masque!S50)) -> S : 42900 | J9: =IF(masque!T49=0,IF(masque!T50=0,""," S : "&masqueT47),IF(masque!T50=0,"F: "&masque!T49,"F: "&masque!T49&"// S : "&masque!T50)) -> F: // S : Ahmed ben Salem
B10: =masque!L52 -> Entretien et propreté des évacuations au sol satisfaisants | C10: =masque!M51 -> -1 | D10: =masque!N51 -> 1 | E10: =masque!P51 -> 1 | F10: =masque!P52 -> 1 | G10: =IF(masque!Q51=0,IF(masque!Q52=0,""," S : "&masque!Q52),IF(masque!Q52=0,"F: "&masque!Q51,"F: "&masque!Q51&"// S : "&masque!Q52)) ->  | H10: =IF(masque!R51=0,IF(masque!R52=0,""," S : "&masque!R52),IF(masque!R52=0,"F: "&masque!R51,"F: "&masque!R51&"// S : "&masque!R52)) ->  | I10: =IF(masque!S51=0,IF(masque!S52=0,""," S : "&masque!S52),IF(masque!S52=0,"F: "&masque!S51,"F: "&masque!S51&"// S : "&masque!S52)) ->  | J10: =IF(masque!T51=0,IF(masque!T52=0,""," S : "&masqueT49),IF(masque!T52=0,"F: "&masque!T51,"F: "&masque!T51&"// S : "&masque!T52)) -> F: // S :
B11: =masque!L53 -> Présence et bon fonctionnement du thermomètre enregistreur | C11: =masque!M53 -> -1 | D11: =masque!N53 -> 1 | E11: NA | F11: =masque!P53 -> 1 | G11: =IF(masque!Q53=0,"",masque!Q53) ->  | H11: =IF(masque!R53=0,"",masque!R53) ->  | I11: =IF(masque!S53=0,"",masque!S53) ->  | J11: =IF(masque!T53=0,"",masque!T53) -> 
B12: =masque!L54 -> Entretien et Nettoyage des évaporateurs | C12: =masque!M54 -> -2 | D12: =masque!N54 -> 2 | E12: NA | F12: =masque!P54 -> 2 | G12: =IF(masque!Q54=0,"",masque!Q54) ->  | H12: =IF(masque!R54=0,"",masque!R54) ->  | I12: =IF(masque!S54=0,"",masque!S54) ->  | J12: =IF(masque!T54=0,"",masque!T54) -> 
B13: =masque!L55 -> Présence d'une poubelle conforme | C13: =masque!M55 -> -1 | D13: =masque!N55 -> 1 | E13: =masque!P55 -> 1 | F13: NA | G13: =IF(masque!Q55=0,"",masque!Q55) ->  | H13: =IF(masque!R55=0,"",masque!R55) ->  | I13: =IF(masque!S55=0,"",masque!S55) ->  | J13: =IF(masque!T55=0,"",masque!T55) -> 
B14: =masque!L56 -> Respect des DLC | C14: =masque!M56 -> -20 | D14: =masque!N56 -> 2 | E14: =masque!P56 -> 2 | F14: NA | G14: =IF(masque!Q56=0,"",masque!Q56) ->  | H14: =IF(masque!R56=0,"",masque!R56) ->  | I14: =IF(masque!S56=0,"",masque!S56) ->  | J14: =IF(masque!T56=0,"",masque!T56) -> 
B15: =masque!L57 -> Absence de charge excessive | C15: =masque!M57 -> -1 | D15: =masque!N57 -> 1 | E15: =masque!P57 -> NA | F15: NA | G15: =IF(masque!Q57=0,"",masque!Q57) -> Absence de vente de poissons frais le jour de l'audit | H15: =IF(masque!R57=0,"",masque!R57) ->  | I15: =IF(masque!S57=0,"",masque!S57) ->  | J15: =IF(masque!T57=0,"",masque!T57) -> 
B16: =masque!L58 -> Absence de produits non identifiés | C16: =masque!M58 -> -5 | D16: =masque!N58 -> 2 | E16: =masque!P58 -> NA | F16: NA | G16: =IF(masque!Q58=0,"",masque!Q58) ->  | H16: =IF(masque!R58=0,"",masque!R58) ->  | I16: =IF(masque!S58=0,"",masque!S58) ->  | J16: =IF(masque!T58=0,"",masque!T58) -> 
B17: =masque!L59 -> Présentation satisfaisante des produits au niveau du pole: Poissons entiers/mollusques | C17: =masque!M59 -> -1 | D17: =masque!N59 -> 1 | E17: =masque!P59 -> NA | F17: NA | G17: =IF(masque!Q64=0,"",masque!Q64) ->  | H17: =IF(masque!R64=0,"",masque!R64) ->  | I17: =IF(masque!S64=0,"",masque!S64) ->  | J17: =IF(masque!T59=0,"",masque!T59) -> 
B18: =masque!L60 -> Présentation satisfaisante des produits au niveau du pole: Coquillages vivants | C18: =masque!M60 -> -1 | D18: =masque!N60 -> 1 | E18: =masque!P60 -> NA | F18: NA | G18: =IF(masque!Q60=0,"",masque!Q60) ->  | H18: =IF(masque!R60=0,"",masque!R60) ->  | I18: =IF(masque!S60=0,"",masque!S60) ->  | J18: =IF(masque!T60=0,"",masque!T60) -> 
B19: =masque!L61 -> Présentation satisfaisante des produits au niveau du pole: Crustacés vivants | C19: =masque!M61 -> -1 | D19: =masque!N61 -> 1 | E19: =masque!P61 -> NA | F19: NA | G19: =IF(masque!Q61=0,"",masque!Q61) ->  | H19: =IF(masque!R61=0,"",masque!R61) ->  | I19: =IF(masque!S61=0,"",masque!S61) ->  | J19: =IF(masque!T61=0,"",masque!T61) -> 
B20: =masque!L62 -> Respect des températures réglementaires | C20: =masque!M62 -> -2 | D20: =masque!N62 -> 2 | E20: =masque!P62 -> NA | F20: NA | G20: =IF(masque!Q62=0,"",masque!Q62) ->  | H20: =IF(masque!R62=0,"",masque!R62) ->  | I20: =IF(masque!S62=0,"",masque!S62) ->  | J20: =IF(masque!T62=0,"",masque!T62) -> 
B21: =masque!L63 -> Absence de décoration au contact des produits | C21: =masque!M63 -> -2 | D21: =masque!N63 -> 2 | E21: =masque!P63 -> NA | F21: NA | G21: =IF(masque!Q63=0,"",masque!Q63) ->  | H21: =IF(masque!R63=0,"",masque!R63) ->  | I21: =IF(masque!S63=0,"",masque!S63) ->  | J21: =IF(masque!T63=0,"",masque!T63) -> 
B22: =masque!L64 -> Produits correctement glacés ou présentés. | C22: =masque!M64 -> -2 | D22: =masque!N64 -> 2 | E22: =masque!P64 -> NA | F22: NA | G22: =IF(masque!#REF!=0,"",masque!#REF!) ->  | H22: =IF(masque!#REF!=0,"",masque!#REF!) ->  | I22: =IF(masque!#REF!=0,"",masque!#REF!) ->  | J22: =IF(masque!T64=0,"",masque!T64) -> 
B23: =masque!L65 -> Etiquetage et balisage conformes et complets | C23: =masque!M65 -> -5 | D23: =masque!N65 -> 2 | E23: =masque!P65 -> NA | F23: NA | G23: =IF(masque!Q65=0,"",masque!Q65) ->  | H23: =IF(masque!R65=0,"",masque!R65) ->  | I23: =IF(masque!S65=0,"",masque!S65) ->  | J23: =IF(masque!T65=0,"",masque!T65) -> 
B24: =masque!L66 -> Absence d’étiquettes piquées dans les produits | C24: =masque!M66 -> -5 | D24: =masque!N66 -> 2 | E24: =masque!P66 -> NA | F24: NA | G24: =IF(masque!Q66=0,"",masque!Q66) ->  | H24: =IF(masque!R66=0,"",masque!R66) ->  | I24: =IF(masque!S66=0,"",masque!S66) ->  | J24: =IF(masque!T66=0,"",masque!T66) -> 
B25: =masque!L67 -> Balances tarées | C25: =masque!M67 -> -5 | D25: =masque!N67 -> 2 | E25: =masque!P67 -> 2 | F25: NA | G25: =IF(masque!Q67=0,"",masque!Q67) ->  | H25: =IF(masque!R67=0,"",masque!R67) ->  | I25: =IF(masque!S67=0,"",masque!S67) ->  | J25: =IF(masque!T67=0,"",masque!T67) -> 
B26: Sous Total : | D26: =SUM(D8:D25) -> 29 | E26: =SUM(E8:E25) -> 10 | F26: =SUM(F8:F25) -> 1
B27: LINEAIRE SURGELE
B28: =masque!L68 -> Absence d'attente hors froid | C28: =masque!M68 -> -1 | D28: =masque!N68 -> 1 | E28: =masque!P68 -> 1 | F28: NA | G28: =IF(masque!Q68=0,"",masque!Q68) ->  | H28: =IF(masque!R68=0,"",masque!R68) ->  | I28: =IF(masque!S68=0,"",masque!S68) ->  | J28: =IF(masque!T68=0,"",masque!T68) -> 
B29: =masque!L69 -> Propreté des meubles satisfaisants | C29: =masque!M69 -> -5 | D29: =masque!N69 -> 2 | E29: =masque!P69 -> 2 | F29: NA | G29: =IF(masque!Q69=0,"",masque!Q69) ->  | H29: =IF(masque!R69=0,"",masque!R69) ->  | I29: =IF(masque!S69=0,"",masque!S69) ->  | J29: =IF(masque!T69=0,"",masque!T69) -> 
B30: =masque!L70 -> entretien des meubles satisfaisants | C30: =masque!M70 -> -5 | D30: =masque!N70 -> 2 | E30: NA | F30: =masque!P70 -> 2 | G30: =IF(masque!Q70=0,"",masque!Q70) ->  | H30: =IF(masque!R70=0,"",masque!R70) ->  | I30: =IF(masque!S70=0,"",masque!S70) ->  | J30: =IF(masque!T70=0,"",masque!T70) -> 
B31: =masque!L71 -> Absence de charge excessive | C31: =masque!M71 -> -1 | D31: =masque!N71 -> 1 | E31: =masque!P71 -> 1 | F31: NA | G31: =IF(masque!Q71=0,"",masque!Q71) ->  | H31: =IF(masque!R71=0,"",masque!R71) ->  | I31: =IF(masque!S71=0,"",masque!S71) ->  | J31: =IF(masque!T71=0,"",masque!T71) -> 
B32: =masque!L72 -> Respect des DLC | C32: =masque!M72 -> -10 | D32: =masque!N72 -> 2 | E32: =masque!P72 -> 2 | F32: NA | G32: =IF(masque!Q72=0,"",masque!Q72) ->  | H32: =IF(masque!R72=0,"",masque!R72) ->  | I32: =IF(masque!S72=0,"",masque!S72) ->  | J32: =IF(masque!T72=0,"",masque!T72) -> 
B33: =masque!L73 -> Température adaptée (-18°C) | C33: =masque!M73 -> -2 | D33: =masque!N73 -> 2 | E33: NA | F33: =masque!P73 -> 2 | G33: =IF(masque!Q73=0,"",masque!Q73) ->  | H33: =IF(masque!R73=0,"",masque!R73) ->  | I33: =IF(masque!S73=0,"",masque!S73) ->  | J33: =IF(masque!T73=0,"",masque!T73) -> 
B34: =masque!L74 -> Aspect satisfaisant des produits | C34: =masque!M74 -> -1 | D34: =masque!N74 -> 1 | E34: =masque!P74 -> 1 | F34: NA | G34: =IF(masque!Q74=0,"",masque!Q74) ->  | H34: =IF(masque!R74=0,"",masque!R74) ->  | I34: =IF(masque!S74=0,"",masque!S74) ->  | J34: =IF(masque!T74=0,"",masque!T74) -> 
B35: Sous Total : | D35: =SUM(D28:D34) -> 11 | E35: =SUM(E28:E34) -> 7 | F35: =SUM(F28:F34) -> 4
A36: 12 | B36: METHODES DE TRAVAIL
A37: 123 | B37: =masque!L75 -> Glaçage hygiénique des caisses | C37: =masque!M75 -> -1 | D37: =masque!N75 -> 1 | E37: =masque!P75 -> 1 | F37: NA | G37: =IF(masque!Q75=0,"",masque!Q75) ->  | H37: =IF(masque!R75=0,"",masque!R75) ->  | I37: =IF(masque!S75=0,"",masque!S75) ->  | J37: =IF(masque!T75=0,"",masque!T75) -> 
A38: 124a | B38: =masque!L76 -> Manipulations rigoureuses. | C38: =masque!M76 -> -2 | D38: =masque!N76 -> 2 | E38: =masque!P76 -> 2 | F38: NA | G38: =IF(masque!Q76=0,"",masque!Q76) ->  | H38: =IF(masque!R76=0,"",masque!R76) ->  | I38: =IF(masque!S76=0,"",masque!S76) ->  | J38: =IF(masque!T76=0,"",masque!T76) -> 
A39: 124b | B39: =masque!L77 -> présence d'une pelle à glace pas à meme le sol. | C39: =masque!M77 -> -1 | D39: =masque!N77 -> 1 | E39: =masque!P77 -> 0 | F39: NA | G39: =IF(masque!Q77=0,"",masque!Q77) -> La pelle à glace est abimée | H39: =IF(masque!R77=0,"",masque!R77) -> Remplacer la pelle. | I39: =IF(masque!S77=0,"",masque!S77) ->  | J39: =IF(masque!T77=0,"",masque!T77) -> Ahmed ben Salem
A40: 124 | B40: =masque!L78 -> Entretien, propreté et stockage satisfaisants des pics prix | C40: =masque!M78 -> -1 | D40: =masque!N78 -> 1 | E40: =masque!P78 -> Nobs | F40: NA | G40: =IF(masque!Q78=0,"",masque!Q78) ->  | H40: =IF(masque!R78=0,"",masque!R78) ->  | I40: =IF(masque!S78=0,"",masque!S78) ->  | J40: =IF(masque!T78=0,"",masque!T78) -> 
B41: Sous Total : | D41: =SUM(D37:D40) -> 5 | E41: =SUM(E37:E40) -> 3 | F41: =SUM(F37:F40) -> 0
A42: 16. | B42: HYGIENE
A43: 1531 | B43: =masque!L79 -> Produits d’entretien conformes et correctement utilisés et rangés | C43: =masque!M79 -> -1 | D43: =masque!N79 -> 1 | E43: =masque!P79 -> 1 | F43: NA | G43: =IF(masque!Q79=0,"",masque!Q79) ->  | H43: =IF(masque!R79=0,"",masque!R79) ->  | J43: =IF(masque!T79=0,"",masque!T79) -> 
B44: =masque!L80 -> Présence du planning de nettoyage | C44: =masque!M80 -> -1 | D44: =masque!N80 -> 1 | E44: =masque!P80 -> NA | F44: NA | G44: =IF(masque!Q80=0,"",masque!Q80) ->  | H44: =IF(masque!R80=0,"",masque!R80) ->  | J44: =IF(masque!T80=0,"",masque!T80) -> 
B45: =masque!L82 -> Propreté et entretien des évacuations au sol satisfaisants | C45: =masque!M81 -> -1 | D45: =masque!N81 -> 1 | E45: =masque!P81 -> 1 | F45: =masque!P82 -> 1 | G45: =IF(masque!Q81=0,IF(masque!Q82=0,""," S : "&masque!Q82),IF(masque!Q82=0,"F: "&masque!Q81,"F: "&masque!Q81&"// S : "&masque!Q82)) ->  | H45: =IF(masque!R81=0,IF(masque!R82=0,""," S : "&masque!R82),IF(masque!R82=0,"F: "&masque!R81,"F: "&masque!R81&"// S : "&masque!R82)) ->  | I45: =IF(masque!S81=0,IF(masque!S82=0,""," S : "&masque!S82),IF(masque!S82=0,"F: "&masque!S81,"F: "&masque!S81&"// S : "&masque!S82)) ->  | J45: =IF(masque!T81=0,IF(masque!T82=0,""," S : "&masque!T82),IF(masque!T82=0,"F: "&masque!T81,"F: "&masque!T81&"// S : "&masque!T82)) -> F: // S :
B46: =masque!L83 -> Entretien et propreté des bacs à glace satisfaisants | C46: =masque!M83 -> -1 | D46: =masque!N83 -> 1 | E46: =masque!P83 -> Nobs | F46: NA | G46: =IF(masque!Q83=0,"",masque!Q83) ->  | H46: =IF(masque!R83=0,"",masque!R83) ->  | I46: =IF(masque!S83=0,"",masque!S83) ->  | J46: =IF(masque!T83=0,"",masque!T83) -> 
B47: =masque!L84 -> Poubelles propres | C47: =masque!M84 -> -1 | D47: =masque!N84 -> 1 | E47: =masque!P84 -> 1 | F47: NA | G47: =IF(masque!Q84=0,"",masque!Q84) ->  | H47: =IF(masque!R84=0,"",masque!R84) ->  | I47: =IF(masque!S84=0,"",masque!S84) ->  | J47: =IF(masque!T84=0,"",masque!T84) -> 
A48: 153 | B48: =masque!L85 -> Mains propres et protection des plaies | C48: =masque!M85 -> -1 | D48: =masque!N85 -> 1 | E48: =masque!P85 -> 0 | F48: NA | G48: =IF(masque!Q85=0,"",masque!Q85) -> absence de distributeur papier et distributeur savon liquide. | H48: =IF(masque!R85=0,"",masque!R85) -> Fixer les distributeurs. | I48: =IF(masque!S85=0,"",masque!S85) -> 42783 | J48: =IF(masque!T85=0,"",masque!T85) -> Ahmed ben Salem
A49: 164 | B49: =masque!L86 -> Lave-mains équipés réglementairement | C49: =masque!M86 -> -5 | D49: =masque!N86 -> 2 | E49: NA | F49: =masque!P86 -> 2 | G49: =IF(masque!Q86=0,"",masque!Q86) ->  | H49: =IF(masque!R86=0,"",masque!R86) ->  | I49: =IF(masque!S86=0,"",masque!S86) ->  | J49: =IF(masque!T86=0,"",masque!T86) -> 
B50: Sous Total : | D50: =SUM(D43:D49) -> 8 | E50: =SUM(E43:E49) -> 3 | F50: =SUM(F43:F49) -> 3
A51: 22. | B51: AUTOCONTROLES
A52: 221 | B52: =masque!L87 -> Présence du référentiel qualité. | C52: =masque!M87 -> -2 | D52: =masque!N87 -> 2 | E52: =masque!P87 -> 2 | F52: NA | G52: =IF(masque!Q87=0,"",masque!Q87) ->  | H52: =IF(masque!R87=0,"",masque!R87) ->  | I52: =IF(masque!S87=0,"",masque!S87) ->  | J52: =IF(masque!T87=0,"",masque!T87) -> 
A53: 222a | B53: =masque!L88 -> Suivi des autocontrôles de nettoyage | C53: =masque!M88 -> -2 | D53: =masque!N88 -> 2 | E53: =masque!P88 -> 2 | F53: NA | G53: =IF(masque!Q88=0,"",masque!Q88) ->  | H53: =IF(masque!R88=0,"",masque!R88) ->  | I53: =IF(masque!S88=0,"",masque!S88) ->  | J53: =IF(masque!T88=0,"",masque!T88) -> 
B54: =masque!L89 -> Autocontrôle des températures | C54: =masque!M89 -> -5 | D54: =masque!N89 -> 5 | E54: =masque!P89 -> 5 | F54: NA | G54: =IF(masque!Q89=0,"",masque!Q89) ->  | H54: =IF(masque!R89=0,"",masque!R89) ->  | I54: =IF(masque!S89=0,"",masque!S89) ->  | J54: =IF(masque!T89=0,"",masque!T89) -> 
A55: 222b | B55: =masque!L90 -> Les résultats d'audits externes sont affichés au pole | C55: =masque!M90 -> -1 | D55: =masque!N90 -> 1 | E55: =masque!P90 -> 1 | F55: NA | G55: =IF(masque!Q90=0,"",masque!Q90) ->  | H55: =IF(masque!R90=0,"",masque!R90) ->  | I55: =IF(masque!S90=0,"",masque!S90) ->  | J55: =IF(masque!T90=0,"",masque!T90) -> 
B56: =masque!L91 -> Mise en place de Plan d'action suite aux audits | C56: =masque!M91 -> -1 | D56: =masque!N91 -> 1 | E56: =masque!P91 -> Nobs | F56: NA | G56: =IF(masque!Q91=0,"",masque!Q91) ->  | H56: =IF(masque!R91=0,"",masque!R91) ->  | I56: =IF(masque!S91=0,"",masque!S91) ->  | J56: =IF(masque!T91=0,"",masque!T91) -> 
A57: 223 | B57: =masque!L92 -> Mise en place d'actions correctives suite aux analyses non conformes (surgelés) | C57: =masque!M92 -> -2 | D57: =masque!N92 -> 2 | E57: =masque!P92 -> 2 | F57: NA | G57: =IF(masque!Q92=0,"",masque!Q92) ->  | H57: =IF(masque!R92=0,"",masque!R92) ->  | I57: =IF(masque!S92=0,"",masque!S92) ->  | J57: =IF(masque!T92=0,"",masque!T92) -> 
B58: Sous Total : | D58: =SUM(D52:D57) -> 13 | E58: =SUM(E52:E57) -> 12 | F58: =SUM(F52:F57) -> 0
C59: Max | D59: =E59+F59 -> 50 | E59: =masque!Q4 -> 37 | F59: =masque!R4 -> 13
E60: Note F | F60: Note T
B61: TOTAL DE LA NOTE : | E61: =SUM(E58,E50,E41,E35,E26) -> 35 | F61: =SUM(F58,F50,F41,F35,F26) -> 8
B62: NOTE : | D62: /100 | E62: =IF(E59=0,"",E61/E59) -> 0.9459459459 | F62: =IF(F59=0,"",F61/F59) -> 0.6153846154
E63: =IF(D59=0,"",(E61+F61)/D59) -> 0.86

Sheet PLS BOUCHERIE
A1: ="Accompagné par : " &masque!K7 -> Accompagné par : Brahim brongi | D1: PLS/BOUCHERIE | H1: PLS
E2: Visite
D3: Visite | E3: =masque!$E$11 -> V2
D4: Date | E4: =masque!$E$12 -> 2017-06-14
D5: Heure
C6: Pénalités | D6: Base | G6: Non-conformité | H6: Action corrective | I6: Fixé le | J6: Responsable
A7: 11 | B7: CHAMBRE FROIDE PLS | E7: F | F7: T
A8: 111 | B8: =masque!L136 -> Température adaptée (+4°C) | C8: =masque!M136 -> -1 | D8: =masque!N136 -> 1 | E8: =masque!P136 -> NA | F8: NA | G8: =IF(masque!Q136=0,"",masque!Q136) ->  | H8: =IF(masque!R136=0,"",masque!R136) ->  | I8: =IF(masque!S136=0,"",masque!S136) ->  | J8: =IF(masque!T136=0,"",masque!T136) -> 
B9: =masque!L138 -> Propreté et entretien de la chambre froide satisfaisant Sols, évacuations, Murs, plafonds, portes, Etagères | C9: =masque!M137 -> -5 | D9: =masque!N137 -> 2 | E9: =masque!P137 -> NA | F9: =masque!P138 -> NA | G9: =IF(masque!Q137=0,IF(masque!Q138=0,""," S : "&masque!Q138),IF(masque!Q138=0,"F: "&masque!Q137,"F: "&masque!Q137&"// S : "&masque!Q138)) ->  | H9: =IF(masque!R137=0,IF(masque!R138=0,""," S : "&masque!R138),IF(masque!R138=0,"F: "&masque!R137,"F: "&masque!R137&"// S : "&masque!R138)) ->  | I9: =IF(masque!S137=0,IF(masque!S138=0,""," S : "&masque!S138),IF(masque!S138=0,"F: "&masque!S137,"F: "&masque!S137&"// S : "&masque!S138)) ->  | J9: =IF(masque!T137=0,IF(masque!T138=0,""," S : "&masque!T138),IF(masque!T138=0,"F: "&masque!T137,"F: "&masque!T137&"// S : "&masque!T138)) -> S :
A10: 112b | B10: =masque!L139 -> Rangement satisfaisant | C10: =masque!M139 -> -1 | D10: =masque!N139 -> 1 | E10: =masque!P139 -> NA | F10: NA | G10: =IF(masque!Q139=0,"",masque!Q139) ->  | H10: =IF(masque!R139=0,"",masque!R139) ->  | I10: =IF(masque!S139=0,"",masque!S139) ->  | J10: =IF(masque!T139=0,"",masque!T139) -> 
B11: =masque!L140 -> Absence de stockage au sol | C11: =masque!M140 -> -1 | D11: =masque!N140 -> 1 | E11: =masque!P140 -> NA | F11: NA | G11: =IF(masque!Q140=0,"",masque!Q140) ->  | H11: =IF(masque!R140=0,"",masque!R140) ->  | I11: =IF(masque!S140=0,"",masque!S140) ->  | J11: =IF(masque!T140=0,"",masque!T140) -> 
B12: =masque!L141 -> Absence de déchets non isolés/ non identifiés | C12: =masque!M141 -> -10 | D12: =masque!N141 -> 2 | E12: =masque!P141 -> NA | F12: NA | G12: =IF(masque!Q141=0,"",masque!Q141) ->  | H12: =IF(masque!R141=0,"",masque!R141) ->  | I12: =IF(masque!S141=0,"",masque!S141) ->  | J12: =IF(masque!T141=0,"",masque!T141) -> 
A13: 112c | B13: =masque!L142 -> Respect des DLC/DLUO | C13: =masque!M142 -> -10 | D13: =masque!N142 -> 2 | E13: =masque!P142 -> NA | F13: NA | G13: =IF(masque!Q142=0,"",masque!Q142) ->  | H13: =IF(masque!R142=0,"",masque!R142) ->  | I13: =IF(masque!S142=0,"",masque!S142) ->  | J13: =IF(masque!T142=0,"",masque!T142) -> 
B14: =masque!L143 -> Absence de palette en bois, de carton | C14: =masque!M143 -> -1 | D14: =masque!N143 -> 1 | E14: =masque!P143 -> NA | F14: NA | G14: =IF(masque!Q143=0,"",masque!Q143) ->  | H14: =IF(masque!R143=0,"",masque!R143) ->  | I14: =IF(masque!S143=0,"",masque!S143) ->  | J14: =IF(masque!T143=0,"",masque!T143) -> 
B15: =masque!L144 -> Absence de produit non identifié en chambre froide | C15: =masque!M144 -> -2 | D15: =masque!N144 -> 2 | E15: =masque!P144 -> NA | F15: NA | G15: =IF(masque!Q144=0,"",masque!Q144) ->  | H15: =IF(masque!R144=0,"",masque!R144) ->  | I15: =IF(masque!S144=0,"",masque!S144) ->  | J15: =IF(masque!T144=0,"",masque!T144) -> 
A16: 113 | B16: =masque!L145 -> Présence et bon fonctionnement du thermomètre enregistreur | C16: =masque!M145 -> -1 | D16: =masque!N145 -> 1 | E16: NA | F16: =masque!P145 -> NA | G16: =IF(masque!Q145=0,"",masque!Q145) ->  | H16: =IF(masque!R145=0,"",masque!R145) ->  | I16: =IF(masque!S145=0,"",masque!S145) ->  | J16: =IF(masque!T145=0,"",masque!T145) -> 
A17: 114 | B17: =masque!L146 -> Porte fermée | C17: =masque!M146 -> -1 | D17: =masque!N146 -> 1 | E17: =masque!P146 -> 1 | F17: NA | G17: =IF(masque!Q146=0,"",masque!Q146) ->  | H17: =IF(masque!R146=0,"",masque!R146) ->  | I17: =IF(masque!S146=0,"",masque!S146) ->  | J17: =IF(masque!T146=0,"",masque!T146) -> 
B18: Sous Total : | D18: =SUM(D8:D17) -> 14 | E18: =SUM(E8:E17) -> 1 | F18: =SUM(F8:F17) -> 0
A19: 11 | B19: HYGIENE
A20: 111 | B20: =masque!L147 -> Produits d’entretien conformes et correctement utilisés et rangés | C20: =masque!M147 -> -1 | D20: =masque!N147 -> 1 | E20: =masque!P147 -> 1 | F20: NA | G20: =IF(masque!Q147=0,"",masque!Q147) ->  | H20: =IF(masque!R147=0,"",masque!R147) ->  | I20: =IF(masque!S147=0,"",masque!S147) ->  | J20: =IF(masque!T147=0,"",masque!T147) -> 
A21: 112.3 | B21: =masque!L148 -> Présence du planning de nettoyage | C21: =masque!M148 -> -1 | D21: =masque!N148 -> 1 | E21: =masque!P148 -> 0 | F21: NA | G21: =IF(masque!Q148=0,"",masque!Q148) -> Linéaires rouillées | H21: =IF(masque!R148=0,"",masque!R148) -> Repeindre les étagères. | I21: =IF(masque!S148=0,"",masque!S148) ->  | J21: =IF(masque!T148=0,"",masque!T148) -> Brahim brongi
B22: Sous Total : | D22: =SUM(D20:D21) -> 2 | E22: =SUM(E20:E21) -> 1 | F22: =SUM(F20:F21) -> 0
A23: 18 | B23: POLE
B24: =masque!L149 -> Entretien des linéaires | C24: =masque!M149 -> -5 | D24: =masque!N149 -> 2 | E24: NA | F24: =masque!P149 -> 2 | G24: =IF(masque!Q149=0,"",masque!Q149) ->  | H24: =IF(masque!R191=0,"",masque!R191) ->  | I24: =IF(masque!S149=0,"",masque!S149) ->  | J24: =IF(masque!T149=0,"",masque!T149) -> 
B25: =masque!L150 -> Linéaires propres. | C25: =masque!M150 -> -5 | D25: =masque!N150 -> 2 | E25: =masque!P150 -> -3 | F25: NA | G25: =IF(masque!Q150=0,"",masque!Q150) -> Résine écaillée la vitre de la porte est brisée. | H25: =IF(masque!R150=0,"",masque!R150) -> Fixer le revêtement du sol. Remplacer la vitre brisée. | I25: =IF(masque!S150=0,"",masque!S150) ->  | J25: =IF(masque!T150=0,"",masque!T150) -> Brahim brongi
B26: =masque!L152 -> Entretien et propreté des sols, plinthes, murs plafonds, portes satisfaisants | C26: =masque!M152 -> -5 | D26: =masque!N152 -> 2 | E26: =masque!P152 -> 2 | F26: =masque!P151 -> -3 | G26: =IF(masque!Q151=0,IF(masque!#REF!=0,""," S : "&masque!#REF!),IF(masque!#REF!=0,"F: "&masque!Q151,"F: "&masque!Q151&"// S : "&masque!#REF!)) ->  | H26: =IF(masque!R151=0,IF(masque!#REF!=0,""," S : "&masque!#REF!),IF(masque!#REF!=0,"F: "&masque!R151,"F: "&masque!R151&"// S : "&masque!#REF!)) ->  | I26: =IF(masque!S151=0,IF(masque!#REF!=0,""," S : "&masque!#REF!),IF(masque!#REF!=0,"F: "&masque!S151,"F: "&masque!S151&"// S : "&masque!#REF!)) ->  | J26: =IF(masque!T152=0,IF(masque!T151=0,""," S : "&masque!T151),IF(masque!T151=0,"F: "&masque!T152,"F: "&masque!T152&"// S : "&masque!T151)) -> F: // S : Brahim brongi
B27: =masque!L154 -> Entretien et propreté des évacuations au sol satisfaisants | C27: =masque!M154 -> -1 | D27: =masque!N154 -> 1 | E27: =masque!P153 -> 1 | F27: =masque!P154 -> 1 | G27: =IF(masque!Q153=0,IF(masque!Q154=0,""," S : "&masque!Q154),IF(masque!Q154=0,"F: "&masque!Q153,"F: "&masque!Q153&"// S : "&masque!Q154)) ->  | H27: =IF(masque!R153=0,IF(masque!R154=0,""," S : "&masque!R154),IF(masque!R154=0,"F: "&masque!R153,"F: "&masque!R153&"// S : "&masque!R154)) ->  | I27: =IF(masque!S153=0,IF(masque!S154=0,""," S : "&masque!S154),IF(masque!S154=0,"F: "&masque!S153,"F: "&masque!S153&"// S : "&masque!S154)) ->  | J27: =IF(masque!T153=0,IF(masque!T154=0,""," S : "&masque!T154),IF(masque!T154=0,"F: "&masque!T153,"F: "&masque!T153&"// S : "&masque!T154)) -> F: // S :
B28: =masque!L155 -> Présence et bon fonctionnement du thermomètre enregistreur | C28: =masque!M155 -> -1 | D28: =masque!N155 -> 1 | E28: NA | F28: =masque!P155 -> 1 | G28: =IF(masque!Q155=0,"",masque!Q155) ->  | H28: =IF(masque!R155=0,"",masque!R155) ->  | I28: =IF(masque!S155=0,"",masque!S155) ->  | J28: =IF(masque!T155=0,"",masque!T155) -> 
B29: =masque!L156 -> Entretien et Nettoyage des évaporateurs | C29: =masque!M156 -> -2 | D29: =masque!N156 -> 2 | E29: NA | F29: =masque!P156 -> 2 | G29: =IF(masque!Q156=0,"",masque!Q156) ->  | H29: =IF(masque!R156=0,"",masque!R156) ->  | I29: =IF(masque!S156=0,"",masque!S156) ->  | J29: =IF(masque!T156=0,"",masque!T156) -> 
B30: =masque!L157 -> Absence de produits non identifiés | C30: =masque!M157 -> -5 | D30: =masque!N157 -> 2 | E30: =masque!P157 -> 2 | F30: NA | G30: =IF(masque!Q157=0,"",masque!Q157) ->  | H30: =IF(masque!R157=0,"",masque!R157) ->  | I30: =IF(masque!S157=0,"",masque!S157) ->  | J30: =IF(masque!T157=0,"",masque!T157) -> 
B31: =masque!L158 -> Absence de palette en bois, de carton | C31: =masque!M158 -> -1 | D31: =masque!N158 -> 1 | E31: =masque!P158 -> 1 | F31: NA | G31: =IF(masque!Q158=0,"",masque!Q158) ->  | H31: =IF(masque!R158=0,"",masque!R158) ->  | I31: =IF(masque!S158=0,"",masque!S158) ->  | J31: =IF(masque!T158=0,"",masque!T158) -> 
B32: =masque!L159 -> Respect des DLC (crèmerie et ultra frais) | C32: =masque!M159 -> -10 | D32: =masque!N159 -> 2 | E32: =masque!P159 -> 2 | F32: NA | G32: =IF(masque!Q159=0,"",masque!Q159) ->  | H32: =IF(masque!R159=0,"",masque!R159) ->  | I32: =IF(masque!S159=0,"",masque!S159) ->  | J32: =IF(masque!T159=0,"",masque!T159) -> 
B33: =masque!L160 -> Respect des DLC (charcuterie) | C33: =masque!M160 -> -10 | D33: =masque!N160 -> 2 | E33: =masque!P160 -> 2 | F33: NA | G33: =IF(masque!Q160=0,"",masque!Q160) ->  | H33: =IF(masque!R160=0,"",masque!R160) ->  | I33: =IF(masque!S160=0,"",masque!S160) ->  | J33: =IF(masque!T160=0,"",masque!T160) -> 
B34: =masque!L161 -> Respect des DLC (Boucherie) | C34: =masque!M161 -> -10 | D34: =masque!N161 -> 2 | E34: =masque!P161 -> 2 | F34: NA | G34: =IF(masque!Q161=0,"",masque!Q161) ->  | H34: =IF(masque!R161=0,"",masque!R161) ->  | I34: =IF(masque!S161=0,"",masque!S161) ->  | J34: =IF(masque!T161=0,"",masque!T161) -> 
B35: =masque!L162 -> Respect des DLC/DLUO (viennoiserie industrielle) | C35: =masque!M162 -> -10 | D35: =masque!N162 -> 2 | E35: =masque!P162 -> 2 | F35: NA | G35: =IF(masque!Q162=0,"",masque!Q162) ->  | H35: =IF(masque!R162=0,"",masque!R162) ->  | I35: =IF(masque!S162=0,"",masque!S162) ->  | J35: =IF(masque!T162=0,"",masque!T162) -> 
B36: =masque!L163 -> Respect des températures réglementaires | C36: =masque!M163 -> -2 | D36: =masque!N163 -> 2 | E36: NA | F36: =masque!P163 -> 2 | G36: =IF(masque!Q163=0,"",masque!Q163) ->  | H36: =IF(masque!R163=0,"",masque!R163) ->  | I36: =IF(masque!S163=0,"",masque!S163) ->  | J36: =IF(masque!T163=0,"",masque!T163) -> 
B37: =masque!L164 -> Etiquetage conforme | C37: =masque!M164 -> -2 | D37: =masque!N164 -> 2 | E37: =masque!P164 -> 2 | F37: NA | G37: =IF(masque!Q164=0,"",masque!Q164) ->  | H37: =IF(masque!R164=0,"",masque!R164) ->  | I37: =IF(masque!S164=0,"",masque!S164) ->  | J37: =IF(masque!T164=0,"",masque!T164) -> 
B38: =masque!L165 -> Absence de charge excessive | C38: =masque!M165 -> -1 | D38: =masque!N165 -> 1 | E38: =masque!P165 -> 1 | F38: NA | G38: =IF(masque!Q165=0,"",masque!Q165) ->  | H38: =IF(masque!R165=0,"",masque!R165) ->  | I38: =IF(masque!S165=0,"",masque!S165) ->  | J38: =IF(masque!T165=0,"",masque!T165) -> 
B39: =masque!L166 -> Absence de stockage au sol | C39: =masque!M166 -> -1 | D39: =masque!N166 -> 1 | E39: =masque!P166 -> 1 | F39: NA | G39: =IF(masque!Q166=0,"",masque!Q166) ->  | H39: =IF(masque!R166=0,"",masque!R166) ->  | I39: =IF(masque!S166=0,"",masque!S166) ->  | J39: =IF(masque!T166=0,"",masque!T166) -> 
B40: =masque!L167 -> Aspect des produits satisfaisant. | C40: =masque!M167 -> -1 | D40: =masque!N167 -> 1 | E40: =masque!P167 -> 1 | F40: NA | G40: =IF(masque!Q167=0,"",masque!Q167) ->  | H40: =IF(masque!R167=0,"",masque!R167) ->  | I40: =IF(masque!S167=0,"",masque!S167) ->  | J40: =IF(masque!T167=0,"",masque!T167) -> 
B41: Sous Total : | D41: =SUM(D24:D40) -> 28 | E41: =SUM(E24:E40) -> 16 | F41: =SUM(F24:F40) -> 5
B42: LINEAIRE SURGELE
B43: =masque!L168 -> Absence d'attente hors froid | C43: =masque!M168 -> -1 | D43: =masque!N168 -> 1 | E43: =masque!P168 -> 1 | F43: NA | G43: =IF(masque!Q168=0,"",masque!Q168) ->  | H43: =IF(masque!R168=0,"",masque!R168) ->  | I43: =IF(masque!S168=0,"",masque!S168) ->  | J43: =IF(masque!T168=0,"",masque!T168) -> 
B44: =masque!L169 -> Propreté des meubles satisfaisants | C44: =masque!M169 -> -5 | D44: =masque!N169 -> 2 | E44: =masque!P169 -> 2 | F44: NA | G44: =IF(masque!Q169=0,"",masque!Q169) ->  | H44: =IF(masque!R169=0,"",masque!R169) ->  | I44: =IF(masque!S169=0,"",masque!S169) ->  | J44: =IF(masque!T169=0,"",masque!T169) -> 
B45: =masque!L170 -> entretien des meubles satisfaisants | C45: =masque!M170 -> -5 | D45: =masque!N170 -> 2 | E45: NA | F45: =masque!P170 -> 2 | G45: =IF(masque!Q170=0,"",masque!Q170) ->  | H45: =IF(masque!R170=0,"",masque!R170) ->  | I45: =IF(masque!S170=0,"",masque!S170) ->  | J45: =IF(masque!T170=0,"",masque!T170) -> 
B46: =masque!L171 -> Absence de charge excessive | C46: =masque!M171 -> -1 | D46: =masque!N171 -> 1 | E46: =masque!P171 -> 1 | F46: NA | G46: =IF(masque!Q171=0,"",masque!Q171) ->  | H46: =IF(masque!R171=0,"",masque!R171) ->  | I46: =IF(masque!S171=0,"",masque!S171) ->  | J46: =IF(masque!T171=0,"",masque!T171) -> 
B47: =masque!L172 -> Respect des DLC (PLS) | C47: =masque!M172 -> -10 | D47: =masque!N172 -> 2 | E47: =masque!P172 -> 2 | F47: NA | G47: =IF(masque!Q172=0,"",masque!Q172) ->  | H47: =IF(masque!R172=0,"",masque!R172) ->  | I47: =IF(masque!S172=0,"",masque!S172) ->  | J47: =IF(masque!T172=0,"",masque!T172) -> 
B48: =masque!L173 -> Respect des DLC (Boucherie) | C48: =masque!M173 -> -10 | D48: =masque!N173 -> 2 | E48: =masque!P173 -> 2 | F48: NA | G48: =IF(masque!Q173=0,"",masque!Q173) ->  | H48: =IF(masque!R173=0,"",masque!R173) ->  | I48: =IF(masque!S173=0,"",masque!S173) ->  | J48: =IF(masque!T173=0,"",masque!T173) -> 
B49: =masque!L174 -> Température adaptée (-18°C) | C49: =masque!M174 -> -2 | D49: =masque!N174 -> 2 | E49: NA | F49: =masque!P174 -> 2 | G49: =IF(masque!Q174=0,"",masque!Q174) ->  | H49: =IF(masque!R174=0,"",masque!R174) ->  | I49: =IF(masque!S174=0,"",masque!S174) ->  | J49: =IF(masque!T174=0,"",masque!T174) -> 
B50: =masque!L175 -> Aspect satisfaisant des produits | C50: =masque!M175 -> -1 | D50: =masque!N175 -> 1 | E50: =masque!P175 -> 1 | F50: NA | G50: =IF(masque!Q175=0,"",masque!Q175) ->  | H50: =IF(masque!R175=0,"",masque!R175) ->  | I50: =IF(masque!S175=0,"",masque!S175) ->  | J50: =IF(masque!T175=0,"",masque!T175) -> 
B51: Sous Total : | D51: =SUM(D43:D50) -> 13 | E51: =SUM(E43:E50) -> 9 | F51: =SUM(F43:F50) -> 4
A53: 22 | B53: AUTOCONTROLES
A54: 221 | B54: =masque!L176 -> Présence du référentiel qualité | C54: =masque!M176 -> -2 | D54: =masque!N176 -> 2 | E54: =masque!P176 -> 2 | F54: NA | G54: =IF(masque!Q176=0,"",masque!Q176) ->  | H54: =IF(masque!R176=0,"",masque!R176) ->  | I54: =IF(masque!S176=0,"",masque!S176) ->  | J54: =IF(masque!T176=0,"",masque!T176) -> 
A55: 222b | B55: =masque!L177 -> Mise en place des autocontrôles des températures | C55: =masque!M177 -> -5 | D55: =masque!N177 -> 5 | E55: =masque!P177 -> 5 | F55: NA | G55: =IF(masque!Q177=0,"",masque!Q177) ->  | H55: =IF(masque!R177=0,"",masque!R177) ->  | I55: =IF(masque!S177=0,"",masque!S177) ->  | J55: =IF(masque!T177=0,"",masque!T177) -> 
A56: 222c | B56: =masque!L178 -> Mise en place des auto-contrôles du nettoyage | C56: =masque!M178 -> -2 | D56: =masque!N178 -> 2 | E56: =masque!P178 -> 2 | F56: NA | G56: =IF(masque!Q178=0,"",masque!Q178) ->  | H56: =IF(masque!R178=0,"",masque!R178) ->  | I56: =IF(masque!S178=0,"",masque!S178) ->  | J56: =IF(masque!T178=0,"",masque!T178) -> 
B57: =masque!L179 -> Les résultats d'audits externes sont affichés au pole | C57: =masque!M179 -> -1 | D57: =masque!N179 -> 1 | E57: =masque!P179 -> 1 | F57: NA | G57: =IF(masque!Q179=0,"",masque!Q179) ->  | H57: =IF(masque!R179=0,"",masque!R179) ->  | I57: =IF(masque!S179=0,"",masque!S179) ->  | J57: =IF(masque!T179=0,"",masque!T179) -> 
B58: =masque!L180 -> Mise en place de Plan d'action suite aux audits | C58: =masque!M180 -> -1 | D58: =masque!N180 -> 1 | E58: =masque!P180 -> NA | F58: NA | G58: =IF(masque!Q180=0,"",masque!Q180) ->  | H58: =IF(masque!R180=0,"",masque!R180) ->  | I58: =IF(masque!S180=0,"",masque!S180) ->  | J58: =IF(masque!T180=0,"",masque!T180) -> 
A59: 223 | B59: =masque!L181 -> Mise en place d'actions correctives suite aux analyses non conformes (surgelés) | C59: =masque!M181 -> -2 | D59: =masque!N181 -> 2 | E59: =masque!P181 -> 2 | F59: NA | G59: =IF(masque!Q181=0,"",masque!Q181) ->  | H59: =IF(masque!R181=0,"",masque!R181) ->  | I59: =IF(masque!S181=0,"",masque!S181) ->  | J59: =IF(masque!T181=0,"",masque!T181) -> 
B60: Sous Total : | D60: =SUM(D54:D59) -> 13 | E60: =SUM(E54:E59) -> 12 | F60: =SUM(F54:F59) -> 0
C61: Max | D61: =E61+F61 -> 59 | E61: =masque!Q7 -> 45 | F61: =masque!R7 -> 14
E62: Note F | F62: Note T
B63: TOTAL : | E63: =SUM(E60,E51,E41,E22,E18) -> 39 | F63: =SUM(F60,F51,F41,F22,F18) -> 9
B64: NOTE : | D64: /100 | E64: =IF(E61=0,"",E63/E61) -> 0.8666666667 | F64: =IF(F61=0,"",F63/F61) -> 0.6428571429
E65: =IF(D61=0,"",(E63+F63)/D61) -> 0.813559322

Sheet technique
A1: ="Accompagné par : " &masque!K10 -> Accompagné par : aymen Salah | D1: SERVICE TECHNIQUE | H1: TEC
E2: Visite
D3: Visite | E3: =masque!$E$11 -> V2
D4: Date | E4: =masque!$E$12 -> 2017-06-14
D5: Heure
C6: Pénalités | D6: Base | G6: Non-conformité | H6: Action corrective | I6: Fixé le | J6: Responsable
A7: 6 | B7: MAITRISE DU FROID | E7: F | F7: T
A8: 62c | B8: =masque!L208 -> Présence / bon fonctionnement thermoenregistreurs pole Poisson | C8: =masque!M208 -> -1 | D8: =masque!N208 -> 1 | E8: NA | F8: =masque!P208 -> 1 | G8: =IF(masque!Q208=0,"",masque!Q208) ->  | H8: =IF(masque!R208=0,"",masque!R208) ->  | I8: =IF(masque!S208=0,"",masque!S208) ->  | J8: =IF(masque!T208=0,"",masque!T208) -> 
A9: 62f | B9: =masque!L209 -> Présence / bon fonctionnement thermoenregistreurs pole Fruits et Légumes | C9: =masque!M209 -> -1 | D9: =masque!N209 -> 1 | E9: NA | F9: =masque!P209 -> 1 | G9: =IF(masque!Q209=0,"",masque!Q209) ->  | H9: =IF(masque!R209=0,"",masque!R209) ->  | I9: =IF(masque!S209=0,"",masque!S209) ->  | J9: =IF(masque!T209=0,"",masque!T209) -> 
A10: 62j | B10: =masque!L210 -> Présence / bon fonctionnement thermoenregistreurs pole PLS/boucherie | C10: =masque!M210 -> -1 | D10: =masque!N210 -> 1 | E10: NA | F10: =masque!P210 -> 0 | G10: =IF(masque!Q210=0,"",masque!Q210) -> La GTC est en panne. | H10: =IF(masque!R210=0,"",masque!R210) -> Réparer la GTC. | I10: =IF(masque!S210=0,"",masque!S210) ->  | J10: =IF(masque!T210=0,"",masque!T210) -> 
B11: =masque!L211 -> Présence / bon fonctionnement thermoenregistreurs réserves froides PLS | C11: =masque!M211 -> -1 | D11: =masque!N211 -> 1 | E11: NA | F11: =masque!P211 -> 1 | G11: =IF(masque!Q211=0,"",masque!Q211) ->  | H11: =IF(masque!R211=0,"",masque!R211) ->  | I11: =IF(masque!S211=0,"",masque!S211) ->  | J11: =IF(masque!T211=0,"",masque!T211) -> 
A12: 64 | B12: =masque!L212 -> Présence et bon état des joints porte ch froide | C12: =masque!M212 -> -1 | D12: =masque!N212 -> 1 | E12: NA | F12: =masque!P212 -> Nobs | G12: =IF(masque!Q212=0,"",masque!Q212) ->  | H12: =IF(masque!R212=0,"",masque!R212) ->  | I12: =IF(masque!S212=0,"",masque!S212) ->  | J12: =IF(masque!T212=0,"",masque!T212) -> 
A13: 66 | B13: =masque!L213 -> Positionnement de la sonde extérieure des meubles surgelés conforme | C13: =masque!M213 -> -1 | D13: =masque!N213 -> 1 | E13: NA | F13: =masque!P213 -> 1 | G13: =IF(masque!Q213=0,"",masque!Q213) ->  | H13: =IF(masque!R213=0,"",masque!R213) ->  | I13: =IF(masque!S213=0,"",masque!S213) ->  | J13: =IF(masque!T213=0,"",masque!T213) -> 
A14: 0611a | B14: =masque!L214 -> Absence de thermomètre en panne sur les linéaires surgelés | C14: =masque!M214 -> -1 | D14: =masque!N214 -> 1 | E14: NA | F14: =masque!P214 -> 1 | G14: =IF(masque!Q214=0,"",masque!Q214) ->  | H14: =IF(masque!R214=0,"",masque!R214) ->  | I14: =IF(masque!S214=0,"",masque!S214) ->  | J14: =IF(masque!T214=0,"",masque!T214) -> 
A15: 0611j | B15: =masque!L215 -> gestion des alarmes du froid | C15: =masque!M215 -> -1 | D15: =masque!N215 -> 1 | E15: NA | F15: =masque!P215 -> 1 | G15: =IF(masque!Q215=0,"",masque!Q215) ->  | H15: =IF(masque!R215=0,"",masque!R215) ->  | I15: =IF(masque!S215=0,"",masque!S215) ->  | J15: =IF(masque!T215=0,"",masque!T215) -> 
A16: 0612 | B16: =masque!L216 -> Absence de fuite de fluide frigorigène | C16: =masque!M216 -> -1 | D16: =masque!N216 -> 1 | E16: NA | F16: =masque!P216 -> 0 | G16: =IF(masque!Q216=0,"",masque!Q216) -> Absence de DEIV dans tout le magasin. | H16: =IF(masque!R216=0,"",masque!R216) -> Prévoir des DEIV au magasin. | I16: =IF(masque!S216=0,"",masque!S216) ->  | J16: =IF(masque!T216=0,"",masque!T216) -> 
B17: Sous Total : | D17: =SUM(D8:D16) -> 9 | E17: =SUM(E8:E16) -> 0 | F17: =SUM(F8:F16) -> 6
A18: 7 | B18: MAINTENANCE GENERALE
A19: 70 | B19: =masque!L217 -> Présence d'un poste de nettoyage désinfection au niveau de la réception | C19: =masque!M217 -> -5 | D19: =masque!N217 -> 2 | E19: NA | F19: =masque!P217 -> -3 | G19: =IF(masque!Q217=0,"",masque!Q217) -> Absence d'un local poubelle. | H19: =IF(masque!R217=0,"",masque!R217) -> Prévoir un local adapté pour l'entreposage des poubelles | I19: =IF(masque!S217=0,"",masque!S217) ->  | J19: =IF(masque!T217=0,"",masque!T217) -> 
A20: 71 | B20: =masque!L218 -> Entretien des écoulements / évacuations satisfaisant | C20: =masque!M218 -> -2 | D20: =masque!N218 -> 2 | E20: NA | F20: =masque!P218 -> 2 | G20: =IF(masque!Q218=0,"",masque!Q218) ->  | H20: =IF(masque!R218=0,"",masque!R218) ->  | I20: =IF(masque!S218=0,"",masque!S218) ->  | J20: =IF(masque!T218=0,"",masque!T218) -> 
A21: 73c | B21: =masque!L219 -> Maintenance satisfaisante des meubles (concerne état général, rouille...) | C21: =masque!M219 -> -1 | D21: =masque!N219 -> 1 | E21: NA | F21: =masque!P219 -> 0 | G21: =IF(masque!Q219=0,"",masque!Q219) -> Présence de fuite au niveau du bac de la poissonnerie | H21: =IF(masque!R219=0,"",masque!R219) -> Réparer la fuite d'eau. | I21: =IF(masque!S219=0,"",masque!S219) ->  | J21: =IF(masque!T219=0,"",masque!T219) -> aymen Salah
A22: 75b | B22: =masque!L220 -> Maintenance et propreté satisfaisantes des évaporateurs et ventilateurs | C22: =masque!M220 -> -1 | D22: =masque!N220 -> 1 | E22: NA | F22: =masque!P220 -> 0 | G22: =IF(masque!Q220=0,"",masque!Q220) -> Absence d'un planning de maintenance préventive: technique /nettoyage | H22: =IF(masque!R220=0,"",masque!R220) -> Etablir un planning de maintenance préventive: Nettoyage | I22: =IF(masque!S220=0,"",masque!S220) ->  | J22: =IF(masque!T220=0,"",masque!T220) -> 
B23: Sous Total : | D23: =SUM(D19:D22) -> 6 | E23: =SUM(E19:E22) -> 0 | F23: =SUM(F19:F22) -> -1
A24: Accompagné par : | D24: SERVICE TECHNIQUE
D25: Visite | E25: =+E3 -> V2
D26: Date | E26: V4B
D27: Heure | E27: =E5 -> 00:00:00
C28: Pénalités | D28: Base
A29: 08. | B29: AUTRES
A30: 81a | B30: =masque!L221 -> Présence du plan de positionnement des appats raticides (emplacement et nombre) | C30: =masque!M221 -> -2 | D30: =masque!N221 -> 2 | E30: NA | F30: =masque!P221 -> 2 | G30: =IF(masque!Q221=0,"",masque!Q221) ->  | H30: =IF(masque!R221=0,"",masque!R221) ->  | I30: =IF(masque!S221=0,"",masque!S221) ->  | J30: =IF(masque!T221=0,"",masque!T221) -> 
A31: 81b | B31: =masque!L222 -> Présence du local poubelle | C31: =masque!M222 -> -2 | D31: =masque!N222 -> 2 | E31: NA | F31: =masque!P222 -> 0 | G31: =IF(masque!Q222=0,"",masque!Q222) -> Les poubelles sont à l'air libre | H31: =IF(masque!R222=0,"",masque!R222) -> prévoir un local climatisé et équipé d'une source d'eau chaude et froide | I31: =IF(masque!S222=0,"",masque!S222) -> 41702 | J31: =IF(masque!T222=0,"",masque!T222) -> aymen Salah
A32: 81f | B32: =masque!L223 -> bon fonctionnement des lave-mains | C32: =masque!M223 -> -1 | D32: =masque!N223 -> 1 | E32: NA | F32: =masque!P223 -> 0 | G32: =IF(masque!Q223=0,"",masque!Q223) -> 2 lave main non fonctionnel en vestiaire femme, Absence des distributeurs savon liquide et papier hygiénique au niveau du poste lave-mains du poissonnerie | H32: =IF(masque!R223=0,"",masque!R223) -> reparer les lave mains et prevoir les ditributeurs | I32: =IF(masque!S223=0,"",masque!S223) -> 42667 | J32: =IF(masque!T223=0,"",masque!T223) -> aymen Salah
A33: 81g | B33: =masque!L224 -> Absence de fuite d'eau | C33: =masque!M224 -> -1 | D33: =masque!N224 -> 1 | E33: NA | F33: =masque!P224 -> 1 | G33: =IF(masque!Q224=0,"",masque!Q224) ->  | H33: =IF(masque!R224=0,"",masque!R224) ->  | I33: =IF(masque!S224=0,"",masque!S224) ->  | J33: =IF(masque!T224=0,"",masque!T224) -> 
B34: Sous Total : | D34: =SUM(D30:D33) -> 6 | E34: =SUM(E30:E33) -> 0 | F34: =SUM(F30:F33) -> 3
A35: 9 | B35: GESTION DOCUMENTAIRE
A36: 91a | B36: =masque!L225 -> Existence d'un planning de maintenance préventive technique et Nettoyage | C36: =masque!M225 -> -1 | D36: =masque!N225 -> 1 | E36: NA | F36: =masque!P225 -> 1 | G36: =IF(masque!Q225=0,"",masque!Q225) -> z | H36: =IF(masque!R225=0,"",masque!R225) ->  | I36: =IF(masque!S225=0,"",masque!S225) ->  | J36: =IF(masque!T225=0,"",masque!T225) -> 
A37: 91c | B37: =masque!L226 -> Existence d'un planning de maintenance préventive:dératisation-désinsectisation | C37: =masque!M226 -> -1 | D37: =masque!N226 -> 1 | E37: NA | F37: =masque!P226 -> 0 | G37: =IF(masque!Q226=0,"",masque!Q226) -> Présence de jour important sous la porte de livraison, ceci favorise l’accès des nuisibles | H37: =IF(masque!R226=0,"",masque!R226) -> fermer cette ouverture sous la porte | I37: =IF(masque!S226=0,"",masque!S226) -> 42696 | J37: =IF(masque!T226=0,"",masque!T226) -> 
B38: Sous Total : | D38: =SUM(D36:D37) -> 2 | E38: =SUM(E36:E37) -> 0 | F38: =SUM(F36:F37) -> 1
C39: Max | D39: =E39+F39 -> 22 | E39: =masque!Q10 -> 0 | F39: =masque!R10 -> 22
E40: Note F | F40: Note T
B41: TOTAL : | E41: =SUM(E17,E23,E34,E38) -> 0 | F41: =SUM(F17,F23,F34,F38) -> 9
B42: NOTE : | D42: /100 | E42: =IF(E39=0,"",E41/E39) ->  | F42: =IF(F39=0,"",F41/F39) -> 0.4090909091
E43: =IF(D39=0,"",(E41+F41)/D39) -> 0.4090909091

Sheet liste (hidden)
A1: Visite | B1: =MATCH(masque!E11,listvisit) -> 2 | C1: =IF(B1=1,2,1) -> 1 | D1: =C1+1 -> 2 | E1: =D1+1 -> 3 | F1: 5
A2: V1
A3: V2
A4: V3
A5: V4
A6: V5
